Workbook

Sheet opis dochody
A1: Zmiany w środkach przeznaczonych do dyspozycji Dzielnicy na realizację inwestycji i zadań własnych, w tym:
C3: zmniejszenia | D3: zwiększenia
A4: 1. Dochody bieżące | C4: =SUM(C6:C11) -> 752200 | D4: =SUM(D6:D11) -> 752200
A5: w tym:
A6: • Podatki i opłaty lokalne | C6: =C19 -> 0 | D6: =D19 -> 0
A7: • Wpływy z opłat pobieranych na podstawie odrębnych ustaw | C7: 0 | D7: =D40 -> 0
A8: • Dochody z mienia | C8: =C55 -> 0 | D8: =D55 -> 0
A9: wpływy z czynszu za mieszkania komunalne | C9: 0 | D9: 0
A10: wpływy z najmu lokali użytkowych | C10: 0 | D10: 0
A11: • Pozostałe dochody | C11: 752200 | D11: 752200
A13: 2. Dochody majątkowe z terenu Dzielnicy | C13: =SUM(C87) -> 0 | D13: =D87 -> 0
A14: 3. Dodatkowe środki finansowe przekazane do dyspozycji Dzielnicy | C14: =C108 -> 6832600 | D14: =D108 -> 16370661
A15: Razem | C15: =C14+C13+C4 -> 7584800 | D15: =D14+D13+D4 -> 17122861
A17: DOCHODY BIEŻĄCE | C17: =C19+C55+C74 -> 752200 | D17: =D19+D55+D74+D40 -> 752200
A19: Podatki i opłaty lokalne ogółem | C19: =C22 -> 0 | D19: =D22 -> 0
A21: w tym:
A22: • podatek od nieruchomości | C22: =SUM(C27:C29) -> 0 | D22: 0
A23: • podatek od środków transportowych | D23: 0
A24: • opłata targowa | D24: 0
A27: • od osób prawnych
A29: • od osób fizycznych
A33: Podstawy prawne:
A34: - Ustawa z dnia 12.01.1991 r. o podatkach i opłatach lokalnych (tj.. Dz.U. z 2006 r. Nr 121, poz.844 z późn. zm.).
A35: - corocznie uchwalana Uchwała Rady m.st. Warszawy w przedmiotowej sprawie
A37: Klasyfikacja: rozdział: 75615, 75616
A40: Wpływy z opłat pobieranych na podstawie odrębnych ustaw | D40: =D44 -> 0
A42: w tym:
A44: opłaty za zajęcie pasa drogowego
A48: Podstawy prawne:
A49: - Ustawa z dnia 21 marca 1985 r. o drogach publicznych
A50: - Rozporządzenie Rady Ministrów z dnia czerwca 2004 r. w sprawie określenia warunków udzielania zezwoleń za zajęcie pasa drogowego
A51: - Uchwała nr XLVII/1191/2005 Rady m.st. Warszawy z dnia 17 marca 2005 r w sprawie wysokości stawek opłat za zajęcie pasa drogowego dróg publicznych na obszarze m.st Warszawy z wyjątkiem autostrad i dróg ekspresowych.
A53: Klasyfikacja: rozdział: 75618
A55: Dochody z mienia (100%) | C55: =C63 -> 0 | D55: =D59+D63 -> 0
A57: w tym:
A59: opłaty za zarząd, użytkowanie i użytkowanie wieczyste nieruchomości
A63: dochody z najmu i dzierżawy mienia | C63: =SUM(C65:C66) -> 0 | D63: =SUM(D64:D67) -> 0
A64: wpływy z czynszu za dzierżawy gruntów
A65: wpływy z czynszu za mieszkania komunalne | D65: 0
A66: wpływy z najmu lokali użytkowych | C66: 0
A67: pozostałe dochody z najmu i dzierżawy | C67: 0
A68: 70% przynależne Dzielnicy w wysokości 1.820.000 zł zostanie przeznaczone na wydatki bieżące.
A71: Podstawa prawna:
A72: Ustawa z dnia 21 sierpnia 1997 r. o gospodarce nieruchomościami (t.j.Dz.U. z 2004 r. Nr 261, poz. 2603 ze zm.)
A74: Pozostałe dochody ogółem | C74: =SUM(C75:C86) -> 752200 | D74: =SUM(D75:D86) -> 752200
A76: w tym:
A77: mandaty i kary pieniężne
A78: wpływy z różnych dochodów | C78: 752200 | D78: 0
A79: odsetki od nieterminowych płatności podatków
A80: pozostałe odsetki
A81: wpływy z usług - zwrot odpłatności za media
A82: pozostałe wpływy z różnych opłat | C82: 0 | D82: 752200
A84: Zmiany dotyczące zwrotu kosztów postępowań sądowych i prokuratorskich wynikające ze zmiany klasyfikacji budżetowej.
A87: DOCHODY MAJĄTKOWE | C87: =C101 -> 0 | D87: =D94+D101 -> 0
A89: w tym:
A90: • Wpływy z przekształcenia prawa użytkowania wieczystego w prawo własności
A91: • Wpływy ze sprzedaży lokali i nieruchomości | C91: =C104 -> 0 | D91: =D104 -> 0
A94: Wpływy z przekształcenia prawa użytkowania wieczystego w prawo własności (100%) | C94: =C98 -> 0 | D94: =SUM(D97:D98) -> 0
A96: Zwiększa się plan w związku z przekształceniem prawa wieczystego użytkowania w prawo własności następujących gruntów:
A101: Wpływy ze sprzedaży lokali i nieruchomości (100%) | C101: =SUM(C103:C107) -> 0 | D101: =SUM(D103:D107) -> 0
A103: w tym:
A104: wpływy ze sprzedaży lokali mieszkalnych | C104: 0
A108: DODATKOWE ŚRODKI FINANSOWE | C108: =C110 -> 6832600 | D108: =D110 -> 16370661
A110: DODATKOWE ŚRODKI FINANSOWE PRZEKAZANE DO DYSPOZYCJI DZIELNICY | C110: =C116+C117+C118+C124+C119+C120+C122+C121 -> 6832600 | D110: =D116+D117+D118+D124+D119+D120+D122+D121 -> 16370661
A114: Zwiększenie środków dla Dzielnicowego Biura Finansów Oświaty z tytułu świadczeń odszkodowawczych w ramach Warszawskiego Programu Ubezpieczeniowego. | C114: 0
A115: Zwiększenie środków dla Wydziału Administracyjno - Gospodarczego z tytułu świadczeń odszkodowawczych w ramach Warszawskiego Programu Ubezpieczeniowego. | C115: 0
A116: Zwiększenie środków dla Dzielnicowego Biura Finansów Oświaty z tytułu świadczeń odszkodowawczych w ramach Warszawskiego Programu Ubezpieczeniowego. | C116: 0 | D116: 69255
A117: Zwiększenie środków dla Zakładu Gospodarowania Nieruchomościami z tytułu świadczeń odszkodowawczych w ramach Warszawskiego Programu Ubezpieczeniowego. | C117: 0 | D117: 86110
A118: Zwiększenie ze środków odprowadzonych na rachunek dochodów budżetowych pozostających na dzień 31.12.2024 r. na wydzielonym rachunku dochodów jednostek budżetowych prowadzących działalność określoną w ustawie o systemie oświaty. | C118: 0 | D118: 535617
A119: Przeniesienie środków niewykorzystanych w 2024 r. na realizację zadań inwestycyjnych w 2025 r. | C119: 0 | D119: =1495+57684+4775430+328330+150000+39099 -> 5352038
A120: Przeniesienie środków w ramach inwestycji z 2025 r. na 2026 r. | C120: 6832600 | D120: 0
A121: Zwiększenie środków na inwestycje. Źródłem finansowania są środki Dzielnicy Śródmieście, pochodzące z przyznanego limitu środków majątkowych. | D121: =3000000+250000+950000 -> 4200000
A122: Wprowadzenie nowych zadań inwestycyjnych. Źródłem finansowania są środki Dzielnicy Śródmieście, pochodzące z przyznanego limitu środków majątkowych. | C122: 0 | D122: =125000+700000+1000000+67000+60000+20000+200000+2000000+140000+150000+150000+145000+70000+330000+150000+26445+270000 -> 5603445
A124: Przeniesienie środków niewykorzystanych w 2024 r. na realizację projektów unijnych: | C124: 0 | D124: =SUM(D125:D132) -> 524196
A125: "Energia nauczyciela: Inwestycja w dobrostan zawodowy" | C125: 0 | D125: 5631
A126: "Tradycja spogląda w przyszłość" | C126: 0 | D126: 230326
A127: "Szkolenie kadry i młodzieży dwujęzycznej II" | C127: 0 | D127: 17251
A128: "Ku wartościom w SP075" | C128: 0 | D128: 2292
A129: "Przyjazna przyszłość" | C129: 0 | D129: 5672
A130: "Rozwijanie umiejętności zawodowych na międzynarodowym szlaku" | C130: 0 | D130: 249112
A131: "Praktyki zagraniczne uczniów ZSG im. E. Pijanowskiego w Grecji - Akredytacja Erasmusa edycja III" | C131: 0 | D131: 5295
A132: "Mobilność europejska drogą do osiągnięcia sukcesu młodzieży kształtującej się w zawodach poligraficznych" | C132: 0 | D132: 8617
F133: 9187571
C135: =C110+C87+C17 -> 7584800 | D135: =D110+D87+D17 -> 17122861

Sheet uzasadnienie wydatki
B2: DZIELNICA ŚRÓDMIEŚCIE
B4: Wyszczególnienie | C4: Zmniejszenia | D4: Zwiększenia
E5: =IF(C$6+D$6>0,"tak","nie") -> tak
A6: Wynik całkowity | B6: RAZEM DZIELNICA ŚRÓDMIEŚCIE | C6: =C8+C68+C193+C778+C965+C1065+C1135+C1354+C1019+C353 -> 0 | D6: =D8+D68+D193+D778+D965+D1065+D1135+D1354+D1019+D353 -> 864688 | E6: tak | F6: =IF(ZADANIOWY!L2='uzasadnienie wydatki'!C6,"","blad") ->  | G6: =IF(ZADANIOWY!M2='uzasadnienie wydatki'!D6,"","blad") -> 
E7: tak
A8: I | B8: 2.2.1. TRANSPORT I KOMUNIKACJA | C8: =C10 -> 0 | D8: =D10 -> 0 | E8: =IF(C$8+D$8>0,"tak","nie") -> nie | F8: =IF(C8=ZADANIOWY!L4,"","blad") ->  | G8: =IF(D8=ZADANIOWY!M4,"","blad") -> 
E9: =IF(C$8+D$8>0,"tak","nie") -> nie
A10: I/2 | B10: Drogi i mosty - program 2 | C10: =C12+C34+C52+C60 -> 0 | D10: =D12+D34+D52+D60 -> 0 | E10: =IF(C$10+D$10>0,"tak","nie") -> nie | F10: =IF(C10=ZADANIOWY!L204,"","blad") ->  | G10: =IF(D10=ZADANIOWY!M204,"","blad") -> 
E11: =IF(C$10+D$10>0,"tak","nie") -> nie
A12: B/I/2/1 | B12: Utrzymanie i remonty dróg - zadanie 1 | C12: =SUM(C14,C26) -> 0 | D12: =SUM(D14,D26) -> 0 | E12: =IF(C$12+D$12>0,"tak","nie") -> nie | F12: =IF(C12=ZADANIOWY!L205,"","blad") ->  | G12: =IF(D12=ZADANIOWY!M205,"","blad") -> 
E13: =IF(C$12+D$12>0,"tak","nie") -> nie
A14: B/I/2/1/1 | B14: Utrzymanie i remonty dróg gminnych | C14: 0 | D14: 0 | E14: =IF(C$14+D$14>0,"tak","nie") -> nie | F14: =IF(C14=ZADANIOWY!L206,"","blad") ->  | G14: =IF(D14=ZADANIOWY!M206,"","blad") -> 
E15: =IF(C$14+D$14>0,"tak","nie") -> nie
B16: Dysponent: Zarząd Terenów Publicznych | E16: nie
E17: nie
B18: Klasyfikacja: rozdział: 60016 | E18: nie
E19: nie
B20: opis | E20: nie
E21: nie
B22: Klasyfikacja: rozdział: 60095 | E22: nie
E23: nie
B24: opis | E24: nie
E25: nie
A26: B/I/2/1/3 | B26: Utrzymanie i remonty dróg wewnętrznych | C26: 0 | D26: 0 | E26: =IF(C$26+D$26>0,"tak","nie") -> nie | F26: =IF(C26=ZADANIOWY!L287,"","blad") ->  | G26: =IF(D26=ZADANIOWY!M287,"","blad") -> 
E27: =IF(C$26+D$26>0,"tak","nie") -> nie
B28: Dysponent: Zarząd Terenów Publicznych | E28: nie
E29: nie
B30: Klasyfikacja: rozdział: 60017 | E30: nie
E31: nie
B32: opis | E32: nie
E33: nie
A34: B/I/2/4 | B34: Oświetlenie ulic - zadanie 4 | C34: =SUM(C36,C44) -> 0 | D34: =SUM(D36,D44) -> 0 | E34: =IF(C$34+D$34>0,"tak","nie") -> nie | F34: =IF(C34=ZADANIOWY!L314,"","blad") ->  | G34: =IF(D34=ZADANIOWY!M314,"","blad") -> 
E35: =IF(C$34+D$34>0,"tak","nie") -> nie | F35: =IF(C35=ZADANIOWY!L296,"","blad") ->  | G35: =IF(D35=ZADANIOWY!M296,"","blad") -> 
A36: B/I/2/4/1 | B36: Iluminacje obiektów architektonicznych | C36: 0 | D36: 0 | E36: =IF(C$36+D$36>0,"tak","nie") -> nie | F36: =IF(C36=ZADANIOWY!L315,"","blad") ->  | G36: =IF(D36=ZADANIOWY!M315,"","blad") -> 
E37: =IF(C$36+D$36>0,"tak","nie") -> nie
B38: Dysponent: Zarząd Terenów Publicznych | E38: nie
E39: nie
B40: Klasyfikacja: rozdział: 90015 | E40: nie
E41: nie
E42: nie
E43: nie
A44: B/I/2/4/2 | B44: Utrzymanie i remonty oświetlenia ulic, placów i dróg | C44: 0 | D44: 0 | E44: =IF(C$44+D$44>0,"tak","nie") -> nie | F44: =IF(C44=ZADANIOWY!L321,"","blad") ->  | G44: =IF(D44=ZADANIOWY!M321,"","blad") -> 
E45: =IF(C$44+D$44>0,"tak","nie") -> nie
B46: Dysponent: Zarząd Terenów Publicznych | E46: nie
E47: nie
B48: Klasyfikacja: rozdział: 90015 | E48: nie
E49: nie
E50: nie
E51: nie
A52: B/I/2/5 | B52: Opracowania i analizy związane z drogami - zadanie 5 | C52: 0 | D52: 0 | E52: =IF(C$52+D$52>0,"tak","nie") -> nie | F52: =IF(C52=ZADANIOWY!L335,"","blad") ->  | G52: =IF(D52=ZADANIOWY!M335,"","blad") -> 
E53: =IF(C$52+D$52>0,"tak","nie") -> nie
B54: Dysponent: Zarząd Terenów Publicznych | E54: nie
E55: nie
B56: Klasyfikacja: rozdział: 60095 | E56: nie
E57: nie
B58: opis | E58: nie
E59: nie
A60: B/I/2/7 | B60: Gospodarowanie parkingami i węzłami komunikacyjnymi - zadanie 7 | C60: 0 | D60: 0 | E60: =IF(C$60+D$60>0,"tak","nie") -> nie | F60: =IF(C60=ZADANIOWY!L441,"","blad") ->  | G60: =IF(D60=ZADANIOWY!M441,"","blad") -> 
E61: =IF(C$60+D$60>0,"tak","nie") -> nie
B62: Dysponent: Zarząd Terenów Publicznych | E62: nie
E63: nie
B64: Klasyfikacja: rozdział: 60019 | E64: nie
E65: nie
B66: opis | E66: nie
E67: nie
A68: II | B68: 2.2.2. ŁAD PRZESTRZENNY I GOSPODARKA NIERUCHOMOŚCIAMI | C68: =C70+C126+C150 -> 0 | D68: =D70+D126+D150 -> 86110 | E68: =IF(C$68+D$68>0,"tak","nie") -> tak | F68: =IF(C68=ZADANIOWY!L494,"","blad") ->  | G68: =IF(D68=ZADANIOWY!M494,"","blad") -> 
E69: =IF(C$68+D$68>0,"tak","nie") -> tak | F69: =IF(C69=ZADANIOWY!L352,"","blad") ->  | G69: =IF(D69=ZADANIOWY!M352,"","blad") -> 
A70: II/3 | B70: Mieszkaniowy zasób komunalny oraz pozostałe zadania związane z zapewnieniem lokali mieszkalnych - program 3 | C70: =C72+C86+C94+C102+C118 -> 0 | D70: =D72+D86+D94+D102+D118 -> 62961 | E70: =IF(C$70+D$70>0,"tak","nie") -> tak | F70: =IF(C70=ZADANIOWY!L656,"","blad") ->  | G70: =IF(D70=ZADANIOWY!M656,"","blad") -> 
E71: =IF(C$70+D$70>0,"tak","nie") -> tak
A72: B/II/3/1 | B72: Koszty eksploatacji mieszkaniowego zasobu komunalnego - zadanie 1 | C72: 0 | D72: 0 | E72: =IF(C$72+D$72>0,"tak","nie") -> nie | F72: =IF(C72=ZADANIOWY!L657,"","blad") ->  | G72: =IF(D72=ZADANIOWY!M657,"","blad") -> 
E73: =IF(C$72+D$72>0,"tak","nie") -> nie
B74: Dysponent 1: Zakład Gospodarowania Nieruchomościami | E74: nie
E75: nie
B76: Klasyfikacja: rozdział: 70007 | E76: nie
E77: nie
E78: nie
E79: nie
B80: Dysponent 2: Zarząd Terenów Publicznych | E80: nie
E81: nie
B82: Klasyfikacja: rozdział: 70007 | E82: nie
E83: nie
E84: nie
A86: B/II/3/2 | B86: Remonty mieszkaniowego zasobu komunalnego - zadanie 2 | C86: 0 | D86: =D88 -> 62961 | E86: =IF(C$86+D$86>0,"tak","nie") -> tak | F86: =IF(C86=ZADANIOWY!L747,"","blad") ->  | G86: =IF(D86=ZADANIOWY!M747,"","blad") -> 
E87: =IF(C$86+D$86>0,"tak","nie") -> tak
B88: Dysponent: Zakład Gospodarowania Nieruchomościami | C88: 0 | D88: 62961 | E88: tak
E89: tak
B90: Klasyfikacja: rozdział: 70007 | E90: tak
E91: tak
B92: Zwiększenie planu wydatków z tytułu świadczeń odszkodowawczych w ramach Warszawskiego Programu Ubezpieczeniowego zgodnie z pismami: BA-ZE.3221.1.2024.PKA (45 PKA.BA-ZE) z 22.08.2024, (116 PKA.BA-ZE) z 18.09.2024, (195 PKA.BA-ZE) z 29.10.2024, (221 PKA.BA-ZE) z 13.11.2024, (273 PKA.BA-ZE) z 11.12.2024 oraz BA-ZE.3221.1.2025.PKA z 09.01.2025 z przeznaczeniem na remonty mieszkaniowego zasobu komunalnego. | E92: tak
E93: tak
A94: B/II/3/3 | B94: Utrzymanie jednostek gospodarujących zasobem komunalnym - zadanie 3 | C94: 0 | D94: 0 | E94: =IF(C$94+D$94>0,"tak","nie") -> nie | F94: =IF(C94=ZADANIOWY!L784,"","blad") ->  | G94: =IF(D94=ZADANIOWY!M784,"","blad") -> 
E95: =IF(C$94+D$94>0,"tak","nie") -> nie
B96: Dysponent: Zakład Gospodarowania Nieruchomościami | E96: nie
E97: nie
B98: Klasyfikacja: rozdział: 70004 | E98: nie
E99: nie
E100: nie
E101: nie
A102: B/II/3/4 | B102: Rozliczenia ze wspólnotami mieszkaniowymi - zadanie 4 | C102: 0 | D102: 0 | E102: =IF(C$102+D$102>0,"tak","nie") -> nie | F102: =IF(C102=ZADANIOWY!L821,"","blad") ->  | G102: =IF(D102=ZADANIOWY!M821,"","blad") -> 
E103: =IF(C$102+D$102>0,"tak","nie") -> nie
B104: Dysponent 1: Zakład Gospodarowania Nieruchomościami | E104: nie
E105: nie
B106: Klasyfikacja: rozdział: 70005 | E106: nie
E107: nie
B108: opis | E108: nie
E109: nie
B110: Klasyfikacja: rozdział: 70007 | E110: nie
E111: nie
B112: Dysponent 2: Wydział Wspólnot Mieszkaniowych | E112: nie
E113: nie
B114: Klasyfikacja: rozdział: 70007 | E114: nie
E115: nie
B116: opis | E116: nie
E117: nie
A118: B/II/3/6 | B118: Rozliczenia za lokale z właścicielami innymi niż m.st. Warszawa - zadanie 6 | C118: 0 | D118: 0 | E118: =IF(C$118+D$118>0,"tak","nie") -> nie | F118: =IF(C118=ZADANIOWY!L897,"","blad") ->  | G118: =IF(D118=ZADANIOWY!M897,"","blad") -> 
E119: =IF(C$118+D$118>0,"tak","nie") -> nie
B120: Dysponent: Wydział Zasobów Lokalowych | E120: nie
E121: nie
B122: Klasyfikacja: rozdział: 70005 | E122: nie
E123: nie
B124: opis | E124: nie
E125: nie
A126: II/4 | B126: Zadania związane z nabywaniem i sprzedażą nieruchomości - program 4 | C126: =C128+C136 -> 0 | D126: =D128+D136 -> 0 | E126: =IF(C$126+D$126>0,"tak","nie") -> nie | F126: =IF(C126=ZADANIOWY!L943,"","blad") ->  | G126: =IF(D126=ZADANIOWY!M943,"","blad") -> 
E127: =IF(C$126+D$126>0,"tak","nie") -> nie
A128: B/II/4/1 | B128: Przygotowanie nieruchomości komunalnych przeznaczonych m.in. do zbycia i zamiany - zadanie 1 | C128: 0 | D128: 0 | E128: =IF(C$128+D$128>0,"tak","nie") -> nie | F128: =IF(C128=ZADANIOWY!L944,"","blad") ->  | G128: =IF(D128=ZADANIOWY!M944,"","blad") -> 
E129: =IF(C$128+D$128>0,"tak","nie") -> nie
B130: Dysponent: Wydział Zarządzania Nieruchomościami | E130: nie
E131: nie
B132: Klasyfikacja: rozdział: 70005 | E132: nie
E133: nie
B134: opis | E134: nie
E135: nie
A136: B/II/4/2 | B136: Regulacja stanów prawnych nieruchomości, w tym odszkodowania - zadanie 2 | C136: 0 | D136: 0 | E136: =IF(C$136+D$136>0,"tak","nie") -> nie | F136: =IF(C136=ZADANIOWY!L984,"","blad") ->  | G136: =IF(D136=ZADANIOWY!M984,"","blad") -> 
E137: =IF(C$136+D$136>0,"tak","nie") -> nie
B138: Dysponent 1: Wydział Zarządzania Nieruchomościami | E138: nie
E139: nie
B140: Klasyfikacja: rozdział: 70005 | E140: nie
E141: nie
B142: opis | E142: nie
E143: nie
B144: Dysponent 2: Wydział Zasobów Lokalowych | E144: nie
E145: nie
B146: Klasyfikacja: rozdział: 70005 | E146: nie
E147: nie
B148: opis | E148: nie
E149: =IF(C$72+D$72>0,"tak","nie") -> nie
A150: II/5 | B150: Pozostały zasób komunalny - program 5 | C150: =C152+C165+C179 -> 0 | D150: =D152+D165+D179 -> 23149 | E150: =IF(C$150+D$150>0,"tak","nie") -> tak | F150: =IF(C150=ZADANIOWY!L1041,"","blad") ->  | G150: =IF(D150=ZADANIOWY!M1041,"","blad") -> 
E151: =IF(C$150+D$150>0,"tak","nie") -> tak
A152: B/II/5/1 | B152: Zarządzanie lokalami użytkowymi i ich eksploatacja - zadanie 1 | C152: 0 | D152: 0 | E152: =IF(C$152+D$152>0,"tak","nie") -> nie | F152: =IF(C152=ZADANIOWY!L1042,"","blad") ->  | G152: =IF(D152=ZADANIOWY!M1042,"","blad") -> 
E153: =IF(C$152+D$152>0,"tak","nie") -> nie
B154: Dysponent 1: Zakład Gospodarowania Nieruchomościami | E154: nie | F154: =IF(C154=ZADANIOWY!L1044,"","blad") ->  | G154: =IF(D154=ZADANIOWY!M1044,"","blad") -> 
E155: nie | F155: =IF(C155=ZADANIOWY!L1045,"","blad") ->  | G155: =IF(D155=ZADANIOWY!M1045,"","blad") -> 
B156: Klasyfikacja: rozdział: 70005 | E156: nie | F156: =IF(C156=ZADANIOWY!L1046,"","blad") ->  | G156: =IF(D156=ZADANIOWY!M1046,"","blad") -> 
E157: nie | F157: =IF(C157=ZADANIOWY!L1047,"","blad") ->  | G157: =IF(D157=ZADANIOWY!M1047,"","blad") -> 
E158: nie | F158: =IF(C158=ZADANIOWY!L1048,"","blad") ->  | G158: =IF(D158=ZADANIOWY!M1048,"","blad") -> 
B159: Dysponent: Zarząd Terenów Publicznych | E159: nie | F159: =IF(C159=ZADANIOWY!L1049,"","blad") ->  | G159: =IF(D159=ZADANIOWY!M1049,"","blad") -> 
E160: nie | F160: =IF(C160=ZADANIOWY!L1050,"","blad") ->  | G160: =IF(D160=ZADANIOWY!M1050,"","blad") -> 
B161: Klasyfikacja: rozdział: 70005 | E161: nie
E162: nie
E163: nie | F163: =IF(C163=ZADANIOWY!L1053,"","blad") ->  | G163: =IF(D163=ZADANIOWY!M1053,"","blad") -> 
E164: nie
A165: B/II/5/2 | B165: Remonty lokali użytkowych - zadanie 2 | C165: 0 | D165: =D167 -> 23149 | E165: =IF(C$165+D$165>0,"tak","nie") -> tak | F165: =IF(C165=ZADANIOWY!L1094,"","blad") ->  | G165: =IF(D165=ZADANIOWY!M1094,"","blad") -> 
E166: =IF(C$165+D$165>0,"tak","nie") -> tak
B167: Dysponent: Zakład Gospodarowania Nieruchomościami | C167: 0 | D167: 23149 | E167: tak
E168: tak
B169: Klasyfikacja: rozdział: 70005 | E169: tak
E170: tak
B171: Zwiększenie planu wydatków z tytułu świadczeń odszkodowawczych w ramach Warszawskiego Programu Ubezpieczeniowego zgodnie z pismami: BA-ZE.3221.1.2024.PKA (45 PKA.BA-ZE) z 22.08.2024, (75 PKA.BA-ZE) z 30.08.2024, (221 PKA.BA-ZE) z 13.11.2024, (273 PKA.BA-ZE) z 11.12.2024 oraz BA-ZE.3221.1.2025.PKA z 09.01.2025 z przeznaczeniem na remonty lokali użytkowych. | E171: tak
E172: tak
B173: Dysponent 2: Zarząd Terenów Publicznych | E173: tak
E174: tak
B175: Klasyfikacja: rozdział: 70005 | E175: tak
E176: tak
E177: tak
E178: tak
A179: B/II/5/6 | B179: Zarządzanie pozostałymi nieruchomościami - zadanie 6 | C179: 0 | D179: 0 | E179: =IF(C$179+D$179>0,"tak","nie") -> nie | F179: =IF(C179=ZADANIOWY!L1131,"","blad") ->  | G179: =IF(D179=ZADANIOWY!M1131,"","blad") -> 
E180: =IF(C$179+D$179>0,"tak","nie") -> nie | F180: =IF(C180=ZADANIOWY!L1109,"","blad") ->  | G180: =IF(D180=ZADANIOWY!M1109,"","blad") -> 
B181: Dysponent: Wydział Prawny | E181: nie | F181: =IF(C181=ZADANIOWY!L1110,"","blad") ->  | G181: =IF(D181=ZADANIOWY!M1110,"","blad") -> 
E182: nie | F182: =IF(C182=ZADANIOWY!L1111,"","blad") ->  | G182: =IF(D182=ZADANIOWY!M1111,"","blad") -> 
B183: Klasyfikacja: rozdział: 70005 | E183: nie | F183: =IF(C183=ZADANIOWY!L1112,"","blad") ->  | G183: =IF(D183=ZADANIOWY!M1112,"","blad") -> 
E184: nie | F184: =IF(C184=ZADANIOWY!L1113,"","blad") ->  | G184: =IF(D184=ZADANIOWY!M1113,"","blad") -> 
B185: opis | E185: nie | F185: =IF(C185=ZADANIOWY!L1114,"","blad") ->  | G185: =IF(D185=ZADANIOWY!M1114,"","blad") -> 
E186: nie | F186: =IF(C186=ZADANIOWY!L1115,"","blad") ->  | G186: =IF(D186=ZADANIOWY!M1115,"","blad") -> 
B187: Dysponent 2: Wydział Administracyjno-Gospodarczy | E187: nie | F187: =IF(C187=ZADANIOWY!L1116,"","blad") ->  | G187: =IF(D187=ZADANIOWY!M1116,"","blad") -> 
E188: nie | F188: =IF(C188=ZADANIOWY!L1117,"","blad") ->  | G188: =IF(D188=ZADANIOWY!M1117,"","blad") -> 
B189: Klasyfikacja: rozdział: 70005 | E189: nie | F189: =IF(C189=ZADANIOWY!L1118,"","blad") ->  | G189: =IF(D189=ZADANIOWY!M1118,"","blad") -> 
E190: nie | F190: =IF(C190=ZADANIOWY!L1119,"","blad") ->  | G190: =IF(D190=ZADANIOWY!M1119,"","blad") -> 
B191: opis | E191: nie | F191: =IF(C191=ZADANIOWY!L1120,"","blad") ->  | G191: =IF(D191=ZADANIOWY!M1120,"","blad") -> 
E192: nie | F192: =IF(C192=ZADANIOWY!L1121,"","blad") ->  | G192: =IF(D192=ZADANIOWY!M1121,"","blad") -> 
A193: III | B193: 2.2.3. GOSPODARKA KOMUNALNA I OCHRONA ŚRODOWISKA | C193: =SUM(C195,C261,C277,C317) -> 0 | D193: =SUM(D195,D261,D277,D317) -> 0 | E193: =IF(C$193+D$193>0,"tak","nie") -> nie | F193: =IF(C193=ZADANIOWY!L1322,"","blad") ->  | G193: =IF(D193=ZADANIOWY!M1322,"","blad") -> 
E194: =IF(C$193+D$193>0,"tak","nie") -> nie
A195: III/1 | B195: Utrzymanie porządku i czystości - program 1 | C195: =C197+C215+C223+C233+C241 -> 0 | D195: =D197+D215+D223+D233+D241 -> 0 | E195: =IF(C$195+D$195>0,"tak","nie") -> nie | F195: =IF(C195=ZADANIOWY!L1323,"","blad") ->  | G195: =IF(D195=ZADANIOWY!M1323,"","blad") -> 
E196: =IF(C$195+D$195>0,"tak","nie") -> nie
A197: B/III/1/1 | B197: Oczyszczanie miasta - zadanie 1 | C197: =C199+C207 -> 0 | D197: =D199+D207 -> 0 | E197: =IF(C$197+D$197>0,"tak","nie") -> nie | F197: =IF(C197=ZADANIOWY!L1324,"","blad") ->  | G197: =IF(D197=ZADANIOWY!M1324,"","blad") -> 
E198: =IF(C$197+D$197>0,"tak","nie") -> nie
A199: B/III/1/1/1 | B199: Zimowe oczyszczanie ulic | C199: 0 | D199: 0 | E199: =IF(C$199+D$199>0,"tak","nie") -> nie | F199: =IF(C199=ZADANIOWY!L1325,"","blad") ->  | G199: =IF(D199=ZADANIOWY!M1325,"","blad") -> 
E200: =IF(C$199+D$199>0,"tak","nie") -> nie
B201: Dysponent: Zarząd Terenów Publicznych | E201: nie
E202: nie
B203: Klasyfikacja: rozdział: 60016 | E203: nie
... 1170 more rows

Sheet uzasadnienie inwestycje
B1: Zmiany w opisie wydatków inwestycyjnych w układzie zadań
C2: 2025
C3: Zmniejszenia | D3: Zwiększenia
B4: OGÓŁEM | C4: =SUM(C7+C48+C66+C202) -> 6832600 | D4: =SUM(D48+D66+D202+D182+D7) -> 15155483
B7: ŁAD PRZESTRZENNY I GOSPODARKA NIERUCHOMOŚCIAMI | C7: =SUM(C32+C9) -> 6832600 | D7: =SUM(D32+D9) -> 3223278
B9: Mieszkaniowy zasób komunalny oraz pozostałe zadania związane z zapewnieniem lokali mieszkalnych | C9: =SUM(C11:C25) -> 6832600 | D9: =SUM(D11:D25) -> 3059179
B11: Dostosowanie nieruchomości Mazowiecka 12 - oficyna - do stanu technicznego zgodnego z obowiązującymi przepisami bezpieczeństwa - zadanie nr C/ŚRD/II/P3/20 | C11: 0 | D11: 1495
B13: Wnioskuje się o przywrócenie środków finansowych wynikających ze zwrotu podatku VAT na realizację zadania pn. "Dostosowanie nieruchomości Mazowiecka 12 - oficyna-do stanu technicznego zgodnego z obowiązującymi przepisami bezpieczeństwa" w wysokości 1.495 zł.
B15: Dysponent: Zakład Gospodarowania Nieruchomościami
B16: Klasyfikacja: rozdział 70007
B18: Modernizacja budynków wraz z infrastrukturą towarzyszącą w obrębie zespołu zabudowy na Jazdowie z uwzględnieniem rozwiązań proekologicznych - zadanie nr C/ŚRD/II/P3/22 | C18: 0 | D18: 3000000
B20: Wnioskuje się o zwiększenie środków na realizację zadania pn. "Modernizacja budynków wraz z infrastrukturą towarzyszącą w obrębie zespołu zabudowy na Jazdowie z uwzględnieniem rozwiązań proekologicznych" o kwotę 3.000.000 zł na 2025 rok. Przedłużające się uzgodnienia ze wszystkimi zainteresowanymi stronami spowodowały, że umowy na wykonanie dokumentacji projektowej zostały podpisane później niż początkowo było to planowane. Źródłem finansowania są środki Dzielnicy Śródmieście, pochodzące z przyznanego limitu środków majątkowych.
B22: Dysponent: Zakład Gospodarowania Nieruchomościami
B23: Klasyfikacja: rozdział 70007
B25: Przebudowa budynku przy ul. Solec 103 - zadanie nr C/ŚRD/II/P3/24 | C25: 6832600 | D25: =57684 -> 57684
B27: Wnioskuje się o przywrócenie środków w wysokości 57.684 zł wynikających ze zwrotu podatku VAT w 2024 r. na zadanie pn. "Przebudowa budynku przy ul. Solec 103" i zmniejszenie zaplanowanych na 2025 rok środków finansowych w kwocie 6.832.600 zł i ich przesunięciem na 2026 rok.
B29: Dysponent: Zakład Gospodarowania Nieruchomościami
B30: Klasyfikacja: rozdział 70007
B32: Pozostały zasób komunalny - 5 program | C32: =SUM(C34:C41) -> 0 | D32: =SUM(D34:D41) -> 164099
B34: Zakupy inwestycyjne dla Zakładu Gospodarowania Nieruchomościami C/ŚRD/II/P5/9 | C34: 0 | D34: 39099
B36: Wnioskuje się o przedłużenie realizacji zadania pn. "Zakupy inwestycyjne dla Zakładu Gospodarowania Nieruchomościami" na 2025 rok z jednoczesnym przywróceniem niewykorzystanych środków finansowych wynikających ze zwrotu podatku VAT w 2024 r. w wysokości 39.099 zł. Za przywrócone środki planuje się zakup oprogramowania komputerowego i altan śmietnikowych.
B38: Dysponent: Zakład Gospodarowania Nieruchomościami
B39: Klasyfikacja: rozdział 70004
B41: Doposażenie budynku przy Al. Jerozolimskich 30 w windę osobową wraz z udogodnieniami dla osób z niepełnosprawnościami - zadanie nr C/ŚRD/II/P5/… | C41: 0 | D41: 125000
B43: Wnioskuje się o wprowadzenie na lata 2025-2026 nowego dwuletniego zadania pod nazwą: „Doposażenie budynku przy Al. Jerozolimskich 30 w windę osobową wraz z udogodnieniami dla osób z niepełnosprawnościami” na kwotę 1.950.000 zł, w tym 125.000 zł na 2025 rok z przeznaczeniem na wykonanie dokumentacji projektowej. W ramach zadania planuje się wykonać: zaprojektowanie i budowę szybu windowego oraz zaprojektowanie, montaż i uruchomienie nowej windy osobowej z dostosowaniem do osób z niepełnosprawnościami. Źródłem finansowania są środki Dzielnicy Śródmieście, pochodzące z przyznanego limitu środków majątkowych.
B45: Dysponent: Zakład Gospodarowania Nieruchomościami
B46: Klasyfikacja: rozdział 70005
B48: GOSPODARKA KOMUNALNA I OCHRONA ŚRODOWISKA | C48: =C50 -> 0 | D48: =D50 -> 5025430
B50: Pozostałe zadania z zakresu gospodarki komunalnej - 4 program | C50: =SUM(C52:C65) -> 0 | D50: =SUM(D52:D65) -> 5025430
B52: Nowe Centrum Warszawy (obszar ul. Chmielnej)- zadanie nr C/ŚRD/III/P4/31 | C52: 0 | D52: 4775430
B54: Wnioskuje się o przywrócenie na 2025 rok niewydatkowanych w 2024 roku środków w wysokości 4.775.430 zł na realizację zadania pn. ''Nowe Centrum Warszawy (obszar ul. Chmielnej) ". Planowana wartość zadania w latach 2022-2025 nie ulega zmianie i wynosi 29.955.000 zł. Środki niewykorzystane w zadaniu będą konieczne w związku z roszczeniem wykonawcy ulicy Chmielnej dotyczącym zwrotu kosztów pośrednich i bezpośrednich związanych z przedłużeniem terminu realizacji umowy oraz na drobne roboty uzupełniające, związane z wyposażeniem ulicy.
B56: Dysponent: Zarząd Terenów Publicznych
B57: Klasyfikacja: rozdział 90095
B59: Doświetlenie terenów i podwórek należących na terenie dzielnicy - zadanie nr C/ŚRD/III/P4/49 | C59: 0 | D59: 250000
B61: Wnioskuje się o zwiększenie środków finansowych na realizacje zadania pn. "Doświetlenie terenów i podwórek na terenie dzielnicy" o kwotę 250.000 zł. Zwiększenie środków wynika z rozszerzonego zakresu prac. Pierwotnie zakładano realizację inwestycji w 3 lokalizacjach, obecnie jest to 6 lokalizacji. Źródłem finansowania są środki Dzielnicy Śródmieście, pochodzące z przyznanego limitu środków majątkowych.
B63: Dysponent: Zakład Gospodarowania Nieruchomościami
B64: Klasyfikacja: rozdział 90095
B66: EDUKACJA | C66: =C68 -> 0 | D66: =D68 -> 6130330
B68: Oświata i edukacyjna opieka wychowawcza - 1 program | C68: =SUM(C70:C177) -> 0 | D68: =SUM(D70:D177) -> 6130330
B70: Wykonanie przyłącza wody do budynku Przedszkola nr 16 przy ul. Górskiego 5 -zadanie nr C/ŚRD/V/P1/ | C70: 0 | D70: 700000
B72: Wnioskuje się o wprowadzenie nowego, jednorocznego zadania pn. "Wykonanie przyłącza wody do budynku Przedszkola nr 16 przy ul. Górskiego 5 " w kwocie 700.000 zł. W ramach zadania zostanie wybudowane odrębne przyłącze wodociągowe od budynku Przedszkola nr 16 bezpośrednio do sieci wodnej MPWiK. Obecnie Przedszkole nr 16 nie ma własnego przyłącza, a korzysta z przyłącza doprowadzającego wodę do instalacji wewnętrznej Wspólnoty Mieszkaniowej nieruchomości przy ul. Chmielnej 14, która nie wyraża zgody na dalsze korzystanie z jej przyłącza. Źródłem finansowania są środki Dzielnicy Śródmieście, pochodzące z przyznanego limitu środków majątkowych.
B74: Dysponent: Wydział Inwestycji
B75: Klasyfikacja: rozdział 80104
B77: Budowa hali sportowej przy Szkole Podstawowej nr 158, ul. Ciasna-zadanie nr C/ŚRD/V/P1/77 | C77: 0 | D77: 950000
B79: Wnioskuje się o zwiększenie środków finansowych w roku 2025 na zakończenie realizacji zadania pod nazwą: "Budowa hali sportowej przy Szkole Podstawowej nr 158, ul. Ciasna" i przyznanie na ten cel kwoty 950.000 zł. Środki zostaną wykorzystane na wyposażenie ruchome sali sportowej i zaplecze sali sportowej. Źródłem finansowania są środki Dzielnicy Śródmieście pochodzące z przyznanego limitu środków majątkowych.
B81: Dysponent: Wydział Inwestycji
B82: Klasyfikacja: rozdział 80101
B84: Przebudowa boiska sportowego przy Szkole Podstawowej nr 48 przy ul. Sempołowskiej 4-zadanie nr C/ŚRD/V/P1/69 | C84: 0 | D84: 0
B86: Wnioskuje się o zmianę nazwy zadania pod nazwą: "Zadaszenie boiska sportowego przy Szkole Podstawowej nr 48 przy ul. Sempołowskiej" na "Przebudowa boiska sportowego przy Szkole Podstawowej nr 48 przy ul. Sempołowskiej" zgodnie z wnioskiem placówki. Brak możliwości uzgodnienia projektu z gestorem ciepła, istniejący schron i intensywna zabudowa śródmiejska wykluczają budowę zadaszenia ogrzewanego innym czynnikiem.
B88: Dysponent: Wydział Inwestycji
B89: Klasyfikacja: rozdział 80101
B91: Budowa windy w budynku Zespołu Szkół 22 przy ul. Konopczyńskiego 4 -zadanie nr C/ŚRD/V/P1/…. | C91: 0 | D91: 1000000
B93: Wnioskuje się o wprowadzenie w 2025 roku nowego, jednorocznego zadania pn. "Budowa windy w budynku Zespołu Szkół 22 przy ul. Konopczyńskiego 4" w kwocie 1.000.000 zł. W ramach zadania planuje się budowę wewnętrznego szybu windowego z zakupem i montażem windy przystosowanej do potrzeb osób z niepełnosprawnościami. Źródłem finansowania są środki Dzielnicy Śródmieście, pochodzące z przyznanego limitu środków majątkowych.
B95: Dysponent: Wydział Inwestycji
B96: Klasyfikacja: rozdział 80115
B98: Zakupy inwestycyjne dla Liceów Ogólnokształcących-zadanie nr C/ŚRD/V/P1/ | C98: 0 | D98: 67000
B100: Wnioskuje się o wprowadzenie nowego, jednorocznego zadania pod nazwą: "Zakupy inwestycyjne dla Liceów Ogólnokształcących" w kwocie 67 000,00 zł. W ramach zadania planuje się zakup i montaż nowych kamer wizyjnych w strategicznych miejscach w budynku LXXV Liceum Ogólnokształcącym przy ul. Czerniakowskiej 128 w Warszawie, co poprawi poziom bezpieczeństwa uczniów. Źródłem finansowania są środki Dzielnicy Śródmieście, pochodzące z przyznanego limitu środków majątkowych.
B102: Dysponent: Dzielnicowe Biuro Finansów Oświaty
B103: Klasyfikacja: rozdział 80120
B105: Budowa windy w budynku Szkoły Podstawowej nr 32 przy ul. Niskiej 5 -zadanie nr C/ŚRD/V/P1/…. | C105: 0 | D105: 60000
B107: Wnioskuje się o wprowadzenie nowego, dwuletniego zadania pn. "Budowa windy w budynku Szkoły Podstawowej nr 32 przy ul. Niskiej 5" w kwocie 60.000 zł na rok 2025. W ramach zadania planuje się budowę zewnętrznego szybu windowego oraz zakup i montaż windy. Źródłem finansowania są środki Dzielnicy Śródmieście, pochodzące z przyznanego limitu środków majątkowych.
B109: Dysponent: Wydział Inwestycji
B110: Klasyfikacja: rozdział 80101
B112: Budowa placu zabaw przy Szkole Podstawowej 32 przy ul. Niskiej 5 -zadanie nr C/ŚRD/V/P1/…. | C112: 0 | D112: 20000
B114: Wnioskuje się o wprowadzenie nowego, dwuletniego zadania pn. "Budowa placu zabaw przy Szkole Podstawowej 32 przy ul. Niskiej 5" w wysokości 20.000 zł na rok 2025. W ramach zadania planuje się wykonanie dokumentacji projektowej i budowę placu zabaw dla dzieci, uczęszczających do szkoły. Konieczność wykonania ww. zadania wynika z planowanego przeniesienia oddziałów dzieci z klas I-III z budynku mieszczącego się przy ul. Meiselsa do budynku Szkoły Podstawowej przy ul. Niskiej 5. Źródłem finansowania są środki Dzielnicy Śródmieście, pochodzące z przyznanego limitu środków majątkowych.
B116: Dysponent: Wydział Inwestycji
B117: Klasyfikacja: rozdział 80101
B119: Przebudowa sali sportowej przy Szkole Podstawowej nr 220 przy ul. Jana Pawła II 26A -zadanie nr C/ŚRD/V/P1/…… | D119: 200000
B121: Wnioskuje się o wprowadzenie nowego, dwuletniego zadania pn. "Przebudowa sali sportowej przy Szkole Podstawowej nr 220 przy ul. Jana Pawła II 26A " z kwotą 200.000 na 2025 rok na rozpoczęcie robót budowlanych. Źródłem finansowania są środki Dzielnicy Śródmieście pochodzące z przyznanego limitu środków majątkowych.
B123: Dysponent: Wydział Inwestycji
B124: Klasyfikacja: rozdział 80101
B126: Dostosowanie budynku II Liceum Ogólnokształcącego im. Stefana Batorego przy ul. Myśliwieckiej 6 do przepisów ppoż. - zadanie nr C/ŚRD/V/P1/….. | C126: 0 | D126: 2000000
B128: Wnioskuje się o wprowadzenie nowego, dwuletniego zadania pn. "Dostosowanie budynku II Liceum Ogólnokształcącego im. Stefana Batorego przy ul. Myśliwieckiej 6 do przepisów ppoż.". Komendant Miejski Państwowej Straży Pożarnej Decyzjami MZ.52800.1931-115.5298.2023.GS i MZ.52800.1931-1.16.5299.2023.GS nałożył obowiązek dostosowania budynku do obowiązujących przepisów ppoż. W tym celu konieczna jest dobudowa dwóch klatek schodowych, systemu SSP, wydzielenia stref pożarowych oraz wykonania drogi pożarowej. W roku 2025 planuje się wykonanie stanu surowego dobudowanych klatek schodowych stanowiących drogi ewakuacyjne z obiektu. Źródłem finansowania są środki Dzielnicy Śródmieście, pochodzące z przyznanego limitu środków majątkowych.
B130: Dysponent: Wydział Inwestycji
B131: Klasyfikacja: rozdział 80120
B133: Przebudowa lokali mieszkalnych na sale edukacyjne w Szkołach Podstawowych -zadanie nr C/ŚRD/V/P1/...…. | C133: 0 | D133: 140000
B135: Wnioskuje się o wprowadzenie nowego, czteroletniego zadania pn. "Przebudowa lokali mieszkalnych na sale edukacyjne w Szkołach Podstawowych ". W związku z uzyskaniem Decyzji o zmianie sposobu użytkowania dawnych lokali mieszkalnych planuje się wykonanie przebudowy w roku 2025 w formule: "Zaprojektuj i wybuduj". W tym celu wnioskuje się również o zmianę nazwy zadania na: "Przebudowa lokali mieszkalnych na sale edukacyjne w Szkołach Podstawowych ". Źródłem finansowania są środki Dzielnicy Śródmieście, pochodzące z przyznanego limitu środków majątkowych.
B137: Dysponent: Wydział Inwestycji
B138: Klasyfikacja: rozdział 80101
B140: Przebudowa lokali mieszkalnych na sale edukacyjne w Przedszkolach -zadanie nr C/ŚRD/V/P1/...…. | C140: 0 | D140: 150000
B142: Wnioskuje się o wprowadzenie nowego, dwuletniego zadania pn. "Przebudowa lokali mieszkalnych na sale edukacyjne w Przedszkolach". W związku z uzyskaniem Decyzji o zmianie sposobu użytkowania dawnych lokali mieszkalnych planuje się wykonanie przebudowy w roku 2025 w formule: "Zaprojektuj i wybuduj". W tym celu wnioskuje się również o zmianę nazwy zadania na: "Przebudowa lokali mieszkalnych na sale edukacyjne w Przedszkolach". Źródłem finansowania są środki Dzielnicy Śródmieście, pochodzące z przyznanego limitu środków majątkowych.
B144: Dysponent: Wydział Inwestycji
B145: Klasyfikacja: rozdział 80104
B147: Przebudowa lokali mieszkalnych na sale edukacyjne w Technikach -zadanie nr C/ŚRD/V/P1/...…. | C147: 0 | D147: 150000
B149: Wnioskuje się o wprowadzenie nowego, dwuletniego zadania pn. "Przebudowa lokali mieszkalnych na sale edukacyjne w Technikach". W związku z uzyskaniem Decyzji o zmianie sposobu użytkowania dawnych lokali mieszkalnych planuje się wykonanie przebudowy w roku 2025 w formule: "Zaprojektuj i wybuduj". W tym celu wnioskuje się również o zmianę nazwy zadania na: "Przebudowa lokali mieszkalnych na sale edukacyjne w Technikach". Źródłem finansowania są środki Dzielnicy Śródmieście, pochodzące z przyznanego limitu środków majątkowych.
B151: Dysponent: Wydział Inwestycji
B152: Klasyfikacja: rozdział 80115
B154: Przebudowa lokali mieszkalnych na sale edukacyjne w Liceach Ogólnokształcących -zadanie nr C/ŚRD/V/P1/...…. | C154: 0 | D154: 145000
B156: Wnioskuje się o wprowadzenie nowego, dwuletniego zadania pn. "Przebudowa lokali mieszkalnych na sale edukacyjne w Liceach Ogólnokształcących ". W związku z uzyskaniem Decyzji o zmianie sposobu użytkowania dawnych lokali mieszkalnych planuje się wykonanie przebudowy w roku 2025 w formule: "Zaprojektuj i wybuduj". W tym celu wnioskuje się również o zmianę nazwy zadania na: "Przebudowa lokali mieszkalnych na sale edukacyjne w Liceach Ogólnokształcących". Źródłem finansowania są środki Dzielnicy Śródmieście, pochodzące z przyznanego limitu środków majątkowych.
B158: Dysponent: Wydział Inwestycji
B159: Klasyfikacja: rozdział 80120
B161: Budowa boiska sportowego przy Zespole Szkół Licealnych i Ekonomicznych nr 1 przy ul. Stawki 10 -zadanie nr C/ŚRD/V/P1/...…. | C161: 0 | D161: 70000
B163: Wnioskuje się o wprowadzenie nowego, dwuletniego zadania pn. "Budowa boiska sportowego przy Zespole Szkół Licealnych i Ekonomicznych nr 1 przy ul. Stawki 10". Konieczna jest poprawa warunków technicznych, ergonomicznych, BHP i higienicznych związanych z prowadzeniem zajęć sportowych i rekreacyjnych. Planowana inwestycja obejmuje budowę boiska (wielofunkcyjnego: do piłki ręcznej, siatkówki, koszykówki) oraz bieżni, uporządkowanie istniejącej zieleni i terenu zielonego, wymianę zdegradowanej nawierzchni na patio szkolnym. Źródłem finansowania są środki Dzielnicy Śródmieście, pochodzące z przyznanego limitu środków majątkowych.
B165: Dysponent: Wydział Inwestycji
B166: Klasyfikacja: rozdział 80115
B168: Panele fotowoltaiczne na budynku Zespołu Szkół Poligraficznych przy ul. Stawki 14- zadanie nr C/ŚRD/V/P1/94 | D168: 328330
B170: Wnioskuje się o przywrócenie na rok 2025 niewykorzystanych środków z roku 2024 w kwocie 406.470 zł na realizację zadania pn. "Panele fotowoltaiczne na budynku Zespołu Szkół Poligraficznych przy ul. Stawki 14" i jednoczesne przesunięcie kwoty 78.140 zł na wykonanie zadania pn. "Panele fotowoltaiczne na budynku Przedszkola nr 13 przy ul. Schillera 6A". W trakcie trwania procedur przetargowych dokonano trzech kolejnych wyborów Wykonawców. Po ostatnim wyborze, Wykonawca złożył oświadczenie o rezygnacji z zawarcia umowy. Uwzględniając obowiązujące terminy, wynikające z Ustawy PZP zdecydowano o unieważnieniu postępowania z uwagi na brak możliwości realizacji zadania w roku 2024. Zadanie finansowane ze środków Biura Infrastruktury w ramach programu SMOG.
B172: Dysponent: Wydział Inwestycji
B173: Klasyfikacja: rozdział 80115
B175: Panele fotowoltaiczne na budynku Przedszkola nr 13 przy ul. Schillera 6A- zadanie nr C/ŚRD/V/P1/93 | C175: 0 | D175: 150000
B177: Wnioskuje się o przywrócenie na rok 2025 niewykorzystanych środków z roku 2024 w kwocie 71.860 zł na realizację zadania pn. "Panele fotowoltaiczne na budynku Przedszkola nr 13 przy ul. Schillera 6A" i jednoczesne przesunięcie kwoty 78.140 zł z zadania pn. "Panele fotowoltaiczne na budynku Zespołu Szkół Poligraficznych przy ul. Stawki 14". Zadanie nie zostało wykonane w 2024 r. w związku z niepodjęciem przez Wykonawcę robót budowlanych i niewywiązaniem się z warunków Umowy. W dniu 30.12.2024 r. wystosowano do Wykonawcy oświadczenie o odstąpieniu od Umowy. Zadanie finansowane ze środków Biura Infrastruktury w ramach programu SMOG.
B179: Dysponent: Wydział Inwestycji
B180: Klasyfikacja: rozdział 80104
B182: KULTURA I OCHRONA DZIEDZICTWA KULTUROWEGO | C182: =C184 -> 0 | D182: =D184 -> 480000
B184: Działalność kulturalna | C184: =SUM(C186:C193) -> 0 | D184: =SUM(D186:D193) -> 480000
B186: Przebudowa instalacji klimatyzacji w Domu Kultury „Śródmieście "przy ul. Smolnej 9 w Warszawie -Etap II" - zadanie nr C/ŚRD/VII/P3/…… | C186: 0 | D186: 330000
B188: Wnioskuje się o wprowadzenie nowego, jednorocznego zadania pn. "Przebudowa instalacji klimatyzacji w Domu Kultury „Śródmieście” przy ul. Smolnej 9 w Warszawie - Etap II" w wysokości 330.000 zł. Przebudowa będzie stanowić drugi etap prac wykonywanych w latach 2022 i 2023, będzie dotyczyła sali tanecznej, kawiarenki i kuchni. Źródłem finansowania są środki Dzielnicy Śródmieście pochodzące z przyznanego limitu środków majątkowych.
B190: Dysponent: Dom Kultury Śródmieście
B191: Klasyfikacja: rozdział 92109
B193: Przebudowa lokalu Biblioteki Publicznej przy ulicy Anielewicza 2 - zadanie nr C/ŚRD/VII/P3/…… | C193: 0 | D193: 150000
B195: Wnioskuje się o wprowadzenie nowego, trzyletniego zadania pn. "'Przebudowa lokalu Biblioteki Publicznej przy ulicy Anielewicza 2" w wysokości 150.000 zł. Planowany zakres prac obejmuje w 2025 roku wykonanie projektu aranżacji wnętrza i wykonanie programu funkcjonalno-użytkowego lokalu. Źródłem finansowania są środki Dzielnicy Śródmieście pochodzące z przyznanego limitu środków majątkowych.
B197: Dysponent: Biblioteka Publiczna
B198: Klasyfikacja: rozdział 92116
B202: ZARZĄDZANIE STRUKTURAMI SAMORZĄDOWYMI | C202: =C204 -> 0 | D202: =D204 -> 296445
B204: Funkcjonowanie Urzędu Miasta - 10 program | C204: =SUM(C207:C214) -> 0 | D204: =SUM(D207:D214) -> 296445
B207: Zakupy inwestycyjne dla Urzędu Dzielnicy - zadanie nr C/ŚRD/X/P2/ | C207: 0 | D207: 26445
B209: Wnioskuje się o wprowadzenie nowego, jednorocznego zadania pn. "'Zakupy inwestycyjne dla Urzędu Dzielnicy" w kwocie 26.445 zł. W ramach zadania planuje się wykonanie układu kompensacji mocy biernej w budynku Urzędu m.st. Warszawy Dzielnicy Śródmieście przy ul. Nowogrodzkiej 43. Kompensacja mocy biernej pozwoli poprawić jakość energii, zmniejszyć jej zużycie, wykorzystać potencjał urządzeń generujących i zasilających oraz zmniejszyć koszty energii elektrycznej dla użytkownika. Źródłem finansowania są środki Dzielnicy Śródmieście pochodzące z przyznanego limitu środków majątkowych.
B211: Dysponent: Wydział Administracyjno-Gospodarczy
B212: Klasyfikacja: rozdział 75023
B214: Wykonanie hydroforni pożarowej na poziomie 1 w budynku Urzędu Dzielnicy przy ul. Nowogrodzkiej 43 - zadanie C/ŚRD/X/P2/….. | C214: 0 | D214: 270000
B216: Wnioskuje się o wprowadzenie nowego, jednorocznego zadania pn. "Wykonanie hydroforni pożarowej na poziomie 1 w budynku Urzędu Dzielnicy przy ul. Nowogrodzkiej 43" w kwocie 270.000 zł. W związku z corocznym badaniem wydajności i przeglądem hydrantów wewnętrznych oraz brakiem właściwej ochrony przeciwpożarowej, przebudowa obecnie funkcjonującego pomieszczenia przyłącza wodociągowego w celu wykonania hydroforni pożarowej jest niezbędna. Ww. konieczność została potwierdzona protokołem przeglądu z 27.03.2024 r., w którym stwierdzono, iż badane hydranty na terenie obiektu nie spełniają wymagania wydajności oraz ciśnienia hydrodynamicznego. Zadanie finansowane z przyznanego limitu środków majątkowych.
B218: Dysponent: Wydział Administracyjno-Gospodarczy
B219: Klasyfikacja: rozdział 75023

Sheet WNIOSEK DOCHODY
L1: Załącznik Nr 1 do Uchwały Nr 58/12/2025 Rady Dzielnicy Śródmieście m.st. Warszawy z dnia 18.02.2025 r.
A7: WNIOSEK W SPRAWIE ZMIAN W PLANIE DOCHODÓW NA 2025 ROK
M9: w zł
A10: Stanowisko finansowe | C10: Pozycje finansowe | F10: Obszar funkcjonalny | G10: Program budżetowy | I10: Plan wg stanu na dzień 17.01.2025 | J10: Zaangażowanie */ Wykonanie * wg stanu na dzień | K10: Proponowane zmiany | M10: Plan po zmianach
A11: Nazwa dysponenta | B11: Kod | C11: Dział | D11: Rozdział | E11: § | F11: Kod | G11: Nazwa | H11: Kod | K11: zmniejszenia | L11: zwiększenia
A15: Zakład Gospodarowania Nieruchomościami | B15: J.09.000 | C15: 700.70005.D0630+000 | F15: GMMW | G15: pozostałe wpływy z różnych opłat | H15: DWB/6/RO/PO | I15: 0 | K15: 0 | L15: 157200 | M15: 157200
A16: Zakład Gospodarowania Nieruchomościami | B16: J.09.000 | C16: 700.70005.D0630+000 | F16: GKZP | G16: pozostałe wpływy z różnych opłat | H16: DWB/6/RO/PO | I16: 0 | K16: 0 | L16: 100000 | M16: 100000
A17: Zakład Gospodarowania Nieruchomościami | B17: J.09.000 | C17: 700.70007.D0630+000 | F17: GMMW | G17: pozostałe wpływy z różnych opłat | H17: DWB/6/RO/PO | I17: 0 | K17: 0 | L17: 185000 | M17: 185000
A18: Zakład Gospodarowania Nieruchomościami | B18: J.09.000 | C18: 700.70007.D0630+000 | F18: GKZP | G18: pozostałe wpływy z różnych opłat | H18: DWB/6/RO/PO | I18: 0 | K18: 0 | L18: 300000 | M18: 300000
A19: Zarząd Terenów Publicznych | B19: J.09.000 | C19: 900.90095.D0630+000 | F19: GMMW | G19: pozostałe wpływy z różnych opłat | H19: DWB/6/RO/PO | I19: 0 | K19: 0 | L19: 7000 | M19: 7000
A20: Zarząd Terenów Publicznych | B20: J.09.000 | C20: 900.90095.D0630+000 | F20: GKZP | G20: pozostałe wpływy z różnych opłat | H20: DWB/6/RO/PO | I20: 0 | K20: 0 | L20: 3000 | M20: 3000
A21: Zakład Gospodarowania Nieruchomościami | B21: J.09.000 | C21: 700.70005.D0970+000 | F21: GMMW | G21: wpływy z różnych dochodów | H21: DWB/6/RD | I21: 1000000 | K21: 157200 | L21: 0 | M21: 842800
A22: Zakład Gospodarowania Nieruchomościami | B22: J.09.000 | C22: 700.70005.D0970+000 | F22: GKZP | G22: wpływy z różnych dochodów | H22: DWB/6/RD | I22: 100000 | K22: 100000 | L22: 0 | M22: 0
A23: Zakład Gospodarowania Nieruchomościami | B23: J.09.000 | C23: 700.70007.D0970+000 | F23: GMMW | G23: wpływy z różnych dochodów | H23: DWB/6/RD | I23: 2750000 | K23: 185000 | L23: 0 | M23: 2565000
A24: Zakład Gospodarowania Nieruchomościami | B24: J.09.000 | C24: 700.70007.D0970+000 | F24: GKZP | G24: wpływy z różnych dochodów | H24: DWB/6/RD | I24: 300000 | K24: 300000 | L24: 0 | M24: 0
A25: Zarząd Terenów Publicznych | B25: J.09.000 | C25: 900.90095.D0970+000 | F25: GMMW | G25: wpływy z różnych dochodów | H25: DWB/6/RD | I25: 200000 | K25: 7000 | L25: 0 | M25: 193000
A26: Zarząd Terenów Publicznych | B26: J.09.000 | C26: 900.90095.D0970+000 | F26: GKZP | G26: wpływy z różnych dochodów | H26: DWB/6/RD | I26: 3000 | K26: 3000 | L26: 0 | M26: 0
A27: Dzielnicowe Biuro Finansów Oświaty | B27: J.09.000 | C27: 801.80195.D2051+000 | F27: SFUE/4/505 | G27: inicjatywy wspólnotowe | H27: DZB/4/IW | I27: 51126 | L27: 5672 | M27: =I27+L27 -> 56798
A28: Dzielnicowe Biuro Finansów Oświaty | B28: J.09.000 | C28: 801.80195.D2051+000 | F28: SFUE/4/506 | G28: inicjatywy wspólnotowe | H28: DZB/4/IW | I28: 50754 | L28: 5631 | M28: 56385
A29: Dzielnicowe Biuro Finansów Oświaty | B29: J.09.000 | C29: 801.80195.D2051+000 | F29: SFUE/4/507 | G29: inicjatywy wspólnotowe | H29: DZB/4/IW | I29: 55651 | L29: 5295 | M29: 60946
A30: Dzielnicowe Biuro Finansów Oświaty | B30: J.09.000 | C30: 801.80195.D2051+000 | F30: SFUE/4/525 | G30: inicjatywy wspólnotowe | H30: DZB/4/IW | I30: 155477 | L30: 17251 | M30: 172728
A31: Dzielnicowe Biuro Finansów Oświaty | B31: J.09.000 | C31: 801.80195.D2051+000 | F31: SFUE/4/535 | G31: inicjatywy wspólnotowe | H31: DZB/4/IW | I31: 33626 | L31: 2292 | M31: 35918
A32: Dzielnicowe Biuro Finansów Oświaty | B32: J.09.000 | C32: 801.80195.D2051+000 | F32: SFUE/4/536 | G32: inicjatywy wspólnotowe | H32: DZB/4/IW | I32: 80604 | L32: 8617 | M32: 89221
A33: Dzielnicowe Biuro Finansów Oświaty | B33: J.09.000 | C33: 801.80195.D2057+000 | F33: SFUE/27/32 | G33: inicjatywy wspólnotowe | H33: DZB/4/IW | I33: 47517 | L33: 190065 | M33: 237582
A34: Dzielnicowe Biuro Finansów Oświaty | B34: J.09.000 | C34: 801.80195.D2059+000 | F34: SFUE/27/32 | G34: inicjatywy wspólnotowe | H34: DZB/4/IW | I34: 10065 | L34: 40261 | M34: 50326
A35: Dzielnicowe Biuro Finansów Oświaty | B35: J.09.000 | C35: 801.80195.D2057+000 | F35: SFUE/27/33 | G35: inicjatywy wspólnotowe | H35: DZB/4/IW | I35: 51392 | L35: 205567 | M35: =I35-K35+L35 -> 256959
A36: Dzielnicowe Biuro Finansów Oświaty | B36: J.09.000 | C36: 801.80195.D2059+000 | F36: SFUE/27/33 | G36: inicjatywy wspólnotowe | H36: DZB/4/IW | I36: 10886 | L36: 43545 | M36: =I36-K36+L36 -> 54431
A37: Dzielnica Śródmieście Urząd | B37: U.09.000 | C37: 758.75814.D2710+000 | F37: GMMW | G37: środki wyrównawcze z budżetu m. st. Warszawy | H37: SD/2/K | I37: 620515414 | K37: 6832600 | L37: 15846465 | M37: =I37+L37+K37 -> 643194479
A38: RAZEM | I38: =SUM(I15:J37) -> 625415512 | J38: =SUM(J27:J37) -> 0 | K38: =SUM(K15:K37) -> 7584800 | L38: =SUM(L15:L37) -> 17122861 | M38: =SUM(M15:M37) -> 648618773
A40: *) niepotrzebne skreślić
A41: **) Dzielnice podają nazwę Wydziału lub nazwę jednostki budżetowej
B44: Sporządził: | F44: Zatwierdził:

Sheet WNIOSEK WYDATKI
L1: Załącznik Nr 2 do Uchwały Nr 58/12/2025 Rady Dzielnicy Śródmieście m.st. Warszawy z dnia 18.02.2025 r.
A7: WNIOSEK W SPRAWIE ZMIAN W PLANIE WYDATKÓW BIEŻĄCYCH
M9: w zł
A10: Stanowisko finansowe | C10: Pozycje finansowe | F10: Obszar funkcjonalny | G10: Program budżetowy | I10: Plan wg stanu na dzień 17.01.2025 r. | J10: Zaangażowanie */ Wykonanie * wg stanu na dzień | K10: Proponowane zmiany | M10: Plan po zmianach
A11: Nazwa dysponenta ** | B11: Kod | C11: Dział | D11: Rozdział | E11: § | F11: Kod | G11: Nazwa | H11: Kod | K11: zmniejszenia | L11: zwiększenia
A15: Zakład Gospodarowania Nieruchomościami | B15: J.09.000 | C15: 700.70007.W4270+000 | F15: GMMW | G15: Remonty mieszkaniowego zasobu komunalnego | H15: B/II/3/2 | I15: 13134950 | L15: 62961 | M15: 13197911
A16: Zakład Gospodarowania Nieruchomościami | B16: J.09.000 | C16: 700.70005.W4270+000 | F16: GMMW | G16: Remonty lokali użytkowych | H16: B/II/5/2 | I16: 8655266 | L16: 23149 | M16: 8678415
A17: Dzielnicowe Biuro Finansów Oświaty | B17: J.09.000 | C17: 801.80104.W4210+000 | F17: GMMW | G17: Prowadzenie publicznych przedszkoli i innych form wychowania przedszkolnego | H17: B/V/1/1/1 | I17: 3132275 | L17: 4407 | M17: 3136682
A18: Dzielnicowe Biuro Finansów Oświaty | B18: J.09.000 | C18: 854.85407.W4210+000 | F18: GMMW | G18: Prowadzenie publicznych placówek wychowania pozaszkolnego | H18: B/V/1/22/1 | I18: 226735 | L18: 3204 | M18: 229939
A19: Dzielnicowe Biuro Finansów Oświaty | B19: J.09.000 | C19: 801.80101.W4270+000 | F19: GMMW | G19: Remonty w przedszkolach, szkołach i placówkach oświatowych | H19: B/V/1/27 | I19: 661931 | L19: 10117 | M19: 672048
A20: Dzielnicowe Biuro Finansów Oświaty | B20: J.09.000 | C20: 801.80104.W4270+000 | F20: GMMW | G20: Remonty w przedszkolach, szkołach i placówkach oświatowych | H20: B/V/1/27 | I20: 595530 | L20: 250978 | M20: 846508
A21: Dzielnicowe Biuro Finansów Oświaty | B21: J.09.000 | C21: 801.80115.W4270+000 | F21: GMMW | G21: Remonty w przedszkolach, szkołach i placówkach oświatowych | H21: B/V/1/27 | I21: 283883 | L21: 60073 | M21: 343956
A22: Dzielnicowe Biuro Finansów Oświaty | B22: J.09.000 | C22: 801.80120.W4270+000 | F22: GMMW | G22: Remonty w przedszkolach, szkołach i placówkach oświatowych | H22: B/V/1/27 | I22: 1003780 | L22: 50549 | M22: 1054329
A23: Dzielnicowe Biuro Finansów Oświaty | B23: J.09.000 | C23: 801.80148.W4220+000 | F23: GMMW | G23: Prowadzenie stołówek szkolnych i przedszkolnych | H23: B/V/1/30 | I23: 0 | L23: 225544 | M23: 225544
A24: Dzielnicowe Biuro Finansów Oświaty | B24: J.09.000 | C24: 801.80195.W4111+000 | F24: SFUE/4/534 | G24: Projekty edukacyjno - oświatowe realizowane w ramach programów Unii Europejskiej | H24: B/V/2/9/2 | I24: 0 | L24: 807 | M24: 807
A25: Dzielnicowe Biuro Finansów Oświaty | B25: J.09.000 | C25: 801.80195.W4119+000 | F25: SFUE/28/3 | G25: Projekty edukacyjno - oświatowe realizowane w ramach programów Unii Europejskiej | H25: B/V/2/9/2 | I25: 1242 | L25: 65 | M25: 1307
A26: Dzielnicowe Biuro Finansów Oświaty | B26: J.09.000 | C26: 801.80195.W4119+000 | F26: SFUE/28/4 | G26: Projekty edukacyjno - oświatowe realizowane w ramach programów Unii Europejskiej | H26: B/V/2/9/2 | I26: 4030 | L26: 176 | M26: 4206
A27: Dzielnicowe Biuro Finansów Oświaty | B27: J.09.000 | C27: 801.80195.W4119+000 | F27: SFUE/28/6 | G27: Projekty edukacyjno - oświatowe realizowane w ramach programów Unii Europejskiej | H27: B/V/2/9/2 | I27: 1901 | L27: 387 | M27: 2288
A28: Dzielnicowe Biuro Finansów Oświaty | B28: J.09.000 | C28: 801.80195.W4121+000 | F28: SFUE/4/534 | G28: Projekty edukacyjno - oświatowe realizowane w ramach programów Unii Europejskiej | H28: B/V/2/9/2 | I28: 0 | L28: 115 | M28: 115
A29: Dzielnicowe Biuro Finansów Oświaty | B29: J.09.000 | C29: 801.80195.W4129+000 | F29: SFUE/28/3 | G29: Projekty edukacyjno - oświatowe realizowane w ramach programów Unii Europejskiej | H29: B/V/2/9/2 | I29: 177 | L29: 9 | M29: 186
A30: Dzielnicowe Biuro Finansów Oświaty | B30: J.09.000 | C30: 801.80195.W4129+000 | F30: SFUE/28/4 | G30: Projekty edukacyjno - oświatowe realizowane w ramach programów Unii Europejskiej | H30: B/V/2/9/2 | I30: 575 | L30: 71 | M30: 646
A31: Dzielnicowe Biuro Finansów Oświaty | B31: J.09.000 | C31: 801.80195.W4129+000 | F31: SFUE/28/6 | G31: Projekty edukacyjno - oświatowe realizowane w ramach programów Unii Europejskiej | H31: B/V/2/9/2 | I31: 271 | L31: 54 | M31: 325
A32: Dzielnicowe Biuro Finansów Oświaty | B32: J.09.000 | C32: 801.80195.W4171+000 | F32: SFUE/4/534 | G32: Projekty edukacyjno - oświatowe realizowane w ramach programów Unii Europejskiej | H32: B/V/2/9/2 | I32: 0 | L32: 4693 | M32: 4693
A33: Dzielnicowe Biuro Finansów Oświaty | B33: J.09.000 | C33: 801.80195.W4211+000 | F33: SFUE/4/505 | G33: Projekty edukacyjno - oświatowe realizowane w ramach programów Unii Europejskiej | H33: B/V/2/9/2 | I33: 20000 | L33: 500 | M33: 20500
A34: Dzielnicowe Biuro Finansów Oświaty | B34: J.09.000 | C34: 801.80195.W4301+000 | F34: SFUE/4/461 | G34: Projekty edukacyjno - oświatowe realizowane w ramach programów Unii Europejskiej | H34: B/V/2/9/2 | I34: 29000 | L34: 1442 | M34: 30442
A35: Dzielnicowe Biuro Finansów Oświaty | B35: J.09.000 | C35: 801.80195.W4301+000 | F35: SFUE/4/535 | G35: Projekty edukacyjno - oświatowe realizowane w ramach programów Unii Europejskiej | H35: B/V/2/9/2 | I35: 50500 | L35: 5000 | M35: 55500
A36: Dzielnicowe Biuro Finansów Oświaty | B36: J.09.000 | C36: 801.80195.W4421+000 | F36: SFUE/4/535 | G36: Projekty edukacyjno - oświatowe realizowane w ramach programów Unii Europejskiej | H36: B/V/2/9/2 | I36: 41545 | L36: 20000 | M36: 61545
A37: Dzielnicowe Biuro Finansów Oświaty | B37: J.09.000 | C37: 801.80195.W4431+000 | F37: SFUE/4/506 | G37: Projekty edukacyjno - oświatowe realizowane w ramach programów Unii Europejskiej | H37: B/V/2/9/2 | I37: 2800 | L37: 161 | M37: 2961
A38: Dzielnicowe Biuro Finansów Oświaty | B38: J.09.000 | C38: 801.80195.W4431+000 | F38: SFUE/4/535 | G38: Projekty edukacyjno - oświatowe realizowane w ramach programów Unii Europejskiej | H38: B/V/2/9/2 | I38: 3000 | L38: 2000 | M38: 5000
A39: Dzielnicowe Biuro Finansów Oświaty | B39: J.09.000 | C39: 801.80195.W4701+000 | F39: SFUE/4/505 | G39: Projekty edukacyjno - oświatowe realizowane w ramach programów Unii Europejskiej | H39: B/V/2/9/2 | I39: 110000 | L39: 1580 | M39: 111580
A40: Dzielnicowe Biuro Finansów Oświaty | B40: J.09.000 | C40: 801.80195.W4701+000 | F40: SFUE/4/506 | G40: Projekty edukacyjno - oświatowe realizowane w ramach programów Unii Europejskiej | H40: B/V/2/9/2 | I40: 165191 | L40: 5531 | M40: 170722
A41: Dzielnicowe Biuro Finansów Oświaty | B41: J.09.000 | C41: 801.80195.W4701+000 | F41: SFUE/4/535 | G41: Projekty edukacyjno - oświatowe realizowane w ramach programów Unii Europejskiej | H41: B/V/2/9/2 | I41: 35000 | L41: 5000 | M41: 40000
A42: Dzielnicowe Biuro Finansów Oświaty | B42: J.09.000 | C42: 801.80195.W4719+000 | F42: SFUE/28/3 | G42: Projekty edukacyjno - oświatowe realizowane w ramach programów Unii Europejskiej | H42: B/V/2/9/2 | I42: 108 | L42: 21 | M42: 129
A43: Dzielnicowe Biuro Finansów Oświaty | B43: J.09.000 | C43: 801.80195.W4719+000 | F43: SFUE/28/4 | G43: Projekty edukacyjno - oświatowe realizowane w ramach programów Unii Europejskiej | H43: B/V/2/9/2 | I43: 351 | L43: 83 | M43: 434
A44: Dzielnicowe Biuro Finansów Oświaty | B44: J.09.000 | C44: 801.80195.W4719+000 | F44: SFUE/28/5 | G44: Projekty edukacyjno - oświatowe realizowane w ramach programów Unii Europejskiej | H44: B/V/2/9/2 | I44: 125 | L44: 30 | M44: 155
A45: Dzielnicowe Biuro Finansów Oświaty | B45: J.09.000 | C45: 801.80195.W4719+000 | F45: SFUE/28/6 | G45: Projekty edukacyjno - oświatowe realizowane w ramach programów Unii Europejskiej | H45: B/V/2/9/2 | I45: 166 | L45: 69 | M45: 235
A46: Dzielnicowe Biuro Finansów Oświaty | B46: J.09.000 | C46: 801.80195.W4799+000 | F46: SFUE/28/3 | G46: Projekty edukacyjno - oświatowe realizowane w ramach programów Unii Europejskiej | H46: B/V/2/9/2 | I46: 7224 | L46: 367 | M46: 7591
A47: Dzielnicowe Biuro Finansów Oświaty | B47: J.09.000 | C47: 801.80195.W4799+000 | F47: SFUE/28/4 | G47: Projekty edukacyjno - oświatowe realizowane w ramach programów Unii Europejskiej | H47: B/V/2/9/2 | I47: 23438 | L47: 1025 | M47: 24463
A48: Dzielnicowe Biuro Finansów Oświaty | B48: J.09.000 | C48: 801.80195.W4799+000 | F48: SFUE/28/6 | G48: Projekty edukacyjno - oświatowe realizowane w ramach programów Unii Europejskiej | H48: B/V/2/9/2 | I48: 11057 | L48: 2239 | M48: 13296
A49: Wydział Oświaty i Funduszy Europejskich | B49: U.09.000 | C49: 801.80195.W4217+000 | F49: SFUE/28/4 | G49: Projekty edukacyjno - oświatowe realizowane w ramach programów Unii Europejskiej | H49: B/V/2/9/2 | L49: 10233 | M49: 10233
A50: Wydział Oświaty i Funduszy Europejskich | B50: U.09.000 | C50: 801.80195.W4217+000 | F50: SFUE/28/5 | G50: Projekty edukacyjno - oświatowe realizowane w ramach programów Unii Europejskiej | H50: B/V/2/9/2 | L50: 21627 | M50: 21627
A51: Wydział Oświaty i Funduszy Europejskich | B51: U.09.000 | C51: 801.80195.W4217+000 | F51: SFUE/28/6 | G51: Projekty edukacyjno - oświatowe realizowane w ramach programów Unii Europejskiej | H51: B/V/2/9/2 | L51: 854 | M51: 854
A52: Wydział Oświaty i Funduszy Europejskich | B52: U.09.000 | C52: 801.80195.W4219+000 | F52: SFUE/28/4 | G52: Projekty edukacyjno - oświatowe realizowane w ramach programów Unii Europejskiej | H52: B/V/2/9/2 | L52: 3070 | M52: 3070
A53: Wydział Oświaty i Funduszy Europejskich | B53: U.09.000 | C53: 801.80195.W4219+000 | F53: SFUE/28/5 | G53: Projekty edukacyjno - oświatowe realizowane w ramach programów Unii Europejskiej | H53: B/V/2/9/2 | L53: 24694 | M53: 24694
A54: Wydział Oświaty i Funduszy Europejskich | B54: U.09.000 | C54: 801.80195.W4219+000 | F54: SFUE/28/6 | G54: Projekty edukacyjno - oświatowe realizowane w ramach programów Unii Europejskiej | H54: B/V/2/9/2 | L54: 255 | M54: 255
A55: Wydział Oświaty i Funduszy Europejskich | B55: U.09.000 | C55: 801.80195.W4307+000 | F55: SFUE/28/6 | G55: Projekty edukacyjno - oświatowe realizowane w ramach programów Unii Europejskiej | H55: B/V/2/9/2 | I55: 57622 | L55: 37973 | M55: 95595
A56: Wydział Oświaty i Funduszy Europejskich | B56: U.09.000 | C56: 801.80195.W4309+000 | F56: SFUE/28/6 | G56: Projekty edukacyjno - oświatowe realizowane w ramach programów Unii Europejskiej | H56: B/V/2/9/2 | I56: 17287 | L56: 11391 | M56: 28678
A57: Wydział Kadr | B57: U.09.000 | C57: 750.75023.W4017+000 | F57: SFUE/28/3 | G57: Fundusz wynagrodzeń | H57: B/X/2/1/1 | I57: 8450 | L57: 3410 | M57: 11860
A58: Wydział Kadr | B58: U.09.000 | C58: 750.75023.W4017+000 | F58: SFUE/28/4 | G58: Fundusz wynagrodzeń | H58: B/X/2/1/1 | I58: 47460 | L58: 1704 | M58: 49164
A59: Wydział Kadr | B59: U.09.000 | C59: 750.75023.W4017+000 | F59: SFUE/28/5 | G59: Fundusz wynagrodzeń | H59: B/X/2/1/1 | I59: 18525 | L59: 1079 | M59: 19604
A60: Wydział Kadr | B60: U.09.000 | C60: 750.75023.W4017+000 | F60: SFUE/28/6 | G60: Fundusz wynagrodzeń | H60: B/X/2/1/1 | I60: 55612 | L60: 922 | M60: 56534
A61: Wydział Kadr | B61: U.09.000 | C61: 750.75023.W4019+000 | F61: SFUE/28/3 | G61: Fundusz wynagrodzeń | H61: B/X/2/1/1 | I61: 2536 | L61: 1023 | M61: 3559
A62: Wydział Kadr | B62: U.09.000 | C62: 750.75023.W4019+000 | F62: SFUE/28/4 | G62: Fundusz wynagrodzeń | H62: B/X/2/1/1 | I62: 14243 | L62: 511 | M62: 14754
A63: Wydział Kadr | B63: U.09.000 | C63: 750.75023.W4019+000 | F63: SFUE/28/5 | G63: Fundusz wynagrodzeń | H63: B/X/2/1/1 | I63: 7560 | L63: 322 | M63: 7882
A64: Wydział Kadr | B64: U.09.000 | C64: 750.75023.W4019+000 | F64: SFUE/28/6 | G64: Fundusz wynagrodzeń | H64: B/X/2/1/1 | I64: 16683 | L64: 274 | M64: 16957
A65: Wydział Kadr | B65: U.09.000 | C65: 750.75023.W4117+000 | F65: SFUE/28/3 | G65: Fundusz wynagrodzeń | H65: B/X/2/1/1 | I65: 1520 | L65: 587 | M65: 2107
A66: Wydział Kadr | B66: U.09.000 | C66: 750.75023.W4117+000 | F66: SFUE/28/4 | G66: Fundusz wynagrodzeń | H66: B/X/2/1/1 | I66: 8292 | L66: 294 | M66: 8586
A67: Wydział Kadr | B67: U.09.000 | C67: 750.75023.W4117+000 | F67: SFUE/28/5 | G67: Fundusz wynagrodzeń | H67: B/X/2/1/1 | I67: 3581 | L67: 187 | M67: 3768
A68: Wydział Kadr | B68: U.09.000 | C68: 750.75023.W4117+000 | F68: SFUE/28/6 | G68: Fundusz wynagrodzeń | H68: B/X/2/1/1 | I68: 9825 | L68: 159 | M68: 9984
A69: Wydział Kadr | B69: U.09.000 | C69: 750.75023.W4119+000 | F69: SFUE/28/3 | G69: Fundusz wynagrodzeń | H69: B/X/2/1/1 | I69: 456 | L69: 176 | M69: 632
A70: Wydział Kadr | B70: U.09.000 | C70: 750.75023.W4119+000 | F70: SFUE/28/4 | G70: Fundusz wynagrodzeń | H70: B/X/2/1/1 | I70: 2490 | L70: 88 | M70: 2578
A71: Wydział Kadr | B71: U.09.000 | C71: 750.75023.W4119+000 | F71: SFUE/28/5 | G71: Fundusz wynagrodzeń | H71: B/X/2/1/1 | I71: 1075 | L71: 56 | M71: 1131
A72: Wydział Kadr | B72: U.09.000 | C72: 750.75023.W4119+000 | F72: SFUE/28/6 | G72: Fundusz wynagrodzeń | H72: B/X/2/1/1 | I72: 2948 | L72: 47 | M72: 2995
A73: Wydział Kadr | B73: U.09.000 | C73: 750.75023.W4127+000 | F73: SFUE/28/3 | G73: Fundusz wynagrodzeń | H73: B/X/2/1/1 | I73: 217 | L73: 93 | M73: 310
A74: Wydział Kadr | B74: U.09.000 | C74: 750.75023.W4127+000 | F74: SFUE/28/4 | G74: Fundusz wynagrodzeń | H74: B/X/2/1/1 | I74: 1187 | L74: 42 | M74: 1229
A75: Wydział Kadr | B75: U.09.000 | C75: 750.75023.W4127+000 | F75: SFUE/28/5 | G75: Fundusz wynagrodzeń | H75: B/X/2/1/1 | I75: 512 | L75: 108 | M75: 620
A76: Wydział Kadr | B76: U.09.000 | C76: 750.75023.W4127+000 | F76: SFUE/28/6 | G76: Fundusz wynagrodzeń | H76: B/X/2/1/1 | I76: 1401 | L76: 269 | M76: 1670
A77: Wydział Kadr | B77: U.09.000 | C77: 750.75023.W4129+000 | F77: SFUE/28/3 | G77: Fundusz wynagrodzeń | H77: B/X/2/1/1 | I77: 66 | L77: 28 | M77: 94
A78: Wydział Kadr | B78: U.09.000 | C78: 750.75023.W4129+000 | F78: SFUE/28/4 | G78: Fundusz wynagrodzeń | H78: B/X/2/1/1 | I78: 356 | L78: 13 | M78: 369
A79: Wydział Kadr | B79: U.09.000 | C79: 750.75023.W4129+000 | F79: SFUE/28/5 | G79: Fundusz wynagrodzeń | H79: B/X/2/1/1 | I79: 154 | L79: 32 | M79: 186
A80: Wydział Kadr | B80: U.09.000 | C80: 750.75023.W4129+000 | F80: SFUE/28/6 | G80: Fundusz wynagrodzeń | H80: B/X/2/1/1 | I80: 421 | L80: 81 | M80: 502
A81: Wydział Kadr | B81: U.09.000 | C81: 750.75023.W4717+000 | F81: SFUE/28/3 | G81: Fundusz wynagrodzeń | H81: B/X/2/1/1 | I81: 132 | L81: 76 | M81: 208
A82: Wydział Kadr | B82: U.09.000 | C82: 750.75023.W4717+000 | F82: SFUE/28/4 | G82: Fundusz wynagrodzeń | H82: B/X/2/1/1 | I82: 723 | L82: 24 | M82: 747
A83: Wydział Kadr | B83: U.09.000 | C83: 750.75023.W4717+000 | F83: SFUE/28/5 | G83: Fundusz wynagrodzeń | H83: B/X/2/1/1 | I83: 311 | L83: 107 | M83: 418
A84: Wydział Kadr | B84: U.09.000 | C84: 750.75023.W4717+000 | F84: SFUE/28/6 | G84: Fundusz wynagrodzeń | H84: B/X/2/1/1 | I84: 858 | L84: 317 | M84: 1175
A85: Wydział Kadr | B85: U.09.000 | C85: 750.75023.W4719+000 | F85: SFUE/28/3 | G85: Fundusz wynagrodzeń | H85: B/X/2/1/1 | I85: 39 | L85: 23 | M85: 62
A86: Wydział Kadr | B86: U.09.000 | C86: 750.75023.W4719+000 | F86: SFUE/28/4 | G86: Fundusz wynagrodzeń | H86: B/X/2/1/1 | I86: 215 | L86: 5 | M86: 220
A87: Wydział Kadr | B87: U.09.000 | C87: 750.75023.W4719+000 | F87: SFUE/28/5 | G87: Fundusz wynagrodzeń | H87: B/X/2/1/1 | I87: 93 | L87: 32 | M87: 125
A88: Wydział Kadr | B88: U.09.000 | C88: 750.75023.W4719+000 | F88: SFUE/28/6 | G88: Fundusz wynagrodzeń | H88: B/X/2/1/1 | I88: 258 | L88: 95 | M88: 353
A89: RAZEM | I89: =SUM(I15:I88) -> 28485159 | J89: =SUM(J15:J88) -> 0 | K89: =SUM(K15:K88) -> 0 | L89: =SUM(L15:L88) -> 864688 | M89: =SUM(M15:M88) -> 29349847
A91: *) niepotrzebne skreślić
A92: **) Dzielnice podają nazwę Wydziału lub nazwę jednostki budżetowej
B95: Sporządził: | F95: Zatwierdził:

Sheet wniosek inwestycje
L1: Załącznik Nr 3
L2: do Uchwały Nr 58/12/2025
L3: Rady Dzielnicy Śródmieście m.st. Warszawy
L4: z dnia 18.02.2025 r.
A7: WNIOSEK W SPRAWIE ZMIAN W PLANIE WYDATKÓW MAJĄTKOWYCH
M9: w zł
A10: Stanowisko finansowe | C10: Pozycje finansowe | F10: Obszar funkcjonalny | G10: Program budżetowy | I10: Plan wg stanu na dzień 17.01.2025 r. | J10: Zaangażowanie | K10: Proponowane zmiany | M10: Plan po zmianach
A11: Nazwa dysponenta ** | B11: Kod dysponenta | C11: Dział | D11: rozdział | E11: § | F11: Kod | G11: Nazwa | H11: Kod | K11: zmniejszenia | L11: zwiększenia
C12: np.:1) 801.80195.D2707+000
C13: np.:2) 801.80195.W4307+000
C14: np.:3) 801.80195.W6060+000
A15: Zakład Gospodarowania Nieruchomościami | B15: J.09.000 | C15: 700.70007.W6050+000 | F15: GMMW | G15: Dostosowanie nieruchomości Mazowiecka 12 - oficyna do stanu technicznego zgodnego z obowiązującymi przepisami bezpieczeństwa | H15: C/ŚRD/II/P3/20 | I15: 1137270 | K15: 0 | L15: 1495 | M15: =I15-K15+L15 -> 1138765
A16: Zakład Gospodarowania Nieruchomościami | B16: J.09.000 | C16: 700.70007.W6050+000 | F16: GMMW | G16: Modernizacja budynków wraz z infrastrukturą towarzyszącą w obrębie zespołu zabudowy na Jazdowie z uwzględnieniem rozwiązań proekologicznych | H16: C/ŚRD/II/P3/22 | I16: 9359619 | K16: 0 | L16: 3000000 | M16: 12359619
A17: Zakład Gospodarowania Nieruchomościami | B17: J.09.000 | C17: 700.70007.W6050+000 | F17: GMMW | G17: Przebudowa budynku przy ul. Solec 103 | H17: C/ŚRD/II/P3/24 | I17: 6832600 | K17: 6832600 | L17: 57684 | M17: 57684
A18: Zakład Gospodarowania Nieruchomościami | B18: J.09.000 | C18: 700.70004.W6060+000 | F18: GMMW | G18: Zakupy inwestycyjne dla Zakładu Gospodarowania Nieruchomościami | H18: C/ŚRD/II/P5/9 | I18: 0 | K18: 0 | L18: 39099 | M18: 39099
A19: Zakład Gospodarowania Nieruchomościami | B19: J.09.000 | C19: 700.70005.W6050+000 | F19: GMMW | G19: Doposażenie budynku przy Al. Jerozolimskich 30 w windę osobową wraz z udogodnieniami dla osób z niepełnosprawnościami | H19: C/ŚRD/II/P5/… | I19: 0 | K19: 0 | L19: 125000 | M19: 125000
A20: Zarząd Terenów Publicznych | B20: J.09.000 | C20: 900.90095.W6050+000 | F20: GMMW | G20: Nowe Centrum Warszawy (obszar ul. Chmielnej) | H20: C/ŚRD/III/P4/31 | I20: 400000 | K20: 0 | L20: 4775430 | M20: 5175430
A21: Zakład Gospodarowania Nieruchomościami | B21: J.09.000 | C21: 900.90095.W6050+000 | F21: GMMW | G21: Doświetlenie terenów i podwórek na terenie dzielnicy | H21: C/ŚR/III/P4/49 | I21: 762219 | K21: 0 | L21: 250000 | M21: 1012219
A22: Dzielnicowe Biuro Finansów i Oświaty | B22: J.09.000 | C22: 801.80120.W6060+000 | F22: GMMW | G22: Zakupy inwestycyjne dla Liceów Ogólnokształcących | H22: C/ŚRD/V/P1/…. | I22: 0 | K22: 0 | L22: 67000 | M22: =I22-K22+L22 -> 67000
A23: Wydział Inwestycji | B23: U.09.000 | C23: 801.80104.W6050+000 | F23: GMMW | G23: Wykonanie przyłącza wody do budynku Przedszkola nr 16 przy ul. Górskiego 5 | H23: C/ŚRD/V/P1/…. | I23: 0 | K23: 0 | L23: 700000 | M23: 700000
A24: Wydział Inwestycji | B24: U.09.000 | C24: 801.80101.W6050+000 | F24: GMMW | G24: Budowa hali sportowej przy Szkole Podstawowej nr 158, ul. Ciasna | H24: C/ŚRD/V/P1/77 | I24: 3395501 | K24: 0 | L24: 950000 | M24: 4345501
A25: Wydział Inwestycji | B25: U.09.000 | C25: 801.80101.W6050+000 | F25: GMMW | G25: Przebudowa boiska sportowego przy Szkole Podstawowej nr 48 przy ul. Sempołowskiej 4 | H25: C/ŚRD/V/P1/69 | I25: 2147110 | K25: 0 | L25: 0 | M25: 2147110
A26: Wydział Inwestycji | B26: U.09.000 | C26: 801.80115.W6050+000 | F26: GMMW | G26: Budowa windy w budynku Zespołu Szkół 22 przy ul. Konopczyńskiego 4 | H26: C/ŚRD/V/P1/… | I26: 0 | K26: 0 | L26: 1000000 | M26: 1000000
A27: Wydział Inwestycji | B27: U.09.000 | C27: 801.80101.W6050+000 | F27: GMMW | G27: Budowa windy w budynku Szkoły Podstawowej nr 32 przy ul. Niskiej 5 | H27: C/ŚRD/V/P1/ | I27: 0 | K27: 0 | L27: 60000 | M27: 60000
A28: Wydział Inwestycji | B28: U.09.000 | C28: 801.80101.W6050+000 | F28: GMMW | G28: Budowa placu zabaw przy Szkole Podstawowej 32 przy ul. Niskiej 5 | H28: C/ŚRD/V/P1/ | I28: 0 | K28: 0 | L28: 20000 | M28: 20000
A29: Wydział Inwestycji | B29: U.09.000 | C29: 801.80101.W6050+000 | F29: GMMW | G29: Przebudowa sali sportowej przy Szkole Podstawowej nr 220 przy ul. Jana Pawła II 26A | H29: C/ŚRD/V/P1/ | I29: 0 | K29: 0 | L29: 200000 | M29: 200000
A30: Wydział Inwestycji | B30: U.09.000 | C30: 801.80120.W6050+000 | F30: GMMW | G30: Dostosowanie budynku II Liceum Ogólnokształcącego im. Stefana Batorego przy ul. Myśliwieckiej 6 do przepisów ppoż. | H30: C/ŚRD/V/P1/ | I30: 0 | K30: 0 | L30: 2000000 | M30: 2000000
A31: Wydział Inwestycji | B31: U.09.000 | C31: 801.80101.W6050+000 | F31: GMMW | G31: Przebudowa lokali mieszkalnych na sale edukacyjne w Szkołach Podstawowych | H31: C/ŚRD/V/P1/ | I31: 0 | K31: 0 | L31: 140000 | M31: 140000
A32: Wydział Inwestycji | B32: U.09.000 | C32: 801.80104.W6050+000 | F32: GMMW | G32: Przebudowa lokali mieszkalnych na sale edukacyjne w Przedszkolach | H32: C/ŚRD/V/P1/ | I32: 0 | K32: 0 | L32: 150000 | M32: 150000
A33: Wydział Inwestycji | B33: U.09.000 | C33: 801.80115.W6050+000 | F33: GMMW | G33: Przebudowa lokali mieszkalnych na sale edukacyjne w Technikach | H33: C/ŚRD/V/P1/ | I33: 0 | K33: 0 | L33: 150000 | M33: 150000
A34: Wydział Inwestycji | B34: U.09.000 | C34: 801.80120.W6050+000 | F34: GMMW | G34: Przebudowa lokali mieszkalnych na sale edukacyjne w Liceach Ogólnokształcących | H34: C/ŚRD/V/P1/ | I34: 0 | K34: 0 | L34: 145000 | M34: 145000
A35: Wydział Inwestycji | B35: U.09.000 | C35: 801.80115.W6050+000 | F35: GMMW | G35: Budowa boiska sportowego przy Zespole Szkół Licealnych i Ekonomicznych nr 1 przy ul. Stawki 10 | H35: C/ŚRD/V/P1/ | I35: 0 | K35: 0 | L35: 70000 | M35: 70000
A36: Wydział Inwestycji | B36: U.09.000 | C36: 801.80115.W6050+000 | F36: GMMW | G36: Panele fotowoltaiczne na budynku Zespołu Szkół Poligraficznych przy ul. Stawki 14 | H36: C/ŚRD/V/P1/94 | I36: 0 | L36: 328330 | M36: 328330
A37: Wydział Inwestycji | B37: U.09.000 | C37: 801.80104.W6050+000 | F37: GMMW | G37: Panele fotowoltaiczne na budynku Przedszkola nr 13 przy ul. Schillera 6A | H37: C/ŚRD/V/P1/93 | I37: 0 | K37: 0 | L37: 150000 | M37: 150000
A38: Dom Kultury Śródmieście | B38: U.09.000 | C38: 921.92109.W6220+000 | F38: GMMW | G38: Przebudowa instalacji klimatyzacji w Domu Kultury „Śródmieście”przy ul. Smolnej 9 w Warszawie -Etap II" | H38: C/ŚRD/VII/P3/…. | I38: 0 | K38: 0 | L38: 330000 | M38: 330000
A39: Biblioteka Publiczna | B39: U.09.000 | C39: 921.92116.W6220+000 | F39: GMMW | G39: Przebudowa lokalu Biblioteki Publicznej przy ulicy Anielewicza 2 | H39: C/ŚRD/VII/P3/…. | I39: 0 | K39: 0 | L39: 150000 | M39: 150000
A40: Wydział Administracyjno-Gospodarczy | B40: U.09.000 | C40: 750.75023.W6060+000 | F40: GMMW | G40: Zakupy inwestycyjne dla Urzędu Dzielnicy | H40: C/ŚRD/X/P2/…. | I40: 0 | K40: 0 | L40: 26445 | M40: 26445
A41: Wydział Administracyjno-Gospodarczy | B41: U.09.000 | C41: 750.75023.W6050+000 | F41: GMMW | G41: Wykonanie hydroforni pożarowej na pozomie 1 w budynku Urzędu Dzielnicy przy ul. Nowogrodzkiej 43 | H41: C/ŚRD/X/P2/…. | I41: 0 | K41: 0 | L41: 270000 | M41: 270000
A42: RAZEM | I42: =SUM(I15:I41) -> 24034319 | J42: =SUM(J15:J41) -> 0 | K42: =SUM(K15:K41) -> 6832600 | L42: 15155483 | M42: 32357202
B45: Sporządził: | F45: Zatwierdził:

Sheet ZADANIOWY (2)
A1: PLAN DOCHODÓW NA 2025 REALIZOWANYCH - wg ŹRÓDEŁ | Q1: Załącznik Nr 4 do Uchwały Nr 58/12/2025 Rady Dzielnicy Śródmieście m.st. Warszawy z dnia 18.02.2025 r.
A2: mstwd.09 | B2: U.09.000 | E2: =IF(OR(T3<>"",U3<>""),"Istnieją błędy","") ->  | J2: =J1765 -> 454080525 | K2: =K1765 -> 90313525 | M2: =M1765 -> 752200 | N2: =N1765 -> 0 | O2: =O1765 -> 0 | P2: =P1765 -> 454080525 | Q2: =Q1765 -> 90313525
A3: PROGRAM | B3: OPIS | D3: Header | E3: DZIAŁ | F3: ROZDZIAŁ | G3: § | H3: Kod | I3: OBSZAR FUNKCJONALNY | J3: PLAN | K3: w tym Urząd m.st. Warszawy | L3: PLAN Zmiana[-] | M3: PLAN Zmiana[+] | N3: w tym Urząd Zmiana[-] | O3: w tym Urząd Zmiana[+] | P3: PLAN PO ZMIANIE | Q3: w tym Urząd PO ZMIANIE | R3: WYPEŁNIONE POZYCJE | S3: WYPEŁNIONE ZMIANY | T3: =IF(COUNTIF(T4:T1765,"błędny urząd")<>0,"ŹLE","") ->  | U3: =IF(COUNTIF(U4:U1765,"ujemny plan")<>0,"ŹLE","") -> 
A4: DB | B4: DOCHODY BIEŻĄCE | D4: T | J4: =SUM(J5,J1013) -> 443228525 | K4: 79461525 | L4: 752200 | M4: 752200 | N4: 0 | O4: 0 | P4: 443228525 | Q4: 79461525 | R4: =IF(SUM(J4:Q4)>0,"Tak","") -> Tak | S4: =IF(SUM(L4:O4)>0,"Tak","") -> Tak | T4: =IF(OR(J4<K4,P4<Q4,L4<N4,M4<O4),"błędny urząd","") ->  | U4: =IF(OR(J4<0,K4<0,P4<0,Q4<0),"ujemny plan","") -> 
A5: DWB | B5: DOCHODY WŁASNE | D5: T | J5: =SUM(J6,J20,J26,J32,J48,J275,J992,J999) -> 443228525 | K5: 79461525 | L5: 752200 | M5: 752200 | N5: 0 | O5: 0 | P5: 443228525 | Q5: 79461525 | R5: Tak | S5: Tak
A6: DWB/1 | B6: Podatki i opłaty lokalne ogółem | D6: T | J6: =SUM(J7,J10,J13,J16,J19) -> 0 | K6: 0 | L6: 0 | M6: 0 | N6: 0 | O6: 0 | P6: 0 | Q6: 0
A7: DWB/1/PN | B7: Podatek od nieruchomości | D7: T | G7: 0310 | J7: =SUM(J8:J9) -> 0 | K7: 0 | L7: 0 | M7: 0 | N7: 0 | O7: 0 | P7: 0 | Q7: 0
A8: DWB/1/PN | B8: Podatek od nieruchomości | D8: NIE | E8: 756 | F8: 75615 | G8: 0310 | H8: =IF(I8="","",(CONCATENATE(F8,G8,IF(LEFT(I8,1)<>"S",LEFT(I8,1),(IF(OR(I8="SFUE/12/14",I8="SFUE/12/1",I8="SFUE/12/19",I8="SFUE/12/23"),"P","G")))))) -> 756150310G | I8: GMMW | J8: 0 | K8: 0 | P8: =J8+M8-L8 -> 0 | Q8: =K8+O8-N8 -> 0 | R8: =IF(SUM(J8:Q8)>0,"Tak","") ->  | S8: =IF(SUM(L8:O8)>0,"Tak","") ->  | T8: =IF(OR(J8<K8,P8<Q8,L8<N8,M8<O8),"błędny urząd","") ->  | U8: =IF(OR(J8<0,K8<0,P8<0,Q8<0),"ujemny plan","") -> 
A9: DWB/1/PN | B9: Podatek od nieruchomości | D9: NIE | E9: 756 | F9: 75616 | G9: 0310 | H9: 756160310G | I9: GMMW | J9: 0 | K9: 0 | P9: =J9+M9-L9 -> 0 | Q9: =K9+O9-N9 -> 0 | R9: =IF(SUM(J9:Q9)>0,"Tak","") ->  | S9: =IF(SUM(L9:O9)>0,"Tak","") ->  | T9: =IF(OR(J9<K9,P9<Q9,L9<N9,M9<O9),"błędny urząd","") ->  | U9: =IF(OR(J9<0,K9<0,P9<0,Q9<0),"ujemny plan","") -> 
A10: DWB/1/PR | B10: Podatek rolny | D10: T | G10: 0320 | J10: =SUM(J11:J12) -> 0 | K10: 0 | L10: 0 | M10: 0 | N10: 0 | O10: 0 | P10: 0 | Q10: 0
A11: DWB/1/PR | B11: Podatek rolny | D11: NIE | E11: 756 | F11: 75615 | G11: 0320 | H11: 756150320G | I11: GMMW | P11: 0 | Q11: 0
A12: DWB/1/PR | B12: Podatek rolny | D12: NIE | E12: 756 | F12: 75616 | G12: 0320 | H12: 756160320G | I12: GMMW | P12: 0 | Q12: 0
A13: DWB/1/PL | B13: Podatek leśny | D13: T | G13: 0330 | J13: =SUM(J14:J15) -> 0 | K13: 0 | L13: 0 | M13: 0 | N13: 0 | O13: 0 | P13: 0 | Q13: 0
A14: DWB/1/PL | B14: Podatek leśny | D14: NIE | E14: 756 | F14: 75615 | G14: 0330 | H14: 756150330G | I14: GMMW | P14: 0 | Q14: 0
A15: DWB/1/PL | B15: Podatek leśny | D15: NIE | E15: 756 | F15: 75616 | G15: 0330 | H15: 756160330G | I15: GMMW | P15: 0 | Q15: 0
A16: DWB/1/ST | B16: Podatek od środków transportowych | D16: T | G16: 0340 | J16: =SUM(J17:J18) -> 0 | K16: 0 | L16: 0 | M16: 0 | N16: 0 | O16: 0 | P16: 0 | Q16: 0
A17: DWB/1/ST | B17: Podatek od środków transportowych | D17: NIE | E17: 756 | F17: 75615 | G17: 0340 | H17: 756150340G | I17: GMMW | P17: 0 | Q17: 0
A18: DWB/1/ST | B18: Podatek od środków transportowych | D18: NIE | E18: 756 | F18: 75616 | G18: 0340 | H18: 756160340G | I18: GMMW | P18: 0 | Q18: 0
A19: DWB/1/PZ | B19: Zaległości z podatków zniesionych | D19: T | E19: 756 | F19: 75616 | G19: 0560 | H19: 756160560G | I19: GMMW | P19: 0 | Q19: 0
A20: DWB/2 | B20: Podatki pobierane przez urzędy skarbowe | D20: T | J20: =SUM(J21:J23) -> 0 | K20: 0 | L20: 0 | M20: 0 | N20: 0 | O20: 0 | P20: 0 | Q20: 0
A21: DWB/2/DG | B21: Podatek od działalności gospodarczej osób fizycznych opłacany w formie karty podatkowej | D21: T | E21: 756 | F21: 75601 | G21: 0350 | H21: 756010350G | I21: GMMW | P21: 0 | Q21: 0
A22: DWB/2/SD | B22: Podatek od spadków i darowizn | D22: T | E22: 756 | F22: 75616 | G22: 0360 | H22: 756160360G | I22: GMMW | P22: 0 | Q22: 0
A23: DWB/2/CC | B23: Podatek od czynności cywilnoprawnych | D23: T | G23: 0500 | J23: =SUM(J24:J25) -> 0 | K23: 0 | L23: 0 | M23: 0 | N23: 0 | O23: 0 | P23: 0 | Q23: 0
A24: DWB/2/CC | B24: Podatek od czynności cywilnoprawnych | D24: NIE | E24: 756 | F24: 75615 | G24: 0500 | H24: 756150500G | I24: GMMW | P24: 0 | Q24: 0
A25: DWB/2/CC | B25: Podatek od czynności cywilnoprawnych | D25: NIE | E25: 756 | F25: 75616 | G25: 0500 | H25: 756160500G | I25: GMMW | P25: 0 | Q25: 0
A26: DWB/3 | B26: Wpływy z opłat | D26: T | J26: =SUM(J27:J29) -> 0 | K26: 0 | L26: 0 | M26: 0 | N26: 0 | O26: 0 | P26: 0 | Q26: 0
A27: DWB/3/OS | B27: Opłata skarbowa | D27: T | E27: 756 | F27: 75618 | G27: 0410 | H27: 756180410G | I27: GMMW | P27: 0 | Q27: 0
A28: DWB/3/KO | B28: Opłata komunikacyjna | D28: T | E28: 756 | F28: 75618 | G28: 0420 | H28: 756180420P | I28: PWMW | P28: 0 | Q28: 0
A29: DWB/3/SA | B29: Opłata za wydawanie zezwoleń na sprzedaż napojów alkoholowych | D29: T | J29: =SUM(J30:J31) -> 0 | K29: 0 | L29: 0 | M29: 0 | N29: 0 | O29: 0 | P29: 0 | Q29: 0
A30: DWB/3/SA | B30: Opłata za wydawanie zezwoleń na sprzedaż napojów alkoholowych | D30: NIE | E30: 756 | F30: 75618 | G30: 0270 | P30: 0 | Q30: 0
A31: DWB/3/SA | B31: Opłata za wydawanie zezwoleń na sprzedaż napojów alkoholowych | D31: NIE | E31: 756 | F31: 75616 | G31: 0480 | P31: 0 | Q31: 0
A32: DWB/4 | B32: Inne opłaty pobierane na podstawie odrębnych ustaw | D32: T | J32: =SUM(J33:J41,J47) -> 0 | K32: 0 | L32: 0 | M32: 0 | N32: 0 | O32: 0 | P32: 0 | Q32: 0
A33: DWB/4/GO | B33: Opłata za gospodarowanie odpadami komunalnymi | D33: T | E33: 900 | F33: 90002 | G33: 0490 | H33: 900020490G | I33: GODK | J33: 0 | K33: 0 | P33: 0 | Q33: 0
A34: DWB/4/OA | B34: Opłaty adiacenckie | D34: T | E34: 756 | F34: 75618 | G34: 0490 | H34: 756180490G | I34: GMMW | J34: 0 | K34: 0 | P34: 0 | Q34: 0
A35: DWB/4/RP | B35: Renta planistyczna | D35: T | E35: 756 | F35: 75618 | G35: 0490 | H35: 756180490G | I35: GMMW | J35: 0 | K35: 0 | P35: 0 | Q35: 0
A36: DWB/4/PJ | B36: Opłaty za wydanie prawa jazdy | D36: T | E36: 756 | F36: 75618 | G36: 0650 | I36: PWMW | J36: 0 | K36: 0 | P36: 0 | Q36: 0
A37: DWB/4/PL | B37: Opłaty za pozostałe licencje | D37: T | E37: 756 | F37: 75618 | G37: 0590 | H37: =IF(I37="","",(CONCATENATE(F37,G37,IF(LEFT(I37,1)<>"S",LEFT(I37,1),(IF(OR(I37="SFUE/12/14",I37="SFUE/12/1",I37="SFUE/12/19",I37="SFUE/12/23"),"P","G")))))) -> 756180590P | I37: PWMW | J37: 0 | K37: 0 | P37: 0 | Q37: 0
A38: DWB/4/LP | B38: Opłaty za licencje przewozowe | D38: T | E38: 756 | F38: 75618 | G38: 0590 | H38: 756180590G | I38: GMMW | J38: 0 | K38: 0 | P38: 0 | Q38: 0
A39: DWB/4/LP | B39: Opłaty za licencje przewozowe | D39: T | E39: 756 | F39: 75618 | G39: 0590 | H39: 756180590P | I39: PWMW | J39: 0 | K39: 0 | P39: 0 | Q39: 0
A40: DWB/4/OE | B40: Opłata eksploatacyjna | D40: T | E40: 756 | F40: 75618 | G40: 0460 | P40: 0 | Q40: 0
A41: DWB/4/OP | B41: Opłata prolongacyjna | D41: T | J41: =SUM(J42:J46) -> 0 | K41: 0 | L41: 0 | M41: 0 | N41: 0 | O41: 0 | P41: 0 | Q41: 0
A42: DWB/4/OP | B42: Opłata prolongacyjna | D42: NIE | E42: 600 | F42: 60095 | G42: 0880 | P42: 0 | Q42: 0
A43: DWB/4/OP | B43: Opłata prolongacyjna | D43: NIE | E43: 756 | F43: 75615 | G43: 0880 | P43: 0 | Q43: 0
A44: DWB/4/OP | B44: Opłata prolongacyjna | D44: NIE | E44: 756 | F44: 75616 | G44: 0880 | P44: 0 | Q44: 0
A45: DWB/4/OP | B45: Opłata prolongacyjna | D45: NIE | E45: 756 | F45: 75618 | G45: 0880 | P45: 0 | Q45: 0
A46: DWB/4/OP | B46: Opłata prolongacyjna | D46: NIE | E46: 900 | F46: 90002 | G46: 0880 | P46: 0 | Q46: 0
A47: DWB/4/OR | B47: Opłata restrukturyzacyjna | D47: T | E47: 756 | F47: 75619 | G47: 0130 | P47: 0 | Q47: 0
A48: DWB/5 | B48: Dochody z mienia | D48: T | J48: =SUM(J49,J53:J54,J55,J57,J273:J274) -> 297348000 | K48: =SUM(K49,K53:K54,K55,K57,K273:K274) -> 71048000 | L48: 0 | M48: 0 | N48: 0 | O48: 0 | P48: 297348000 | Q48: 71048000 | R48: Tak
A49: DWB/5/UW | B49: Opłaty za użytkowanie wieczyste nieruchomości | D49: T | G49: 0550 | J49: =SUM(J50:J52) -> 67148000 | K49: =SUM(K50:K52) -> 67148000 | L49: 0 | M49: 0 | N49: 0 | O49: 0 | P49: 67148000 | Q49: 67148000 | R49: Tak
A50: DWB/5/UW/PW | B50: pierwsza opłata za oddanie w użytkowanie wieczyste | D50: T | E50: 700 | F50: 70005 | G50: 0550 | H50: 700050550G | I50: GMMW | J50: 0 | K50: 0 | P50: 0 | Q50: 0
A51: DWB/5/UW/RW | B51: opłaty roczne za użytkowanie wieczyste | D51: T | E51: 700 | F51: 70005 | G51: 0550 | H51: 700050550G | I51: GMMW | J51: 67148000 | K51: 67148000 | P51: 67148000 | Q51: 67148000 | R51: Tak
A52: DWB/5/UW/PO | B52: pozostałe opłaty za użytkowanie wieczyste | D52: T | E52: 700 | F52: 70005 | G52: 0550 | H52: 700050550G | I52: GMMW | J52: 0 | K52: 0 | P52: 0 | Q52: 0
A53: DWB/5/ZS | B53: Opłaty za trwały zarząd, użytkowanie i służebności | D53: T | E53: 700 | F53: 70005 | G53: 0470 | H53: 700050470G | I53: GMMW | J53: 1700000 | K53: 1700000 | P53: 1700000 | Q53: 1700000 | R53: Tak
A54: DWB/5/KO | B54: Wpłaty z zysku od przedsiębiorstw komunalnych | D54: T | E54: 756 | F54: 75605 | G54: 0730 | H54: 756050730G | I54: GMMW | P54: 0 | Q54: 0
A55: DWB/5/DZ | B55: Dywidenda od spółek | D55: T | G55: 0740 | J55: =SUM(J56:J56) -> 0 | K55: 0 | L55: 0 | M55: 0 | N55: 0 | O55: 0 | P55: 0 | Q55: 0
A56: DWB/5/DZ/PO | B56: Dywidendy | D56: NIE | E56: 756 | F56: 75624 | G56: 0740 | I56: GMMW | P56: 0 | Q56: 0
A57: DWB/5/ND | B57: Dochody z najmu i dzierżawy mienia | D57: T | G57: 0750 | H57: =IF(I57="","",(CONCATENATE(F57,G57,IF(LEFT(I57,1)<>"S",LEFT(I57,1),(IF(OR(I57="SFUE/12/14",I57="SFUE/12/1",I57="SFUE/12/19",I57="SFUE/12/23"),"P","G")))))) ->  | J57: =SUM(J147,J89,J178,J119,J58,J245,J87,J206,J208) -> 228500000 | K57: =SUM(K147,K89,K178,K119,K58,K245,K87,K206,K208) -> 2200000 | L57: 0 | M57: 0 | N57: 0 | O57: 0 | P57: 228500000 | Q57: 2200000 | R57: Tak
A58: DWB/5/ND/DG | B58: wpływy z dzierżawy gruntów | D58: T | G58: 0750 | J58: =SUM(J59:J86) -> 10200000 | K58: =SUM(K59:K86) -> 1700000 | L58: 0 | M58: 0 | N58: 0 | O58: 0 | P58: 10200000 | Q58: 1700000 | R58: Tak
A59: DWB/5/ND/DG | B59: wpływy z dzierżawy gruntów | D59: NIE | E59: 600 | F59: 60004 | G59: 0750 | J59: 0 | K59: 0 | P59: 0 | Q59: 0
A60: DWB/5/ND/DG | B60: wpływy z dzierżawy gruntów | D60: NIE | E60: 600 | F60: 60015 | G60: 0750 | J60: 0 | K60: 0 | P60: 0 | Q60: 0
A61: DWB/5/ND/DG | B61: wpływy z dzierżawy gruntów | D61: NIE | E61: 600 | F61: 60016 | G61: 0750 | H61: 600160750G | I61: GMMW | J61: 0 | K61: 0 | P61: 0 | Q61: 0
A62: DWB/5/ND/DG | B62: wpływy z dzierżawy gruntów | D62: NIE | E62: 700 | F62: 70004 | G62: 0750 | J62: 0 | K62: 0 | P62: 0 | Q62: 0
A63: DWB/5/ND/DG | B63: wpływy z dzierżawy gruntów | D63: NIE | E63: 700 | F63: 70005 | G63: 0750 | H63: 700050750G | I63: GMMW | J63: 5700000 | K63: 1700000 | P63: 5700000 | Q63: 1700000 | R63: Tak
A64: DWB/5/ND/DG | B64: wpływy z dzierżawy gruntów | D64: NIE | E64: 750 | F64: 75023 | G64: 0750 | H64: 750230750G | I64: GMMW | J64: 0 | K64: 0 | P64: 0 | Q64: 0
A65: DWB/5/ND/DG | B65: wpływy z dzierżawy gruntów | D65: NIE | E65: 801 | F65: 80101 | G65: 0750 | J65: 0 | K65: 0 | P65: 0 | Q65: 0
A66: DWB/5/ND/DG | B66: wpływy z dzierżawy gruntów | D66: NIE | E66: 801 | F66: 80102 | G66: 0750 | J66: 0 | K66: 0 | P66: 0 | Q66: 0
A67: DWB/5/ND/DG | B67: wpływy z dzierżawy gruntów | D67: NIE | E67: 801 | F67: 80104 | G67: 0750 | J67: 0 | K67: 0 | P67: 0 | Q67: 0
A68: DWB/5/ND/DG | B68: wpływy z dzierżawy gruntów | D68: NIE | E68: 801 | F68: 80120 | G68: 0750 | J68: 0 | K68: 0 | P68: 0 | Q68: 0
A69: DWB/5/ND/DG | B69: wpływy z dzierżawy gruntów | D69: NIE | E69: 801 | F69: 80134 | G69: 0750 | J69: 0 | K69: 0 | P69: 0 | Q69: 0
A70: DWB/5/ND/DG | B70: wpływy z dzierżawy gruntów | D70: NIE | E70: 801 | F70: 80140 | G70: 0750 | J70: 0 | K70: 0 | P70: 0 | Q70: 0
A71: DWB/5/ND/DG | B71: wpływy z dzierżawy gruntów | D71: NIE | E71: 801 | F71: 80148 | G71: 0750 | J71: 0 | K71: 0 | P71: 0 | Q71: 0
A72: DWB/5/ND/DG | B72: wpływy z dzierżawy gruntów | D72: NIE | E72: 851 | F72: 85158 | G72: 0750 | J72: 0 | K72: 0 | P72: 0 | Q72: 0
A73: DWB/5/ND/DG | B73: wpływy z dzierżawy gruntów | D73: NIE | E73: 852 | F73: 85202 | G73: 0750 | H73: 852020750P | I73: PWMW | J73: 0 | K73: 0 | P73: =J73+M73-L73 -> 0 | Q73: =K73+O73-N73 -> 0 | R73: =IF(SUM(J73:Q73)>0,"Tak","") ->  | S73: =IF(SUM(L73:O73)>0,"Tak","") ->  | T73: =IF(OR(J73<K73,P73<Q73,L73<N73,M73<O73),"błędny urząd","") ->  | U73: =IF(OR(J73<0,K73<0,P73<0,Q73<0),"ujemny plan","") -> 
A74: DWB/5/ND/DG | B74: wpływy z dzierżawy gruntów | D74: NIE | E74: 854 | F74: 85403 | G74: 0750 | J74: 0 | K74: 0 | P74: 0 | Q74: 0
A75: DWB/5/ND/DG | B75: wpływy z dzierżawy gruntów | D75: NIE | E75: 854 | F75: 85407 | G75: 0750 | J75: 0 | K75: 0 | P75: 0 | Q75: 0
A76: DWB/5/ND/DG | B76: wpływy z dzierżawy gruntów | D76: NIE | E76: 854 | F76: 85410 | G76: 0750 | J76: 0 | K76: 0 | P76: 0 | Q76: 0
A77: DWB/5/ND/DG | B77: wpływy z dzierżawy gruntów | D77: NIE | E77: 854 | F77: 85412 | G77: 0750 | J77: 0 | K77: 0 | P77: 0 | Q77: 0
A78: DWB/5/ND/DG | B78: wpływy z dzierżawy gruntów | D78: NIE | E78: 854 | F78: 85420 | G78: 0750 | J78: 0 | K78: 0 | P78: 0 | Q78: 0
A79: DWB/5/ND/DG | B79: wpływy z dzierżawy gruntów | D79: NIE | E79: 854 | F79: 85421 | G79: 0750 | J79: 0 | K79: 0 | P79: 0 | Q79: 0
A80: DWB/5/ND/DG | B80: wpływy z dzierżawy gruntów | D80: NIE | E80: 855 | F80: 85510 | G80: 0750 | H80: 855100750P | I80: PWMW | J80: 0 | K80: 0 | P80: 0 | Q80: 0
A81: DWB/5/ND/DG | B81: wpływy z dzierżawy gruntów | D81: NIE | E81: 900 | F81: 90002 | G81: 0750 | J81: 0 | K81: 0 | P81: 0 | Q81: 0
A82: DWB/5/ND/DG | B82: wpływy z dzierżawy gruntów | D82: NIE | E82: 900 | F82: 90003 | G82: 0750 | J82: 0 | K82: 0 | P82: 0 | Q82: 0
A83: DWB/5/ND/DG | B83: wpływy z dzierżawy gruntów | D83: NIE | E83: 900 | F83: 90004 | G83: 0750 | J83: 0 | K83: 0 | P83: 0 | Q83: 0
A84: DWB/5/ND/DG | B84: wpływy z dzierżawy gruntów | D84: NIE | E84: 900 | F84: 90095 | G84: 0750 | H84: 900950750G | I84: GMMW | J84: 4500000 | K84: 0 | P84: 4500000 | Q84: 0 | R84: Tak
A85: DWB/5/ND/DG | B85: wpływy z dzierżawy gruntów | D85: NIE | E85: 925 | F85: 92504 | G85: 0750 | J85: 0 | K85: 0 | P85: 0 | Q85: 0
A86: DWB/5/ND/DG | B86: wpływy z dzierżawy gruntów | D86: NIE | E86: 926 | F86: 92604 | G86: 0750 | H86: 926040750G | I86: GMMW | J86: 0 | K86: 0 | P86: 0 | Q86: 0
A87: DWB/5/ND/DP | B87: wpływy z dzierżawy parkingów | D87: T | G87: 0750 | J87: =SUM(J88) -> 0 | K87: 0 | L87: 0 | M87: 0 | N87: 0 | O87: 0 | P87: 0 | Q87: 0
A88: DWB/5/ND/DP | B88: wpływy z dzierżawy parkingów | D88: NIE | E88: 600 | F88: 60015 | G88: 0750 | H88: 600150750G | I88: GMMW | P88: 0 | Q88: 0
A89: DWB/5/ND/MI | B89: wpływy z czynszu za mieszkania komunalne | D89: T | G89: 0750 | J89: =SUM(J90:J118) -> 60000000 | K89: =SUM(K90:K118) -> 0 | L89: 0 | M89: 0 | N89: 0 | O89: 0 | P89: 60000000 | Q89: 0 | R89: Tak
A90: DWB/5/ND/MI | B90: wpływy z czynszu za mieszkania komunalne | D90: NIE | E90: 600 | F90: 60004 | G90: 0750 | P90: 0 | Q90: 0
A91: DWB/5/ND/MI | B91: wpływy z czynszu za mieszkania komunalne | D91: NIE | E91: 600 | F91: 60015 | G91: 0750 | P91: 0 | Q91: 0
A92: DWB/5/ND/MI | B92: wpływy z czynszu za mieszkania komunalne | D92: NIE | E92: 600 | F92: 60016 | G92: 0750 | P92: 0 | Q92: 0
A93: DWB/5/ND/MI | B93: wpływy z czynszu za mieszkania komunalne | D93: NIE | E93: 700 | F93: 70004 | G93: 0750 | P93: 0 | Q93: 0
A94: DWB/5/ND/MI | B94: wpływy z czynszu za mieszkania komunalne | D94: NIE | E94: 700 | F94: 70005 | G94: 0750 | H94: 700050750G | I94: GMMW | J94: 0 | K94: 0 | P94: 0 | Q94: 0
A95: DWB/5/ND/MI | B95: wpływy z czynszu za mieszkania komunalne | D95: NIE | E95: 700 | F95: 70007 | G95: 0750 | H95: 700070750G | I95: GMMW | J95: 60000000 | K95: 0 | P95: 60000000 | Q95: 0 | R95: Tak
A96: DWB/5/ND/MI | B96: wpływy z czynszu za mieszkania komunalne | D96: NIE | E96: 750 | F96: 75023 | G96: 0750 | P96: 0 | Q96: 0
A97: DWB/5/ND/MI | B97: wpływy z czynszu za mieszkania komunalne | D97: NIE | E97: 801 | F97: 80101 | G97: 0750 | P97: 0 | Q97: 0
A98: DWB/5/ND/MI | B98: wpływy z czynszu za mieszkania komunalne | D98: NIE | E98: 801 | F98: 80102 | G98: 0750 | P98: 0 | Q98: 0
A99: DWB/5/ND/MI | B99: wpływy z czynszu za mieszkania komunalne | D99: NIE | E99: 801 | F99: 80104 | G99: 0750 | P99: 0 | Q99: 0
A100: DWB/5/ND/MI | B100: wpływy z czynszu za mieszkania komunalne | D100: NIE | E100: 801 | F100: 80120 | G100: 0750 | P100: 0 | Q100: 0
A101: DWB/5/ND/MI | B101: wpływy z czynszu za mieszkania komunalne | D101: NIE | E101: 801 | F101: 80134 | G101: 0750 | P101: 0 | Q101: 0
A102: DWB/5/ND/MI | B102: wpływy z czynszu za mieszkania komunalne | D102: NIE | E102: 801 | F102: 80140 | G102: 0750 | P102: 0 | Q102: 0
A103: DWB/5/ND/MI | B103: wpływy z czynszu za mieszkania komunalne | D103: NIE | E103: 801 | F103: 80148 | G103: 0750 | P103: 0 | Q103: 0
A104: DWB/5/ND/MI | B104: wpływy z czynszu za mieszkania komunalne | D104: NIE | E104: 851 | F104: 85158 | G104: 0750 | P104: 0 | Q104: 0
A105: DWB/5/ND/MI | B105: wpływy z czynszu za mieszkania komunalne | D105: NIE | E105: 852 | F105: 85202 | G105: 0750 | P105: 0 | Q105: 0
A106: DWB/5/ND/MI | B106: wpływy z czynszu za mieszkania komunalne | D106: NIE | E106: 854 | F106: 85403 | G106: 0750 | P106: 0 | Q106: 0
A107: DWB/5/ND/MI | B107: wpływy z czynszu za mieszkania komunalne | D107: NIE | E107: 854 | F107: 85407 | G107: 0750 | P107: 0 | Q107: 0
A108: DWB/5/ND/MI | B108: wpływy z czynszu za mieszkania komunalne | D108: NIE | E108: 854 | F108: 85410 | G108: 0750 | P108: 0 | Q108: 0
A109: DWB/5/ND/MI | B109: wpływy z czynszu za mieszkania komunalne | D109: NIE | E109: 854 | F109: 85412 | G109: 0750 | P109: 0 | Q109: 0
A110: DWB/5/ND/MI | B110: wpływy z czynszu za mieszkania komunalne | D110: NIE | E110: 854 | F110: 85420 | G110: 0750 | P110: 0 | Q110: 0
A111: DWB/5/ND/MI | B111: wpływy z czynszu za mieszkania komunalne | D111: NIE | E111: 854 | F111: 85421 | G111: 0750 | P111: 0 | Q111: 0
A112: DWB/5/ND/MI | B112: wpływy z czynszu za mieszkania komunalne | D112: NIE | E112: 855 | F112: 85510 | G112: 0750 | H112: 855100750P | I112: PWMW | P112: 0 | Q112: 0
A113: DWB/5/ND/MI | B113: wpływy z czynszu za mieszkania komunalne | D113: NIE | E113: 855 | F113: 85595 | G113: 0750 | P113: 0 | Q113: 0
A114: DWB/5/ND/MI | B114: wpływy z czynszu za mieszkania komunalne | D114: NIE | E114: 900 | F114: 90002 | G114: 0750 | P114: 0 | Q114: 0
A115: DWB/5/ND/MI | B115: wpływy z czynszu za mieszkania komunalne | D115: NIE | E115: 900 | F115: 90003 | G115: 0750 | P115: 0 | Q115: 0
A116: DWB/5/ND/MI | B116: wpływy z czynszu za mieszkania komunalne | D116: NIE | E116: 900 | F116: 90095 | G116: 0750 | P116: 0 | Q116: 0
A117: DWB/5/ND/MI | B117: wpływy z czynszu za mieszkania komunalne | D117: NIE | E117: 925 | F117: 92504 | G117: 0750 | P117: 0 | Q117: 0
A118: DWB/5/ND/MI | B118: wpływy z czynszu za mieszkania komunalne | D118: NIE | E118: 926 | F118: 92604 | G118: 0750 | H118: 926040750G | I118: GMMW | P118: 0 | Q118: 0
A119: DWB/5/ND/NG | B119: wpływy z najmu garaży | D119: T | G119: 0750 | J119: =SUM(J120:J146) -> 2000000 | K119: =SUM(K120:K146) -> 0 | L119: 0 | M119: 0 | N119: 0 | O119: 0 | P119: 2000000 | Q119: 0 | R119: Tak
A120: DWB/5/ND/NG | B120: wpływy z najmu garaży | D120: NIE | E120: 600 | F120: 60004 | G120: 0750 | J120: 0 | K120: 0 | P120: 0 | Q120: 0
A121: DWB/5/ND/NG | B121: wpływy z najmu garaży | D121: NIE | E121: 600 | F121: 60015 | G121: 0750 | J121: 0 | K121: 0 | P121: 0 | Q121: 0
A122: DWB/5/ND/NG | B122: wpływy z najmu garaży | D122: NIE | E122: 600 | F122: 60016 | G122: 0750 | J122: 0 | K122: 0 | P122: 0 | Q122: 0
A123: DWB/5/ND/NG | B123: wpływy z najmu garaży | D123: NIE | E123: 700 | F123: 70004 | G123: 0750 | J123: 0 | K123: 0 | P123: 0 | Q123: 0
A124: DWB/5/ND/NG | B124: wpływy z najmu garaży | D124: NIE | E124: 700 | F124: 70005 | G124: 0750 | H124: 700050750G | I124: GMMW | J124: 2000000 | K124: 0 | P124: 2000000 | Q124: 0 | R124: Tak
A125: DWB/5/ND/NG | B125: wpływy z najmu garaży | D125: NIE | E125: 750 | F125: 75023 | G125: 0750 | J125: 0 | K125: 0 | P125: 0 | Q125: 0
A126: DWB/5/ND/NG | B126: wpływy z najmu garaży | D126: NIE | E126: 801 | F126: 80101 | G126: 0750 | J126: 0 | K126: 0 | P126: 0 | Q126: 0
A127: DWB/5/ND/NG | B127: wpływy z najmu garaży | D127: NIE | E127: 801 | F127: 80102 | G127: 0750 | J127: 0 | K127: 0 | P127: 0 | Q127: 0
A128: DWB/5/ND/NG | B128: wpływy z najmu garaży | D128: NIE | E128: 801 | F128: 80104 | G128: 0750 | J128: 0 | K128: 0 | P128: 0 | Q128: 0
A129: DWB/5/ND/NG | B129: wpływy z najmu garaży | D129: NIE | E129: 801 | F129: 80120 | G129: 0750 | J129: 0 | K129: 0 | P129: 0 | Q129: 0
A130: DWB/5/ND/NG | B130: wpływy z najmu garaży | D130: NIE | E130: 801 | F130: 80134 | G130: 0750 | J130: 0 | K130: 0 | P130: 0 | Q130: 0
A131: DWB/5/ND/NG | B131: wpływy z najmu garaży | D131: NIE | E131: 801 | F131: 80140 | G131: 0750 | J131: 0 | K131: 0 | P131: 0 | Q131: 0
A132: DWB/5/ND/NG | B132: wpływy z najmu garaży | D132: NIE | E132: 801 | F132: 80148 | G132: 0750 | J132: 0 | K132: 0 | P132: 0 | Q132: 0
A133: DWB/5/ND/NG | B133: wpływy z najmu garaży | D133: NIE | E133: 851 | F133: 85158 | G133: 0750 | J133: 0 | K133: 0 | P133: 0 | Q133: 0
A134: DWB/5/ND/NG | B134: wpływy z najmu garaży | D134: NIE | E134: 852 | F134: 85202 | G134: 0750 | J134: 0 | K134: 0 | P134: 0 | Q134: 0
A135: DWB/5/ND/NG | B135: wpływy z najmu garaży | D135: NIE | E135: 854 | F135: 85403 | G135: 0750 | J135: 0 | K135: 0 | P135: 0 | Q135: 0
A136: DWB/5/ND/NG | B136: wpływy z najmu garaży | D136: NIE | E136: 854 | F136: 85407 | G136: 0750 | J136: 0 | K136: 0 | P136: 0 | Q136: 0
A137: DWB/5/ND/NG | B137: wpływy z najmu garaży | D137: NIE | E137: 854 | F137: 85410 | G137: 0750 | J137: 0 | K137: 0 | P137: 0 | Q137: 0
A138: DWB/5/ND/NG | B138: wpływy z najmu garaży | D138: NIE | E138: 854 | F138: 85412 | G138: 0750 | J138: 0 | K138: 0 | P138: =J138+M138-L138 -> 0 | Q138: =K138+O138-N138 -> 0 | R138: =IF(SUM(J138:Q138)>0,"Tak","") ->  | S138: =IF(SUM(L138:O138)>0,"Tak","") ->  | T138: =IF(OR(J138<K138,P138<Q138,L138<N138,M138<O138),"błędny urząd","") ->  | U138: =IF(OR(J138<0,K138<0,P138<0,Q138<0),"ujemny plan","") -> 
A139: DWB/5/ND/NG | B139: wpływy z najmu garaży | D139: NIE | E139: 854 | F139: 85420 | G139: 0750 | J139: 0 | K139: 0 | P139: 0 | Q139: 0
A140: DWB/5/ND/NG | B140: wpływy z najmu garaży | D140: NIE | E140: 854 | F140: 85421 | G140: 0750 | J140: 0 | K140: 0 | P140: 0 | Q140: 0
A141: DWB/5/ND/NG | B141: wpływy z najmu garaży | D141: NIE | E141: 855 | F141: 85510 | G141: 0750 | J141: 0 | K141: 0 | P141: 0 | Q141: 0
A142: DWB/5/ND/NG | B142: wpływy z najmu garaży | D142: NIE | E142: 900 | F142: 90002 | G142: 0750 | J142: 0 | K142: 0 | P142: 0 | Q142: 0
A143: DWB/5/ND/NG | B143: wpływy z najmu garaży | D143: NIE | E143: 900 | F143: 90003 | G143: 0750 | J143: 0 | K143: 0 | P143: 0 | Q143: 0
A144: DWB/5/ND/NG | B144: wpływy z najmu garaży | D144: NIE | E144: 900 | F144: 90095 | G144: 0750 | J144: 0 | K144: 0 | P144: 0 | Q144: 0
A145: DWB/5/ND/NG | B145: wpływy z najmu garaży | D145: NIE | E145: 925 | F145: 92504 | G145: 0750 | J145: 0 | K145: 0 | P145: 0 | Q145: 0
A146: DWB/5/ND/NG | B146: wpływy z najmu garaży | D146: NIE | E146: 926 | F146: 92604 | G146: 0750 | J146: 0 | K146: 0 | P146: 0 | Q146: 0
A147: DWB/5/ND/NN | B147: wpływy z najmu nieruchomości | D147: T | G147: 0750 | J147: =SUM(J148:J177) -> 0 | K147: 0 | L147: 0 | M147: 0 | N147: 0 | O147: 0 | P147: 0 | Q147: 0
A148: DWB/5/ND/NN | B148: wpływy z najmu nieruchomości | D148: NIE | E148: 600 | F148: 60004 | G148: 0750 | P148: 0 | Q148: 0
A149: DWB/5/ND/NN | B149: wpływy z najmu nieruchomości | D149: NIE | E149: 600 | F149: 60015 | G149: 0750 | P149: 0 | Q149: 0
A150: DWB/5/ND/NN | B150: wpływy z najmu nieruchomości | D150: NIE | E150: 600 | F150: 60016 | G150: 0750 | P150: 0 | Q150: 0
A151: DWB/5/ND/NN | B151: wpływy z najmu nieruchomości | D151: NIE | E151: 700 | F151: 70004 | G151: 0750 | P151: 0 | Q151: 0
A152: DWB/5/ND/NN | B152: wpływy z najmu nieruchomości | D152: NIE | E152: 700 | F152: 70005 | G152: 0750 | H152: 700050750G | I152: GMMW | P152: 0 | Q152: 0
A153: DWB/5/ND/NN | B153: wpływy z najmu nieruchomości | D153: NIE | E153: 750 | F153: 75023 | G153: 0750 | P153: 0 | Q153: 0
A154: DWB/5/ND/NN | B154: wpływy z najmu nieruchomości | D154: NIE | E154: 801 | F154: 80101 | G154: 0750 | P154: 0 | Q154: 0
A155: DWB/5/ND/NN | B155: wpływy z najmu nieruchomości | D155: NIE | E155: 801 | F155: 80102 | G155: 0750 | P155: 0 | Q155: 0
A156: DWB/5/ND/NN | B156: wpływy z najmu nieruchomości | D156: NIE | E156: 801 | F156: 80104 | G156: 0750 | P156: 0 | Q156: 0
A157: DWB/5/ND/NN | B157: wpływy z najmu nieruchomości | D157: NIE | E157: 801 | F157: 80120 | G157: 0750 | P157: 0 | Q157: 0
A158: DWB/5/ND/NN | B158: wpływy z najmu nieruchomości | D158: NIE | E158: 801 | F158: 80134 | G158: 0750 | P158: 0 | Q158: 0
A159: DWB/5/ND/NN | B159: wpływy z najmu nieruchomości | D159: NIE | E159: 801 | F159: 80140 | G159: 0750 | P159: 0 | Q159: 0
A160: DWB/5/ND/NN | B160: wpływy z najmu nieruchomości | D160: NIE | E160: 801 | F160: 80148 | G160: 0750 | P160: 0 | Q160: 0
A161: DWB/5/ND/NN | B161: wpływy z najmu nieruchomości | D161: NIE | E161: 851 | F161: 85111 | G161: 0750 | P161: 0 | Q161: 0
A162: DWB/5/ND/NN | B162: wpływy z najmu nieruchomości | D162: NIE | E162: 851 | F162: 85158 | G162: 0750 | P162: 0 | Q162: 0
A163: DWB/5/ND/NN | B163: wpływy z najmu nieruchomości | D163: NIE | E163: 852 | F163: 85202 | G163: 0750 | P163: 0 | Q163: 0
A164: DWB/5/ND/NN | B164: wpływy z najmu nieruchomości | D164: NIE | E164: 852 | F164: 85295 | G164: 0750 | H164: 852950750G | I164: GMMW | P164: 0 | Q164: 0
A165: DWB/5/ND/NN | B165: wpływy z najmu nieruchomości | D165: NIE | E165: 854 | F165: 85403 | G165: 0750 | P165: 0 | Q165: 0
A166: DWB/5/ND/NN | B166: wpływy z najmu nieruchomości | D166: NIE | E166: 854 | F166: 85407 | G166: 0750 | P166: 0 | Q166: 0
A167: DWB/5/ND/NN | B167: wpływy z najmu nieruchomości | D167: NIE | E167: 854 | F167: 85410 | G167: 0750 | P167: 0 | Q167: 0
A168: DWB/5/ND/NN | B168: wpływy z najmu nieruchomości | D168: NIE | E168: 854 | F168: 85412 | G168: 0750 | P168: 0 | Q168: 0
A169: DWB/5/ND/NN | B169: wpływy z najmu nieruchomości | D169: NIE | E169: 854 | F169: 85420 | G169: 0750 | P169: 0 | Q169: 0
A170: DWB/5/ND/NN | B170: wpływy z najmu nieruchomości | D170: NIE | E170: 854 | F170: 85421 | G170: 0750 | P170: 0 | Q170: 0
A171: DWB/5/ND/NN | B171: wpływy z najmu nieruchomości | D171: NIE | E171: 855 | F171: 85510 | G171: 0750 | H171: 855100750P | I171: PWMW | P171: 0 | Q171: 0
A172: DWB/5/ND/NN | B172: wpływy z najmu nieruchomości | D172: NIE | E172: 900 | F172: 90002 | G172: 0750 | P172: 0 | Q172: 0
A173: DWB/5/ND/NN | B173: wpływy z najmu nieruchomości | D173: NIE | E173: 900 | F173: 90003 | G173: 0750 | H173: 900030750G | I173: GMMW | P173: 0 | Q173: 0
A174: DWB/5/ND/NN | B174: wpływy z najmu nieruchomości | D174: NIE | E174: 900 | F174: 90095 | G174: 0750 | P174: 0 | Q174: 0
A175: DWB/5/ND/NN | B175: wpływy z najmu nieruchomości | D175: NIE | E175: 900 | F175: 90004 | G175: 0750 | P175: 0 | Q175: 0
A176: DWB/5/ND/NN | B176: wpływy z najmu nieruchomości | D176: NIE | E176: 925 | F176: 92504 | G176: 0750 | P176: 0 | Q176: 0
A177: DWB/5/ND/NN | B177: wpływy z najmu nieruchomości | D177: NIE | E177: 926 | F177: 92604 | G177: 0750 | P177: 0 | Q177: 0
A178: DWB/5/ND/LU | B178: wpływy z najmu lokali użytkowych | D178: T | G178: 0750 | H178: =IF(I178="","",(CONCATENATE(F178,G178,IF(LEFT(I178,1)<>"S",LEFT(I178,1),(IF(OR(I178="SFUE/12/14",I178="SFUE/12/1",I178="SFUE/12/19",I178="SFUE/12/23"),"P","G")))))) ->  | J178: =SUM(J179:J205) -> 153000000 | K178: =SUM(K179:K205) -> 0 | L178: 0 | M178: 0 | N178: 0 | O178: 0 | P178: 153000000 | Q178: 0 | R178: Tak
A179: DWB/5/ND/LU | B179: wpływy z najmu lokali użytkowych | D179: NIE | E179: 600 | F179: 60004 | G179: 0750 | J179: 0 | K179: 0 | P179: 0 | Q179: 0
A180: DWB/5/ND/LU | B180: wpływy z najmu lokali użytkowych | D180: NIE | E180: 600 | F180: 60015 | G180: 0750 | J180: 0 | K180: 0 | P180: 0 | Q180: 0
A181: DWB/5/ND/LU | B181: wpływy z najmu lokali użytkowych | D181: NIE | E181: 600 | F181: 60016 | G181: 0750 | J181: 0 | K181: 0 | P181: 0 | Q181: 0
A182: DWB/5/ND/LU | B182: wpływy z najmu lokali użytkowych | D182: NIE | E182: 700 | F182: 70004 | G182: 0750 | J182: 0 | K182: 0 | P182: 0 | Q182: 0
A183: DWB/5/ND/LU | B183: wpływy z najmu lokali użytkowych | D183: NIE | E183: 700 | F183: 70005 | G183: 0750 | H183: 700050750G | I183: GMMW | J183: 151000000 | K183: 0 | P183: 151000000 | Q183: 0 | R183: Tak
A184: DWB/5/ND/LU | B184: wpływy z najmu lokali użytkowych | D184: NIE | E184: 750 | F184: 75023 | G184: 0750 | H184: 750230750G | I184: GMMW | J184: 0 | K184: 0 | P184: 0 | Q184: 0
A185: DWB/5/ND/LU | B185: wpływy z najmu lokali użytkowych | D185: NIE | E185: 801 | F185: 80101 | G185: 0750 | J185: 0 | K185: 0 | P185: 0 | Q185: 0
A186: DWB/5/ND/LU | B186: wpływy z najmu lokali użytkowych | D186: NIE | E186: 801 | F186: 80102 | G186: 0750 | J186: 0 | K186: 0 | P186: 0 | Q186: 0
A187: DWB/5/ND/LU | B187: wpływy z najmu lokali użytkowych | D187: NIE | E187: 801 | F187: 80104 | G187: 0750 | J187: 0 | K187: 0 | P187: 0 | Q187: 0
A188: DWB/5/ND/LU | B188: wpływy z najmu lokali użytkowych | D188: NIE | E188: 801 | F188: 80120 | G188: 0750 | J188: 0 | K188: 0 | P188: 0 | Q188: 0
A189: DWB/5/ND/LU | B189: wpływy z najmu lokali użytkowych | D189: NIE | E189: 801 | F189: 80134 | G189: 0750 | J189: 0 | K189: 0 | P189: 0 | Q189: 0
A190: DWB/5/ND/LU | B190: wpływy z najmu lokali użytkowych | D190: NIE | E190: 801 | F190: 80140 | G190: 0750 | J190: 0 | K190: 0 | P190: 0 | Q190: 0
A191: DWB/5/ND/LU | B191: wpływy z najmu lokali użytkowych | D191: NIE | E191: 801 | F191: 80148 | G191: 0750 | J191: 0 | K191: 0 | P191: 0 | Q191: 0
A192: DWB/5/ND/LU | B192: wpływy z najmu lokali użytkowych | D192: NIE | E192: 851 | F192: 85158 | G192: 0750 | J192: 0 | K192: 0 | P192: 0 | Q192: 0
A193: DWB/5/ND/LU | B193: wpływy z najmu lokali użytkowych | D193: NIE | E193: 852 | F193: 85202 | G193: 0750 | J193: 0 | K193: 0 | P193: 0 | Q193: 0
A194: DWB/5/ND/LU | B194: wpływy z najmu lokali użytkowych | D194: NIE | E194: 854 | F194: 85403 | G194: 0750 | J194: 0 | K194: 0 | P194: 0 | Q194: 0
A195: DWB/5/ND/LU | B195: wpływy z najmu lokali użytkowych | D195: NIE | E195: 854 | F195: 85407 | G195: 0750 | J195: 0 | K195: 0 | P195: 0 | Q195: 0
A196: DWB/5/ND/LU | B196: wpływy z najmu lokali użytkowych | D196: NIE | E196: 854 | F196: 85410 | G196: 0750 | J196: 0 | K196: 0 | P196: 0 | Q196: 0
A197: DWB/5/ND/LU | B197: wpływy z najmu lokali użytkowych | D197: NIE | E197: 854 | F197: 85412 | G197: 0750 | J197: 0 | K197: 0 | P197: 0 | Q197: 0
A198: DWB/5/ND/LU | B198: wpływy z najmu lokali użytkowych | D198: NIE | E198: 854 | F198: 85420 | G198: 0750 | J198: 0 | K198: 0 | P198: 0 | Q198: 0
A199: DWB/5/ND/LU | B199: wpływy z najmu lokali użytkowych | D199: NIE | E199: 854 | F199: 85421 | G199: 0750 | J199: 0 | K199: 0 | P199: 0 | Q199: 0
A200: DWB/5/ND/LU | B200: wpływy z najmu lokali użytkowych | D200: NIE | E200: 855 | F200: 85510 | G200: 0750 | H200: 855100750P | I200: PWMW | J200: 0 | K200: 0 | P200: 0 | Q200: 0
... 1565 more rows

Sheet KLASYCZNY (2)
A1: PLAN DOCHODÓW na 2025 rok w UKŁADZIE KLASYCZNYM | L1: Załącznik Nr 5 do Uchwały Nr 58/12/2025 Rady Dzielnicy Śródmieście m.st. Warszawy z dnia 18.02.2025 r.
E3: =E1335 -> 454080525 | F3: 90313525 | G3: 752200 | H3: 752200 | I3: 0 | J3: 0 | K3: 454080525 | L3: 90313525
A4: Dział | B4: Rozdział | C4: § | D4: Wyszczególnienie | E4: PLAN | F4: w tym Urząd m.st. Warszawy | G4: PLAN Zmiana[-] | H4: PLAN Zmiana[+] | I4: w tym Urząd Zmiana[-] | J4: w tym Urząd Zmiana[+] | K4: PLAN PO ZMIANIE | L4: w tym Urząd PO ZMIANIE | M4: Wypełnione Pozycje | N4: Wypełnione Zmiany
A5: 010 | D5: Rolnictwo i łowiectwo | E5: =SUM(E6) -> 0 | F5: 0 | G5: 0 | H5: 0 | I5: 0 | J5: 0 | K5: 0 | L5: 0 | M5: =IF(SUM(E5:L5)>0,"Tak","") ->  | N5: =IF(SUM(G5:J5)>0,"Tak","") -> 
B6: 01095 | D6: Pozostała działalność | E6: 0 | F6: 0 | G6: 0 | H6: 0 | I6: 0 | J6: 0 | K6: 0 | L6: 0
C7: 2010 | D7: Dotacje celowe otrzymane z budżetu państwa na realizację zadań bieżących z zakresu administracji rządowej oraz innych zadań zleconych gminie (związkom gmin, związkom powiatowo-gminnym) ustawami | E7: =0+'ZADANIOWY (2)'!J1061 -> 0 | F7: =0+'ZADANIOWY (2)'!K1061 -> 0 | G7: =0+'ZADANIOWY (2)'!L1061 -> 0 | H7: =0+'ZADANIOWY (2)'!M1061 -> 0 | I7: =0+'ZADANIOWY (2)'!N1061 -> 0 | J7: =0+'ZADANIOWY (2)'!O1061 -> 0 | K7: =E7-G7+H7 -> 0 | L7: =F7-I7+J7 -> 0
A8: 020 | D8: Leśnictwo | E8: =SUM(E9,E15) -> 0 | F8: 0 | G8: 0 | H8: 0 | I8: 0 | J8: 0 | K8: 0 | L8: 0
B9: 02001 | D9: Gospodarka leśna | E9: =SUM(E10:E14) -> 0 | F9: 0 | G9: 0 | H9: 0 | I9: 0 | J9: 0 | K9: 0 | L9: 0
C10: 0750 | D10: Wpływy z najmu i dzierżawy składników majątkowych Skarbu Państwa, jednostek samorządu terytorialnego lub innych jednostek zaliczanych do sektora finansów publicznych oraz innych umów o podobnym charakterze | E10: =0+'ZADANIOWY (2)'!J209 -> 0 | F10: =0+'ZADANIOWY (2)'!K209 -> 0 | G10: =0+'ZADANIOWY (2)'!L209 -> 0 | H10: =0+'ZADANIOWY (2)'!M209 -> 0 | I10: =0+'ZADANIOWY (2)'!N209 -> 0 | J10: =0+'ZADANIOWY (2)'!O209 -> 0 | K10: 0 | L10: 0
C11: 0830 | D11: Wpływy z usług | E11: =0+'ZADANIOWY (2)'!J458+'ZADANIOWY (2)'!J495 -> 0 | F11: =0+'ZADANIOWY (2)'!K458+'ZADANIOWY (2)'!K495 -> 0 | G11: =0+'ZADANIOWY (2)'!L458+'ZADANIOWY (2)'!L495 -> 0 | H11: =0+'ZADANIOWY (2)'!M458+'ZADANIOWY (2)'!M495 -> 0 | I11: =0+'ZADANIOWY (2)'!N458+'ZADANIOWY (2)'!N495 -> 0 | J11: =0+'ZADANIOWY (2)'!O458+'ZADANIOWY (2)'!O495 -> 0 | K11: 0 | L11: 0
C12: 0920 | D12: Wpływy z pozostałych odsetek | E12: =0+'ZADANIOWY (2)'!J592 -> 0 | F12: =0+'ZADANIOWY (2)'!K592 -> 0 | G12: =0+'ZADANIOWY (2)'!L592 -> 0 | H12: =0+'ZADANIOWY (2)'!M592 -> 0 | I12: =0+'ZADANIOWY (2)'!N592 -> 0 | J12: =0+'ZADANIOWY (2)'!O592 -> 0 | K12: 0 | L12: 0
C13: 0970 | D13: Wpływy z różnych dochodów | E13: =0+'ZADANIOWY (2)'!J719 -> 0 | F13: =0+'ZADANIOWY (2)'!K719 -> 0 | G13: =0+'ZADANIOWY (2)'!L719 -> 0 | H13: =0+'ZADANIOWY (2)'!M719 -> 0 | I13: =0+'ZADANIOWY (2)'!N719 -> 0 | J13: =0+'ZADANIOWY (2)'!O719 -> 0 | K13: 0 | L13: 0
C14: 2700 | D14: Środki na dofinansowanie własnych zadań bieżących gmin, powiatów (związków gmin, związków powiatowo-gminnych, związków powiatów), samorządów województw, pozyskane z innych źródeł | E14: =0+'ZADANIOWY (2)'!J1163 -> 0 | F14: =0+'ZADANIOWY (2)'!K1163 -> 0 | G14: =0+'ZADANIOWY (2)'!L1163 -> 0 | H14: =0+'ZADANIOWY (2)'!M1163 -> 0 | I14: =0+'ZADANIOWY (2)'!N1163 -> 0 | J14: =0+'ZADANIOWY (2)'!O1163 -> 0 | K14: 0 | L14: 0
B15: 02095 | D15: Pozostała działalność | E15: =SUM(E16:E16) -> 0 | F15: 0 | G15: 0 | H15: 0 | I15: 0 | J15: 0 | K15: 0 | L15: 0
C16: 2700 | D16: Środki na dofinansowanie własnych zadań bieżących gmin, powiatów (związków gmin, związków powiatowo-gminnych, związków powiatów), samorządów województw, pozyskane z innych źródeł | E16: =0+'ZADANIOWY (2)'!J911+'ZADANIOWY (2)'!J1164 -> 0 | F16: =0+'ZADANIOWY (2)'!K911+'ZADANIOWY (2)'!K1164 -> 0 | G16: =0+'ZADANIOWY (2)'!L911+'ZADANIOWY (2)'!L1164 -> 0 | H16: =0+'ZADANIOWY (2)'!M911+'ZADANIOWY (2)'!M1164 -> 0 | I16: =0+'ZADANIOWY (2)'!N911+'ZADANIOWY (2)'!N1164 -> 0 | J16: =0+'ZADANIOWY (2)'!O911+'ZADANIOWY (2)'!O1164 -> 0 | K16: 0 | L16: 0
A17: 400 | D17: Wytwarzanie i zaopatrywanie w energię elektryczną, gaz i wodę | E17: =SUM(E18) -> 0 | F17: 0 | G17: 0 | H17: 0 | I17: 0 | J17: 0 | K17: 0 | L17: 0
B18: 40002 | D18: Dostarczanie wody | E18: =SUM(E19:E23) -> 0 | F18: 0 | G18: 0 | H18: 0 | I18: 0 | J18: 0 | K18: 0 | L18: 0
C19: 0580 | D19: Wpływy z tytułu grzywien i innych kar pieniężnych od osób prawnych i innych jednostek organizacyjnych | E19: =0 -> 0 | F19: =0 -> 0 | G19: =0 -> 0 | H19: =0 -> 0 | I19: =0 -> 0 | J19: =0 -> 0 | K19: 0 | L19: 0
C20: 0690 | D20: Wpływy z różnych opłat | E20: =0 -> 0 | F20: =0 -> 0 | G20: =0 -> 0 | H20: =0 -> 0 | I20: =0 -> 0 | J20: =0 -> 0 | K20: 0 | L20: 0
C21: 0830 | D21: Wpływy z usług | E21: =0+'ZADANIOWY (2)'!J459+'ZADANIOWY (2)'!J496 -> 0 | F21: =0+'ZADANIOWY (2)'!K459+'ZADANIOWY (2)'!K496 -> 0 | G21: =0+'ZADANIOWY (2)'!L459+'ZADANIOWY (2)'!L496 -> 0 | H21: =0+'ZADANIOWY (2)'!M459+'ZADANIOWY (2)'!M496 -> 0 | I21: =0+'ZADANIOWY (2)'!N459+'ZADANIOWY (2)'!N496 -> 0 | J21: =0+'ZADANIOWY (2)'!O459+'ZADANIOWY (2)'!O496 -> 0 | K21: 0 | L21: 0
C22: 0920 | D22: Wpływy z pozostałych odsetek | E22: =0+'ZADANIOWY (2)'!J593 -> 0 | F22: =0+'ZADANIOWY (2)'!K593 -> 0 | G22: =0+'ZADANIOWY (2)'!L593 -> 0 | H22: =0+'ZADANIOWY (2)'!M593 -> 0 | I22: =0+'ZADANIOWY (2)'!N593 -> 0 | J22: =0+'ZADANIOWY (2)'!O593 -> 0 | K22: 0 | L22: 0
C23: 0970 | D23: Wpływy z różnych dochodów | E23: =0+'ZADANIOWY (2)'!J720 -> 0 | F23: =0+'ZADANIOWY (2)'!K720 -> 0 | G23: =0+'ZADANIOWY (2)'!L720 -> 0 | H23: =0+'ZADANIOWY (2)'!M720 -> 0 | I23: =0+'ZADANIOWY (2)'!N720 -> 0 | J23: =0+'ZADANIOWY (2)'!O720 -> 0 | K23: 0 | L23: 0
A24: 500 | D24: Handel | E24: =SUM(E25) -> 0 | F24: 0 | G24: 0 | H24: 0 | I24: 0 | J24: 0 | K24: 0 | L24: 0
B25: 50095 | D25: Pozostała działalność | E25: =SUM(E26:E27) -> 0 | F25: 0 | G25: 0 | H25: 0 | I25: 0 | J25: 0 | K25: 0 | L25: 0
C26: 0970 | D26: Wpływy z różnych dochodów | E26: =0+'ZADANIOWY (2)'!J721 -> 0 | F26: =0+'ZADANIOWY (2)'!K721 -> 0 | G26: =0+'ZADANIOWY (2)'!L721 -> 0 | H26: =0+'ZADANIOWY (2)'!M721 -> 0 | I26: =0+'ZADANIOWY (2)'!N721 -> 0 | J26: =0+'ZADANIOWY (2)'!O721 -> 0 | K26: 0 | L26: 0
C27: 6680 | D27: Wpłata środków finansowych z niewykorzystanych w terminie wydatków, które nie wygasają z upływem roku budżetowego | E27: =0+'ZADANIOWY (2)'!J1601 -> 0 | F27: =0+'ZADANIOWY (2)'!K1601 -> 0 | G27: =0+'ZADANIOWY (2)'!L1601 -> 0 | H27: =0+'ZADANIOWY (2)'!M1601 -> 0 | I27: =0+'ZADANIOWY (2)'!N1601 -> 0 | J27: =0+'ZADANIOWY (2)'!O1601 -> 0 | K27: 0 | L27: 0
A28: 600 | D28: Transport i łączność | E28: =SUM(E29,E46,E55,E62,E71,E83,E96,E100,E103,E106,E109,E111) -> 14960000 | F28: 0 | G28: 0 | H28: 0 | I28: 0 | J28: 0 | K28: 14960000 | L28: 0 | M28: Tak
B29: 60004 | D29: Lokalny transport zbiorowy | E29: =SUM(E30:E45) -> 0 | F29: 0 | G29: 0 | H29: 0 | I29: 0 | J29: 0 | K29: 0 | L29: 0
C30: 0620 | D30: Wpływy z opłat za zezwolenia, akredytacje oraz opłaty ewidencyjne, w tym opłaty za częstotliwości | E30: =0+'ZADANIOWY (2)'!J375 -> 0 | F30: =0+'ZADANIOWY (2)'!K375 -> 0 | G30: =0+'ZADANIOWY (2)'!L375 -> 0 | H30: =0+'ZADANIOWY (2)'!M375 -> 0 | I30: =0+'ZADANIOWY (2)'!N375 -> 0 | J30: =0+'ZADANIOWY (2)'!O375 -> 0 | K30: =E30-G30+H30 -> 0 | L30: =F30-I30+J30 -> 0 | N30: =IF(SUM(G30:J30)>0,"Tak","") -> 
C31: 0690 | D31: Wpływy z różnych opłat | E31: =0+'ZADANIOWY (2)'!J411 -> 0 | F31: =0+'ZADANIOWY (2)'!K411 -> 0 | G31: =0+'ZADANIOWY (2)'!L411 -> 0 | H31: =0+'ZADANIOWY (2)'!M411 -> 0 | I31: =0+'ZADANIOWY (2)'!N411 -> 0 | J31: =0+'ZADANIOWY (2)'!O411 -> 0 | K31: 0 | L31: 0
C32: 0750 | D32: Wpływy z najmu i dzierżawy składników majątkowych Skarbu Państwa, jednostek samorządu terytorialnego lub innych jednostek zaliczanych do sektora finansów publicznych oraz innych umów o podobnym charakterze | E32: =0+'ZADANIOWY (2)'!J59+'ZADANIOWY (2)'!J90+'ZADANIOWY (2)'!J120+'ZADANIOWY (2)'!J148+'ZADANIOWY (2)'!J179+'ZADANIOWY (2)'!J210+'ZADANIOWY (2)'!J211+'ZADANIOWY (2)'!J246 -> 0 | F32: =0+'ZADANIOWY (2)'!K59+'ZADANIOWY (2)'!K90+'ZADANIOWY (2)'!K120+'ZADANIOWY (2)'!K148+'ZADANIOWY (2)'!K179+'ZADANIOWY (2)'!K210+'ZADANIOWY (2)'!K211+'ZADANIOWY (2)'!K246 -> 0 | G32: =0+'ZADANIOWY (2)'!L59+'ZADANIOWY (2)'!L90+'ZADANIOWY (2)'!L120+'ZADANIOWY (2)'!L148+'ZADANIOWY (2)'!L179+'ZADANIOWY (2)'!L210+'ZADANIOWY (2)'!L211+'ZADANIOWY (2)'!L246 -> 0 | H32: =0+'ZADANIOWY (2)'!M59+'ZADANIOWY (2)'!M90+'ZADANIOWY (2)'!M120+'ZADANIOWY (2)'!M148+'ZADANIOWY (2)'!M179+'ZADANIOWY (2)'!M210+'ZADANIOWY (2)'!M211+'ZADANIOWY (2)'!M246 -> 0 | I32: =0+'ZADANIOWY (2)'!N59+'ZADANIOWY (2)'!N90+'ZADANIOWY (2)'!N120+'ZADANIOWY (2)'!N148+'ZADANIOWY (2)'!N179+'ZADANIOWY (2)'!N210+'ZADANIOWY (2)'!N211+'ZADANIOWY (2)'!N246 -> 0 | J32: =0+'ZADANIOWY (2)'!O59+'ZADANIOWY (2)'!O90+'ZADANIOWY (2)'!O120+'ZADANIOWY (2)'!O148+'ZADANIOWY (2)'!O179+'ZADANIOWY (2)'!O210+'ZADANIOWY (2)'!O211+'ZADANIOWY (2)'!O246 -> 0 | K32: 0 | L32: 0
C33: 0830 | D33: Wpływy z usług | E33: =0+'ZADANIOWY (2)'!J460+'ZADANIOWY (2)'!J497+'ZADANIOWY (2)'!J539 -> 0 | F33: =0+'ZADANIOWY (2)'!K460+'ZADANIOWY (2)'!K497+'ZADANIOWY (2)'!K539 -> 0 | G33: =0+'ZADANIOWY (2)'!L460+'ZADANIOWY (2)'!L497+'ZADANIOWY (2)'!L539 -> 0 | H33: =0+'ZADANIOWY (2)'!M460+'ZADANIOWY (2)'!M497+'ZADANIOWY (2)'!M539 -> 0 | I33: =0+'ZADANIOWY (2)'!N460+'ZADANIOWY (2)'!N497+'ZADANIOWY (2)'!N539 -> 0 | J33: =0+'ZADANIOWY (2)'!O460+'ZADANIOWY (2)'!O497+'ZADANIOWY (2)'!O539 -> 0 | K33: 0 | L33: 0
C34: 0870 | D34: Wpływy ze sprzedaży składników majątkowych | E34: =0+'ZADANIOWY (2)'!J1566 -> 0 | F34: =0+'ZADANIOWY (2)'!K1566 -> 0 | G34: =0+'ZADANIOWY (2)'!L1566 -> 0 | H34: =0+'ZADANIOWY (2)'!M1566 -> 0 | I34: =0+'ZADANIOWY (2)'!N1566 -> 0 | J34: =0+'ZADANIOWY (2)'!O1566 -> 0 | K34: 0 | L34: 0
C35: 0890 | D35: Wpływy z odsetek za nieterminowe rozliczenia, płacone przez urzędy obsługujące organy podatkowe | E35: =0 -> 0 | F35: =0 -> 0 | G35: =0 -> 0 | H35: =0 -> 0 | I35: =0 -> 0 | J35: =0 -> 0 | K35: 0 | L35: 0
C36: 0920 | D36: Wpływy z pozostałych odsetek | E36: =0+'ZADANIOWY (2)'!J594 -> 0 | F36: =0+'ZADANIOWY (2)'!K594 -> 0 | G36: =0+'ZADANIOWY (2)'!L594 -> 0 | H36: =0+'ZADANIOWY (2)'!M594 -> 0 | I36: =0+'ZADANIOWY (2)'!N594 -> 0 | J36: =0+'ZADANIOWY (2)'!O594 -> 0 | K36: 0 | L36: 0
C37: 0950 | D37: Wpływy z tytułu kar i odszkodowań wynikających z umów | E37: =0+'ZADANIOWY (2)'!J324 -> 0 | F37: =0+'ZADANIOWY (2)'!K324 -> 0 | G37: =0+'ZADANIOWY (2)'!L324 -> 0 | H37: =0+'ZADANIOWY (2)'!M324 -> 0 | I37: =0+'ZADANIOWY (2)'!N324 -> 0 | J37: =0+'ZADANIOWY (2)'!O324 -> 0 | K37: 0 | L37: 0
C38: 0940 | D38: Wpływy z rozliczeń/zwrotów z lat ubiegłych | E38: =0+'ZADANIOWY (2)'!J822 -> 0 | F38: =0+'ZADANIOWY (2)'!K822 -> 0 | G38: =0+'ZADANIOWY (2)'!L822 -> 0 | H38: =0+'ZADANIOWY (2)'!M822 -> 0 | I38: =0+'ZADANIOWY (2)'!N822 -> 0 | J38: =0+'ZADANIOWY (2)'!O822 -> 0 | K38: 0 | L38: 0
C39: 0970 | D39: Wpływy z różnych dochodów | E39: =0+'ZADANIOWY (2)'!J722+'ZADANIOWY (2)'!J838 -> 0 | F39: =0+'ZADANIOWY (2)'!K722+'ZADANIOWY (2)'!K838 -> 0 | G39: =0+'ZADANIOWY (2)'!L722+'ZADANIOWY (2)'!L838 -> 0 | H39: =0+'ZADANIOWY (2)'!M722+'ZADANIOWY (2)'!M838 -> 0 | I39: =0+'ZADANIOWY (2)'!N722+'ZADANIOWY (2)'!N838 -> 0 | J39: =0+'ZADANIOWY (2)'!O722+'ZADANIOWY (2)'!O838 -> 0 | K39: 0 | L39: 0
C40: 2008 | D40: Dotacje celowe w ramach programów finansowanych z udziałem środków europejskich oraz środków, o których mowa w art. 5 ust. 1 pkt 3 oraz ust. 3 pkt 5 i 6 ustawy, lub płatności w ramach budżetu środków europejskich, z wyłączeniem dochodów klasyfikowanych w paragrafie 205 | E40: =0+'ZADANIOWY (2)'!J1358+'ZADANIOWY (2)'!J1359 -> 0 | F40: =0+'ZADANIOWY (2)'!K1358+'ZADANIOWY (2)'!K1359 -> 0 | G40: =0+'ZADANIOWY (2)'!L1358+'ZADANIOWY (2)'!L1359 -> 0 | H40: =0+'ZADANIOWY (2)'!M1358+'ZADANIOWY (2)'!M1359 -> 0 | I40: =0+'ZADANIOWY (2)'!N1358+'ZADANIOWY (2)'!N1359 -> 0 | J40: =0+'ZADANIOWY (2)'!O1358+'ZADANIOWY (2)'!O1359 -> 0 | K40: 0 | L40: 0
C41: 2057 | D41: Dotacje celowe w ramach programów finansowanych z udziałem środków europejskich oraz środków, o których mowa w art. 5 ust. 3 pkt 5 lit. a i b ustawy, lub płatności w ramach budżetu środków europejskich, realizowanych przez jednostki samorządu terytorialnego | E41: =0+'ZADANIOWY (2)'!J1496 -> 0 | F41: =0+'ZADANIOWY (2)'!K1496 -> 0 | G41: =0+'ZADANIOWY (2)'!L1496 -> 0 | H41: =0+'ZADANIOWY (2)'!M1496 -> 0 | I41: =0+'ZADANIOWY (2)'!N1496 -> 0 | J41: =0+'ZADANIOWY (2)'!O1496 -> 0 | K41: 0 | L41: 0
C42: 2310 | D42: Dotacje celowe otrzymane z gminy na zadania bieżące realizowane na podstawie porozumień (umów) między jednostkami samorządu terytorialnego | E42: =0+'ZADANIOWY (2)'!J1000 -> 0 | F42: =0+'ZADANIOWY (2)'!K1000 -> 0 | G42: =0+'ZADANIOWY (2)'!L1000 -> 0 | H42: =0+'ZADANIOWY (2)'!M1000 -> 0 | I42: =0+'ZADANIOWY (2)'!N1000 -> 0 | J42: =0+'ZADANIOWY (2)'!O1000 -> 0 | K42: 0 | L42: 0
C43: 6207 | D43: Dotacje celowe w ramach programów finansowanych z udziałem środków europejskich oraz środków, o których mowa w art. 5 ust. 1 pkt 3 oraz ust. 3 pkt 5 i 6 ustawy, lub płatności w ramach budżetu środków europejskich, z wyłączeniem dochodów klasyfikowanych w paragrafie 625 | E43: =0+'ZADANIOWY (2)'!J1667+'ZADANIOWY (2)'!J1668 -> 0 | F43: =0+'ZADANIOWY (2)'!K1667+'ZADANIOWY (2)'!K1668 -> 0 | G43: =0+'ZADANIOWY (2)'!L1667+'ZADANIOWY (2)'!L1668 -> 0 | H43: =0+'ZADANIOWY (2)'!M1667+'ZADANIOWY (2)'!M1668 -> 0 | I43: =0+'ZADANIOWY (2)'!N1667+'ZADANIOWY (2)'!N1668 -> 0 | J43: =0+'ZADANIOWY (2)'!O1667+'ZADANIOWY (2)'!O1668 -> 0 | K43: 0 | L43: 0
C44: 6257 | D44: Dotacje celowe w ramach programów finansowanych z udziałem środków europejskich oraz środków, o których mowa w art. 5 ust. 3 pkt 5 lit. a i b ustawy, lub płatności w ramach budżetu środków europejskich, realizowanych przez jednostki samorządu terytorialnego | E44: =0+'ZADANIOWY (2)'!J1669+'ZADANIOWY (2)'!J1707 -> 0 | F44: =0+'ZADANIOWY (2)'!K1669+'ZADANIOWY (2)'!K1707 -> 0 | G44: =0+'ZADANIOWY (2)'!L1669+'ZADANIOWY (2)'!L1707 -> 0 | H44: =0+'ZADANIOWY (2)'!M1669+'ZADANIOWY (2)'!M1707 -> 0 | I44: =0+'ZADANIOWY (2)'!N1669+'ZADANIOWY (2)'!N1707 -> 0 | J44: =0+'ZADANIOWY (2)'!O1669+'ZADANIOWY (2)'!O1707 -> 0 | K44: 0 | L44: 0
C45: 6298 | D45: Środki na dofinansowanie własnych inwestycji gmin, powiatów (związków gmin, związków powiatowo-gminnych, związków powiatów), samorządów województw, pozyskane z innych źródeł | E45: =0 -> 0 | F45: =0 -> 0 | G45: =0 -> 0 | H45: =0 -> 0 | I45: =0 -> 0 | J45: =0 -> 0 | K45: 0 | L45: 0
B46: 60011 | D46: Drogi publiczne krajowe | E46: =SUM(E47:E54) -> 0 | F46: 0 | G46: 0 | H46: 0 | I46: 0 | J46: 0 | K46: 0 | L46: 0
C47: 0580 | D47: Wpływy z tytułu grzywien i innych kar pieniężnych od osób prawnych i innych jednostek organizacyjnych | E47: =0+'ZADANIOWY (2)'!J310 -> 0 | F47: =0+'ZADANIOWY (2)'!K310 -> 0 | G47: =0+'ZADANIOWY (2)'!L310 -> 0 | H47: =0+'ZADANIOWY (2)'!M310 -> 0 | I47: =0+'ZADANIOWY (2)'!N310 -> 0 | J47: =0+'ZADANIOWY (2)'!O310 -> 0 | K47: 0 | L47: 0
C48: 0970 | D48: Wpływy z różnych dochodów | E48: =0+'ZADANIOWY (2)'!J723 -> 0 | F48: =0+'ZADANIOWY (2)'!K723 -> 0 | G48: =0+'ZADANIOWY (2)'!L723 -> 0 | H48: =0+'ZADANIOWY (2)'!M723 -> 0 | I48: =0+'ZADANIOWY (2)'!N723 -> 0 | J48: =0+'ZADANIOWY (2)'!O723 -> 0 | K48: 0 | L48: 0
C49: 2057 | D49: Dotacje celowe w ramach programów finansowanych z udziałem środków europejskich oraz środków, o których mowa w art. 5 ust. 3 pkt 5 lit. a i b ustawy, lub płatności w ramach budżetu środków europejskich, realizowanych przez jednostki samorządu terytorialnego | E49: =0+'ZADANIOWY (2)'!J1497 -> 0 | F49: =0+'ZADANIOWY (2)'!K1497 -> 0 | G49: =0+'ZADANIOWY (2)'!L1497 -> 0 | H49: =0+'ZADANIOWY (2)'!M1497 -> 0 | I49: =0+'ZADANIOWY (2)'!N1497 -> 0 | J49: =0+'ZADANIOWY (2)'!O1497 -> 0 | K49: 0 | L49: 0
C50: 6207 | D50: Dotacje celowe w ramach programów finansowanych z udziałem środków europejskich oraz środków, o których mowa w art. 5 ust. 1 pkt 3 oraz ust. 3 pkt 5 i 6 ustawy, lub płatności w ramach budżetu środków europejskich, z wyłączeniem dochodów klasyfikowanych w paragrafie 625 | E50: =0+'ZADANIOWY (2)'!J1670+'ZADANIOWY (2)'!J1671+'ZADANIOWY (2)'!J1672+'ZADANIOWY (2)'!J1673+'ZADANIOWY (2)'!J1674+'ZADANIOWY (2)'!J1675 -> 0 | F50: =0+'ZADANIOWY (2)'!K1670+'ZADANIOWY (2)'!K1671+'ZADANIOWY (2)'!K1672+'ZADANIOWY (2)'!K1673+'ZADANIOWY (2)'!K1674+'ZADANIOWY (2)'!K1675 -> 0 | G50: =0+'ZADANIOWY (2)'!L1670+'ZADANIOWY (2)'!L1671+'ZADANIOWY (2)'!L1672+'ZADANIOWY (2)'!L1673+'ZADANIOWY (2)'!L1674+'ZADANIOWY (2)'!L1675 -> 0 | H50: =0+'ZADANIOWY (2)'!M1670+'ZADANIOWY (2)'!M1671+'ZADANIOWY (2)'!M1672+'ZADANIOWY (2)'!M1673+'ZADANIOWY (2)'!M1674+'ZADANIOWY (2)'!M1675 -> 0 | I50: =0+'ZADANIOWY (2)'!N1670+'ZADANIOWY (2)'!N1671+'ZADANIOWY (2)'!N1672+'ZADANIOWY (2)'!N1673+'ZADANIOWY (2)'!N1674+'ZADANIOWY (2)'!N1675 -> 0 | J50: =0+'ZADANIOWY (2)'!O1670+'ZADANIOWY (2)'!O1671+'ZADANIOWY (2)'!O1672+'ZADANIOWY (2)'!O1673+'ZADANIOWY (2)'!O1674+'ZADANIOWY (2)'!O1675 -> 0 | K50: 0 | L50: 0
C51: 6257 | D51: Dotacje celowe w ramach programów finansowanych z udziałem środków europejskich oraz środków, o których mowa w art. 5 ust. 3 pkt 5 lit. a i b ustawy, lub płatności w ramach budżetu środków europejskich, realizowanych przez jednostki samorządu terytorialnego | E51: =0+'ZADANIOWY (2)'!J1708 -> 0 | F51: =0+'ZADANIOWY (2)'!K1708 -> 0 | G51: =0+'ZADANIOWY (2)'!L1708 -> 0 | H51: =0+'ZADANIOWY (2)'!M1708 -> 0 | I51: =0+'ZADANIOWY (2)'!N1708 -> 0 | J51: =0+'ZADANIOWY (2)'!O1708 -> 0 | K51: 0 | L51: 0
C52: 6290 | D52: Środki na dofinansowanie własnych inwestycji gmin, powiatów (związków gmin, związków powiatowo-gminnych, związków powiatów), samorządów województw, pozyskane z innych źródeł | E52: =0 -> 0 | F52: =0 -> 0 | G52: =0+'ZADANIOWY (2)'!L1727 -> 0 | H52: =0+'ZADANIOWY (2)'!M1727 -> 0 | I52: =0+'ZADANIOWY (2)'!N1727 -> 0 | J52: =0+'ZADANIOWY (2)'!O1727 -> 0 | K52: 0 | L52: 0
C53: 6298 | D53: Środki na dofinansowanie własnych inwestycji gmin, powiatów (związków gmin, związków powiatowo-gminnych, związków powiatów), samorządów województw, pozyskane z innych źródeł | E53: =0 -> 0 | F53: =0 -> 0 | G53: =0 -> 0 | H53: =0 -> 0 | I53: =0 -> 0 | J53: =0 -> 0 | K53: 0 | L53: 0
C54: 6680 | D54: Wpłata środków finansowych z niewykorzystanych w terminie wydatków, które nie wygasają z upływem roku budżetowego | E54: =0+'ZADANIOWY (2)'!J1602 -> 0 | F54: =0+'ZADANIOWY (2)'!K1602 -> 0 | G54: =0+'ZADANIOWY (2)'!L1602 -> 0 | H54: =0+'ZADANIOWY (2)'!M1602 -> 0 | I54: =0+'ZADANIOWY (2)'!N1602 -> 0 | J54: =0+'ZADANIOWY (2)'!O1602 -> 0 | K54: 0 | L54: 0
B55: 60013 | D55: Drogi publiczne wojewódzkie | E55: =SUM(E56:E61) -> 0 | F55: 0 | G55: 0 | H55: 0 | I55: 0 | J55: 0 | K55: 0 | L55: 0
C56: 0920 | D56: Wpływy z pozostałych odsetek | E56: =0+'ZADANIOWY (2)'!J595 -> 0 | F56: =0+'ZADANIOWY (2)'!K595 -> 0 | G56: =0+'ZADANIOWY (2)'!L595 -> 0 | H56: =0+'ZADANIOWY (2)'!M595 -> 0 | I56: =0+'ZADANIOWY (2)'!N595 -> 0 | J56: =0+'ZADANIOWY (2)'!O595 -> 0 | K56: 0 | L56: 0
C57: 0970 | D57: Wpływy z różnych dochodów | E57: =0+'ZADANIOWY (2)'!J724 -> 0 | F57: =0+'ZADANIOWY (2)'!K724 -> 0 | G57: =0+'ZADANIOWY (2)'!L724 -> 0 | H57: =0+'ZADANIOWY (2)'!M724 -> 0 | I57: =0+'ZADANIOWY (2)'!N724 -> 0 | J57: =0+'ZADANIOWY (2)'!O724 -> 0 | K57: 0 | L57: 0
C58: 2057 | D58: Dotacje celowe w ramach programów finansowanych z udziałem środków europejskich oraz środków, o których mowa w art. 5 ust. 3 pkt 5 lit. a i b ustawy, lub płatności w ramach budżetu środków europejskich, realizowanych przez jednostki samorządu terytorialnego | E58: =0+'ZADANIOWY (2)'!J1498 -> 0 | F58: =0+'ZADANIOWY (2)'!K1498 -> 0 | G58: =0+'ZADANIOWY (2)'!L1498 -> 0 | H58: =0+'ZADANIOWY (2)'!M1498 -> 0 | I58: =0+'ZADANIOWY (2)'!N1498 -> 0 | J58: =0+'ZADANIOWY (2)'!O1498 -> 0 | K58: 0 | L58: 0
C59: 6257 | D59: Dotacje celowe w ramach programów finansowanych z udziałem środków europejskich oraz środków, o których mowa w art. 5 ust. 3 pkt 5 lit. a i b ustawy, lub płatności w ramach budżetu środków europejskich, realizowanych przez jednostki samorządu terytorialnego | E59: =0+'ZADANIOWY (2)'!J1709 -> 0 | F59: =0+'ZADANIOWY (2)'!K1709 -> 0 | G59: =0+'ZADANIOWY (2)'!L1709 -> 0 | H59: =0+'ZADANIOWY (2)'!M1709 -> 0 | I59: =0+'ZADANIOWY (2)'!N1709 -> 0 | J59: =0+'ZADANIOWY (2)'!O1709 -> 0 | K59: 0 | L59: 0
C60: 6298 | D60: Środki na dofinansowanie własnych inwestycji gmin, powiatów (związków gmin, związków powiatowo-gminnych, związków powiatów), samorządów województw, pozyskane z innych źródeł | E60: =0 -> 0 | F60: =0 -> 0 | G60: =0 -> 0 | H60: =0 -> 0 | I60: =0 -> 0 | J60: =0 -> 0 | K60: 0 | L60: 0
C61: 6680 | D61: Wpłata środków finansowych z niewykorzystanych w terminie wydatków, które nie wygasają z upływem roku budżetowego | E61: =0+'ZADANIOWY (2)'!J1603 -> 0 | F61: =0+'ZADANIOWY (2)'!K1603 -> 0 | G61: =0+'ZADANIOWY (2)'!L1603 -> 0 | H61: =0+'ZADANIOWY (2)'!M1603 -> 0 | I61: =0+'ZADANIOWY (2)'!N1603 -> 0 | J61: =0+'ZADANIOWY (2)'!O1603 -> 0 | K61: 0 | L61: 0
B62: 60014 | D62: Drogi publiczne powiatowe | E62: =SUM(E63:E70) -> 0 | F62: 0 | G62: 0 | H62: 0 | I62: 0 | J62: 0 | K62: 0 | L62: 0
C63: 0580 | D63: Wpływy z tytułu grzywien i innych kar pieniężnych od osób prawnych i innych jednostek organizacyjnych | E63: =0 -> 0 | F63: =0 -> 0 | G63: =0 -> 0 | H63: =0 -> 0 | I63: =0 -> 0 | J63: =0 -> 0 | K63: 0 | L63: 0
C64: 0920 | D64: Wpływy z pozostałych odsetek | E64: =0+'ZADANIOWY (2)'!J596 -> 0 | F64: =0+'ZADANIOWY (2)'!K596 -> 0 | G64: =0+'ZADANIOWY (2)'!L596 -> 0 | H64: =0+'ZADANIOWY (2)'!M596 -> 0 | I64: =0+'ZADANIOWY (2)'!N596 -> 0 | J64: =0+'ZADANIOWY (2)'!O596 -> 0 | K64: 0 | L64: 0
C65: 0970 | D65: Wpływy z różnych dochodów | E65: =0+'ZADANIOWY (2)'!J725 -> 0 | F65: =0+'ZADANIOWY (2)'!K725 -> 0 | G65: =0+'ZADANIOWY (2)'!L725 -> 0 | H65: =0+'ZADANIOWY (2)'!M725 -> 0 | I65: =0+'ZADANIOWY (2)'!N725 -> 0 | J65: =0+'ZADANIOWY (2)'!O725 -> 0 | K65: 0 | L65: 0
C66: 2030 | D66: Dotacje celowe otrzymane z budżetu państwa na realizację własnych zadań bieżących gmin (związków gmin, związków powiatowo-gminnych) | E66: =0+'ZADANIOWY (2)'!J1024 -> 0 | F66: =0+'ZADANIOWY (2)'!K1024 -> 0 | G66: =0+'ZADANIOWY (2)'!L1024 -> 0 | H66: =0+'ZADANIOWY (2)'!M1024 -> 0 | I66: =0+'ZADANIOWY (2)'!N1024 -> 0 | J66: =0+'ZADANIOWY (2)'!O1024 -> 0 | K66: 0 | L66: 0
C67: 6207 | D67: Dotacje celowe w ramach programów finansowanych z udziałem środków europejskich oraz środków, o których mowa w art. 5 ust. 1 pkt 3 oraz ust. 3 pkt 5 i 6 ustawy, lub płatności w ramach budżetu środków europejskich, z wyłączeniem dochodów klasyfikowanych w paragrafie 625 | E67: =0+'ZADANIOWY (2)'!J1676+'ZADANIOWY (2)'!J1677+'ZADANIOWY (2)'!J1678+'ZADANIOWY (2)'!J1679 -> 0 | F67: =0+'ZADANIOWY (2)'!K1676+'ZADANIOWY (2)'!K1677+'ZADANIOWY (2)'!K1678+'ZADANIOWY (2)'!K1679 -> 0 | G67: =0+'ZADANIOWY (2)'!L1676+'ZADANIOWY (2)'!L1677+'ZADANIOWY (2)'!L1678+'ZADANIOWY (2)'!L1679 -> 0 | H67: =0+'ZADANIOWY (2)'!M1676+'ZADANIOWY (2)'!M1677+'ZADANIOWY (2)'!M1678+'ZADANIOWY (2)'!M1679 -> 0 | I67: =0+'ZADANIOWY (2)'!N1676+'ZADANIOWY (2)'!N1677+'ZADANIOWY (2)'!N1678+'ZADANIOWY (2)'!N1679 -> 0 | J67: =0+'ZADANIOWY (2)'!O1676+'ZADANIOWY (2)'!O1677+'ZADANIOWY (2)'!O1678+'ZADANIOWY (2)'!O1679 -> 0 | K67: 0 | L67: 0
C68: 6290 | D68: Środki na dofinansowanie własnych inwestycji gmin, powiatów (związków gmin, związków powiatowo-gminnych, związków powiatów), samorządów województw, pozyskane z innych źródeł | E68: 0 | F68: 0 | G68: =0+'ZADANIOWY (2)'!L1728 -> 0 | H68: =0+'ZADANIOWY (2)'!M1728 -> 0 | I68: =0+'ZADANIOWY (2)'!N1728 -> 0 | J68: =0+'ZADANIOWY (2)'!O1728 -> 0 | K68: 0 | L68: 0
C69: 6298 | D69: Środki na dofinansowanie własnych inwestycji gmin, powiatów (związków gmin, związków powiatowo-gminnych, związków powiatów), samorządów województw, pozyskane z innych źródeł | E69: =0 -> 0 | F69: =0 -> 0 | G69: =0 -> 0 | H69: =0 -> 0 | I69: =0 -> 0 | J69: =0 -> 0 | K69: 0 | L69: 0 | M69: =IF(SUM(E69:L69)>0,"Tak","") -> 
C70: 6680 | D70: Wpłata środków finansowych z niewykorzystanych w terminie wydatków, które nie wygasają z upływem roku budżetowego | E70: =0+'ZADANIOWY (2)'!J1604 -> 0 | F70: =0+'ZADANIOWY (2)'!K1604 -> 0 | G70: =0+'ZADANIOWY (2)'!L1604 -> 0 | H70: =0+'ZADANIOWY (2)'!M1604 -> 0 | I70: =0+'ZADANIOWY (2)'!N1604 -> 0 | J70: =0+'ZADANIOWY (2)'!O1604 -> 0 | K70: 0 | L70: 0
B71: 60015 | D71: Drogi publiczne w miastach na prawach powiatu (w rozdziale nie ujmuje się wydatków na drogi gminne) | E71: =SUM(E72:E82) -> 0 | F71: 0 | G71: 0 | H71: 0 | I71: 0 | J71: 0 | K71: 0 | L71: 0
C72: 0580 | D72: Wpływy z tytułu grzywien i innych kar pieniężnych od osób prawnych i innych jednostek organizacyjnych | E72: =0 -> 0 | F72: =0 -> 0 | G72: =0 -> 0 | H72: =0 -> 0 | I72: =0 -> 0 | J72: =0 -> 0 | K72: 0 | L72: 0
C73: 0690 | D73: Wpływy z różnych opłat | E73: =0 -> 0 | F73: =0 -> 0 | G73: =0 -> 0 | H73: =0 -> 0 | I73: =0 -> 0 | J73: =0 -> 0 | K73: 0 | L73: 0
C74: 0750 | D74: Wpływy z najmu i dzierżawy składników majątkowych Skarbu Państwa, jednostek samorządu terytorialnego lub innych jednostek zaliczanych do sektora finansów publicznych oraz innych umów o podobnym charakterze | E74: =0+'ZADANIOWY (2)'!J60+'ZADANIOWY (2)'!J88+'ZADANIOWY (2)'!J91+'ZADANIOWY (2)'!J121+'ZADANIOWY (2)'!J149+'ZADANIOWY (2)'!J180+'ZADANIOWY (2)'!J212+'ZADANIOWY (2)'!J247 -> 0 | F74: =0+'ZADANIOWY (2)'!K60+'ZADANIOWY (2)'!K88+'ZADANIOWY (2)'!K91+'ZADANIOWY (2)'!K121+'ZADANIOWY (2)'!K149+'ZADANIOWY (2)'!K180+'ZADANIOWY (2)'!K212+'ZADANIOWY (2)'!K247 -> 0 | G74: =0+'ZADANIOWY (2)'!L60+'ZADANIOWY (2)'!L88+'ZADANIOWY (2)'!L91+'ZADANIOWY (2)'!L121+'ZADANIOWY (2)'!L149+'ZADANIOWY (2)'!L180+'ZADANIOWY (2)'!L212+'ZADANIOWY (2)'!L247 -> 0 | H74: =0+'ZADANIOWY (2)'!M60+'ZADANIOWY (2)'!M88+'ZADANIOWY (2)'!M91+'ZADANIOWY (2)'!M121+'ZADANIOWY (2)'!M149+'ZADANIOWY (2)'!M180+'ZADANIOWY (2)'!M212+'ZADANIOWY (2)'!M247 -> 0 | I74: =0+'ZADANIOWY (2)'!N60+'ZADANIOWY (2)'!N88+'ZADANIOWY (2)'!N91+'ZADANIOWY (2)'!N121+'ZADANIOWY (2)'!N149+'ZADANIOWY (2)'!N180+'ZADANIOWY (2)'!N212+'ZADANIOWY (2)'!N247 -> 0 | J74: =0+'ZADANIOWY (2)'!O60+'ZADANIOWY (2)'!O88+'ZADANIOWY (2)'!O91+'ZADANIOWY (2)'!O121+'ZADANIOWY (2)'!O149+'ZADANIOWY (2)'!O180+'ZADANIOWY (2)'!O212+'ZADANIOWY (2)'!O247 -> 0 | K74: 0 | L74: 0
C75: 0830 | D75: Wpływy z usług | E75: =0+'ZADANIOWY (2)'!J461+'ZADANIOWY (2)'!J498 -> 0 | F75: =0+'ZADANIOWY (2)'!K461+'ZADANIOWY (2)'!K498 -> 0 | G75: =0+'ZADANIOWY (2)'!L461+'ZADANIOWY (2)'!L498 -> 0 | H75: =0+'ZADANIOWY (2)'!M461+'ZADANIOWY (2)'!M498 -> 0 | I75: =0+'ZADANIOWY (2)'!N461+'ZADANIOWY (2)'!N498 -> 0 | J75: =0+'ZADANIOWY (2)'!O461+'ZADANIOWY (2)'!O498 -> 0 | K75: 0 | L75: 0
C76: 0920 | D76: Wpływy z pozostałych odsetek | E76: =0+'ZADANIOWY (2)'!J597 -> 0 | F76: =0+'ZADANIOWY (2)'!K597 -> 0 | G76: =0+'ZADANIOWY (2)'!L597 -> 0 | H76: =0+'ZADANIOWY (2)'!M597 -> 0 | I76: =0+'ZADANIOWY (2)'!N597 -> 0 | J76: =0+'ZADANIOWY (2)'!O597 -> 0 | K76: 0 | L76: 0
C77: 0940 | D77: Wpływy z rozliczeń/zwrotów z lat ubiegłych | E77: =0+'ZADANIOWY (2)'!J680 -> 0 | F77: =0+'ZADANIOWY (2)'!K680 -> 0 | G77: =0+'ZADANIOWY (2)'!L680 -> 0 | H77: =0+'ZADANIOWY (2)'!M680 -> 0 | I77: =0+'ZADANIOWY (2)'!N680 -> 0 | J77: =0+'ZADANIOWY (2)'!O680 -> 0 | K77: 0 | L77: 0
C78: 0970 | D78: Wpływy z różnych dochodów | E78: =0+'ZADANIOWY (2)'!J726 -> 0 | F78: =0+'ZADANIOWY (2)'!K726 -> 0 | G78: =0+'ZADANIOWY (2)'!L726 -> 0 | H78: =0+'ZADANIOWY (2)'!M726 -> 0 | I78: =0+'ZADANIOWY (2)'!N726 -> 0 | J78: =0+'ZADANIOWY (2)'!O726 -> 0 | K78: 0 | L78: 0
C79: 2058 | D79: Dotacje celowe w ramach programów finansowanych z udziałem środków europejskich oraz środków, o których mowa w art. 5 ust. 3 pkt 5 lit. a i b ustawy, lub płatności w ramach budżetu środków europejskich, realizowanych przez jednostki samorządu terytorialnego | E79: =0+'ZADANIOWY (2)'!J1507 -> 0 | F79: =0+'ZADANIOWY (2)'!K1507 -> 0 | G79: =0+'ZADANIOWY (2)'!L1507 -> 0 | H79: =0+'ZADANIOWY (2)'!M1507 -> 0 | I79: =0+'ZADANIOWY (2)'!N1507 -> 0 | J79: =0+'ZADANIOWY (2)'!O1507 -> 0 | K79: 0 | L79: 0
C80: 6290 | D80: Środki na dofinansowanie własnych inwestycji gmin, powiatów (związków gmin, związków powiatowo-gminnych, związków powiatów), samorządów województw, pozyskane z innych źródeł | E80: 0 | F80: 0 | G80: =0+'ZADANIOWY (2)'!L1729 -> 0 | H80: =0+'ZADANIOWY (2)'!M1729 -> 0 | I80: =0+'ZADANIOWY (2)'!N1729 -> 0 | J80: =0+'ZADANIOWY (2)'!O1729 -> 0 | K80: 0 | L80: 0
C81: 6298 | D81: Środki na dofinansowanie własnych inwestycji gmin, powiatów (związków gmin, związków powiatowo-gminnych, związków powiatów), samorządów województw, pozyskane z innych źródeł | E81: =0 -> 0 | F81: =0 -> 0 | G81: =0 -> 0 | H81: =0 -> 0 | I81: =0 -> 0 | J81: =0 -> 0 | K81: 0 | L81: 0
C82: 6680 | D82: Wpłata środków finansowych z niewykorzystanych w terminie wydatków, które nie wygasają z upływem roku budżetowego | E82: =0+'ZADANIOWY (2)'!J1605 -> 0 | F82: =0+'ZADANIOWY (2)'!K1605 -> 0 | G82: =0+'ZADANIOWY (2)'!L1605 -> 0 | H82: =0+'ZADANIOWY (2)'!M1605 -> 0 | I82: =0+'ZADANIOWY (2)'!N1605 -> 0 | J82: =0+'ZADANIOWY (2)'!O1605 -> 0 | K82: 0 | L82: 0
B83: 60016 | D83: Drogi publiczne gminne | E83: =SUM(E84:E95) -> 9910000 | F83: =SUM(F84:F95) -> 0 | G83: =SUM(G85:G95) -> 0 | H83: =SUM(H85:H95) -> 0 | I83: =SUM(I85:I95) -> 0 | J83: =SUM(J85:J95) -> 0 | K83: =SUM(K84:K95) -> 9910000 | L83: =SUM(L84:L95) -> 0 | M83: Tak
C84: 0570 | D84: Wpływy z tytułu grzywien, mandatów i innych kar pieniężnych od osób fizycznych | E84: =0+'ZADANIOWY (2)'!J291 -> 150000 | F84: =0+'ZADANIOWY (2)'!K291 -> 0 | G84: =0+'ZADANIOWY (2)'!L291 -> 0 | H84: =0+'ZADANIOWY (2)'!M291 -> 0 | I84: =0+'ZADANIOWY (2)'!N291 -> 0 | J84: =0+'ZADANIOWY (2)'!O291 -> 0 | K84: =0+'ZADANIOWY (2)'!P291 -> 150000 | L84: =0+'ZADANIOWY (2)'!Q291 -> 0 | M84: Tak
C85: 0580 | D85: Wpływy z tytułu grzywien i innych kar pieniężnych od osób prawnych i innych jednostek organizacyjnych | E85: =0+'ZADANIOWY (2)'!J311 -> 1200000 | F85: =0+'ZADANIOWY (2)'!K311 -> 0 | G85: =0+'ZADANIOWY (2)'!L311 -> 0 | H85: =0+'ZADANIOWY (2)'!M311 -> 0 | I85: =0+'ZADANIOWY (2)'!N311 -> 0 | J85: =0+'ZADANIOWY (2)'!O311 -> 0 | K85: 1200000 | L85: 0 | M85: Tak
C86: 0620 | D86: Wpływy z opłat za zezwolenia, akredytacje oraz opłaty ewidencyjne, w tym opłaty za częstotliwości | E86: =0+'ZADANIOWY (2)'!J450 -> 8500000 | F86: =0+'ZADANIOWY (2)'!K450 -> 0 | G86: =0+'ZADANIOWY (2)'!L450 -> 0 | H86: =0+'ZADANIOWY (2)'!M450 -> 0 | I86: =0+'ZADANIOWY (2)'!N450 -> 0 | J86: =0+'ZADANIOWY (2)'!O450 -> 0 | K86: =0+'ZADANIOWY (2)'!P450 -> 8500000 | L86: =0+'ZADANIOWY (2)'!Q450 -> 0 | M86: Tak
C87: 0870 | D87: Wpływy ze sprzedaży składników majątkowych | E87: =0+'ZADANIOWY (2)'!J1567 -> 0 | F87: =0+'ZADANIOWY (2)'!K1567 -> 0 | G87: =0+'ZADANIOWY (2)'!L1567 -> 0 | H87: =0+'ZADANIOWY (2)'!M1567 -> 0 | I87: =0+'ZADANIOWY (2)'!N1567 -> 0 | J87: =0+'ZADANIOWY (2)'!O1567 -> 0 | K87: 0 | L87: 0
C88: 0750 | D88: Wpływy z najmu i dzierżawy składników majątkowych Skarbu Państwa, jednostek samorządu terytorialnego lub innych jednostek zaliczanych do sektora finansów publicznych oraz innych umów o podobnym charakterze | E88: =0+'ZADANIOWY (2)'!J61+'ZADANIOWY (2)'!J92+'ZADANIOWY (2)'!J122+'ZADANIOWY (2)'!J150+'ZADANIOWY (2)'!J181+'ZADANIOWY (2)'!J213+'ZADANIOWY (2)'!J248 -> 0 | F88: =0+'ZADANIOWY (2)'!K61+'ZADANIOWY (2)'!K92+'ZADANIOWY (2)'!K122+'ZADANIOWY (2)'!K150+'ZADANIOWY (2)'!K181+'ZADANIOWY (2)'!K213+'ZADANIOWY (2)'!K248 -> 0 | G88: =0+'ZADANIOWY (2)'!L61+'ZADANIOWY (2)'!L92+'ZADANIOWY (2)'!L122+'ZADANIOWY (2)'!L150+'ZADANIOWY (2)'!L181+'ZADANIOWY (2)'!L213+'ZADANIOWY (2)'!L248 -> 0 | H88: =0+'ZADANIOWY (2)'!M61+'ZADANIOWY (2)'!M92+'ZADANIOWY (2)'!M122+'ZADANIOWY (2)'!M150+'ZADANIOWY (2)'!M181+'ZADANIOWY (2)'!M213+'ZADANIOWY (2)'!M248 -> 0 | I88: =0+'ZADANIOWY (2)'!N61+'ZADANIOWY (2)'!N92+'ZADANIOWY (2)'!N122+'ZADANIOWY (2)'!N150+'ZADANIOWY (2)'!N181+'ZADANIOWY (2)'!N213+'ZADANIOWY (2)'!N248 -> 0 | J88: =0+'ZADANIOWY (2)'!O61+'ZADANIOWY (2)'!O92+'ZADANIOWY (2)'!O122+'ZADANIOWY (2)'!O150+'ZADANIOWY (2)'!O181+'ZADANIOWY (2)'!O213+'ZADANIOWY (2)'!O248 -> 0 | K88: 0 | L88: 0
C89: 0920 | D89: Wpływy z pozostałych odsetek | E89: =0+'ZADANIOWY (2)'!J598 -> 60000 | F89: =0+'ZADANIOWY (2)'!K598 -> 0 | G89: =0+'ZADANIOWY (2)'!L598 -> 0 | H89: =0+'ZADANIOWY (2)'!M598 -> 0 | I89: =0+'ZADANIOWY (2)'!N598 -> 0 | J89: =0+'ZADANIOWY (2)'!O598 -> 0 | K89: 60000 | L89: 0 | M89: Tak
C90: 0940 | D90: Wpływy z rozliczeń/zwrotów z lat ubiegłych | E90: =0+'ZADANIOWY (2)'!J823 -> 0 | F90: =0+'ZADANIOWY (2)'!K823 -> 0 | G90: =0+'ZADANIOWY (2)'!L823 -> 0 | H90: =0+'ZADANIOWY (2)'!M823 -> 0 | I90: =0+'ZADANIOWY (2)'!N823 -> 0 | J90: =0+'ZADANIOWY (2)'!O823 -> 0 | K90: 0 | L90: 0
C91: 0960 | D91: Wpływy z otrzymanych spadków, zapisów i darowizn w postaci pieniężnej | E91: =0+'ZADANIOWY (2)'!J666 -> 0 | F91: =0+'ZADANIOWY (2)'!K666 -> 0 | G91: =0+'ZADANIOWY (2)'!L666 -> 0 | H91: =0+'ZADANIOWY (2)'!M666 -> 0 | I91: =0+'ZADANIOWY (2)'!N666 -> 0 | J91: =0+'ZADANIOWY (2)'!O666 -> 0 | K91: 0 | L91: 0
C92: 0970 | D92: Wpływy z różnych dochodów | E92: =0+'ZADANIOWY (2)'!J727+'ZADANIOWY (2)'!J839 -> 0 | F92: =0+'ZADANIOWY (2)'!K727+'ZADANIOWY (2)'!K839 -> 0 | G92: =0+'ZADANIOWY (2)'!L727+'ZADANIOWY (2)'!L839 -> 0 | H92: =0+'ZADANIOWY (2)'!M727+'ZADANIOWY (2)'!M839 -> 0 | I92: =0+'ZADANIOWY (2)'!N727+'ZADANIOWY (2)'!N839 -> 0 | J92: =0+'ZADANIOWY (2)'!O727+'ZADANIOWY (2)'!O839 -> 0 | K92: 0 | L92: 0
C93: 2700 | D93: Środki na dofinansowanie własnych zadań bieżących gmin, powiatów (związków gmin, związków powiatowo-gminnych, związków powiatów), samorządów województw, pozyskane z innych źródeł | E93: =0+'ZADANIOWY (2)'!J912 -> 0 | F93: =0+'ZADANIOWY (2)'!K912 -> 0 | G93: =0+'ZADANIOWY (2)'!L912 -> 0 | H93: =0+'ZADANIOWY (2)'!M912 -> 0 | I93: =0+'ZADANIOWY (2)'!N912 -> 0 | J93: =0+'ZADANIOWY (2)'!O912 -> 0 | K93: 0 | L93: 0
C94: 6290 | D94: Środki na dofinansowanie własnych inwestycji gmin, powiatów (związków gmin, związków powiatowo-gminnych, związków powiatów), samorządów województw, pozyskane z innych źródeł | E94: =0+'ZADANIOWY (2)'!J1730+'ZADANIOWY (2)'!J1727+'ZADANIOWY (2)'!J1728+'ZADANIOWY (2)'!J1729+'ZADANIOWY (2)'!J1731+'ZADANIOWY (2)'!J1732+'ZADANIOWY (2)'!J1733+'ZADANIOWY (2)'!J1734+'ZADANIOWY (2)'!J1735+'ZADANIOWY (2)'!J1736+'ZADANIOWY (2)'!J1737+'ZADANIOWY (2)'!J1738+'ZADANIOWY (2)'!J1739+'ZADANIOWY (2)'!J1740+'ZADANIOWY (2)'!J1741+'ZADANIOWY (2)'!J1742+'ZADANIOWY (2)'!J1743+'ZADANIOWY (2)'!J1744+'ZADANIOWY (2)'!J1745+'ZADANIOWY (2)'!J1746+'ZADANIOWY (2)'!J1747+'ZADANIOWY (2)'!J1748+'ZADANIOWY (2)'!J1749+'ZADANIOWY (2)'!J1750+'ZADANIOWY (2)'!J1751+'ZADANIOWY (2)'!J1752+'ZADANIOWY (2)'!J1753+'ZADANIOWY (2)'!J1754+'ZADANIOWY (2)'!J1755+'ZADANIOWY (2)'!J1756+'ZADANIOWY (2)'!J1757+'ZADANIOWY (2)'!J1758+'ZADANIOWY (2)'!J1759+'ZADANIOWY (2)'!J1760+'ZADANIOWY (2)'!J1761 -> 0 | F94: =0+'ZADANIOWY (2)'!K1730+'ZADANIOWY (2)'!K1727+'ZADANIOWY (2)'!K1728+'ZADANIOWY (2)'!K1729+'ZADANIOWY (2)'!K1731+'ZADANIOWY (2)'!K1732+'ZADANIOWY (2)'!K1733+'ZADANIOWY (2)'!K1734+'ZADANIOWY (2)'!K1735+'ZADANIOWY (2)'!K1736+'ZADANIOWY (2)'!K1737+'ZADANIOWY (2)'!K1738+'ZADANIOWY (2)'!K1739+'ZADANIOWY (2)'!K1740+'ZADANIOWY (2)'!K1741+'ZADANIOWY (2)'!K1742+'ZADANIOWY (2)'!K1743+'ZADANIOWY (2)'!K1744+'ZADANIOWY (2)'!K1745+'ZADANIOWY (2)'!K1746+'ZADANIOWY (2)'!K1747+'ZADANIOWY (2)'!K1748+'ZADANIOWY (2)'!K1749+'ZADANIOWY (2)'!K1750+'ZADANIOWY (2)'!K1751+'ZADANIOWY (2)'!K1752+'ZADANIOWY (2)'!K1753+'ZADANIOWY (2)'!K1754+'ZADANIOWY (2)'!K1755+'ZADANIOWY (2)'!K1756+'ZADANIOWY (2)'!K1757+'ZADANIOWY (2)'!K1758+'ZADANIOWY (2)'!K1759+'ZADANIOWY (2)'!K1760+'ZADANIOWY (2)'!K1761 -> 0 | G94: =0+'ZADANIOWY (2)'!L1730 -> 0 | H94: =0+'ZADANIOWY (2)'!M1730 -> 0 | I94: =0+'ZADANIOWY (2)'!N1730 -> 0 | J94: =0+'ZADANIOWY (2)'!O1730 -> 0 | K94: =E94-G94+H94 -> 0 | L94: =F94-I94+J94 -> 0 | N94: =IF(SUM(G94:J94)>0,"Tak","") -> 
C95: 6680 | D95: Wpłata środków finansowych z niewykorzystanych w terminie wydatków, które nie wygasają z upływem roku budżetowego | E95: =0+'ZADANIOWY (2)'!J1606 -> 0 | F95: =0+'ZADANIOWY (2)'!K1606 -> 0 | G95: =0+'ZADANIOWY (2)'!L1606 -> 0 | H95: =0+'ZADANIOWY (2)'!M1606 -> 0 | I95: =0+'ZADANIOWY (2)'!N1606 -> 0 | J95: =0+'ZADANIOWY (2)'!O1606 -> 0 | K95: 0 | L95: 0
B96: 60019 | D96: Płatne parkowanie | E96: =SUM(E97:E99) -> 5050000 | F96: =SUM(F97:F99) -> 0 | G96: 0 | H96: 0 | I96: 0 | J96: 0 | K96: 5050000 | L96: 0 | M96: Tak
C97: 0690 | D97: Wpływy z różnych opłat | E97: =0+'ZADANIOWY (2)'!J412+'ZADANIOWY (2)'!J447 -> 5050000 | F97: =0+'ZADANIOWY (2)'!K412+'ZADANIOWY (2)'!K447 -> 0 | G97: =0+'ZADANIOWY (2)'!L412+'ZADANIOWY (2)'!L447 -> 0 | H97: =0+'ZADANIOWY (2)'!M412+'ZADANIOWY (2)'!M447 -> 0 | I97: =0+'ZADANIOWY (2)'!N412+'ZADANIOWY (2)'!N447 -> 0 | J97: =0+'ZADANIOWY (2)'!O412+'ZADANIOWY (2)'!O447 -> 0 | K97: =E97-G97+H97 -> 5050000 | L97: =F97-I97+J97 -> 0 | M97: Tak
C98: 0920 | D98: Wpływy z pozostałych odsetek | E98: =0+'ZADANIOWY (2)'!J599 -> 0 | F98: =0+'ZADANIOWY (2)'!K599 -> 0 | G98: =0+'ZADANIOWY (2)'!L599 -> 0 | H98: =0+'ZADANIOWY (2)'!M599 -> 0 | I98: =0+'ZADANIOWY (2)'!N599 -> 0 | J98: =0+'ZADANIOWY (2)'!O599 -> 0 | K98: 0 | L98: 0
C99: 0970 | D99: Wpływy z różnych dochodów | E99: =0+'ZADANIOWY (2)'!J728 -> 0 | F99: =0+'ZADANIOWY (2)'!K728 -> 0 | G99: =0+'ZADANIOWY (2)'!L728 -> 0 | H99: =0+'ZADANIOWY (2)'!M728 -> 0 | I99: =0+'ZADANIOWY (2)'!N728 -> 0 | J99: =0+'ZADANIOWY (2)'!O728 -> 0 | K99: 0 | L99: 0 | M99: =IF(SUM(E99:L99)>0,"Tak","") ->  | N99: =IF(SUM(G99:J99)>0,"Tak","") -> 
B100: 60020 | D100: Funkcjonowanie przystanków komunikacyjnych | E100: =SUM(E101:E102) -> 0 | F100: 0 | G100: 0 | H100: 0 | I100: 0 | J100: 0 | K100: 0 | L100: 0
C101: 0750 | D101: Wpływy z najmu i dzierżawy składników majątkowych Skarbu Państwa, jednostek samorządu terytorialnego lub innych jednostek zaliczanych do sektora finansów publicznych oraz innych umów o podobnym charakterze | E101: =0+'ZADANIOWY (2)'!J214 -> 0 | F101: =0+'ZADANIOWY (2)'!K214 -> 0 | G101: =0+'ZADANIOWY (2)'!L214 -> 0 | H101: =0+'ZADANIOWY (2)'!M214 -> 0 | I101: =0+'ZADANIOWY (2)'!N214 -> 0 | J101: =0+'ZADANIOWY (2)'!O214 -> 0 | K101: 0 | L101: 0
C102: 0920 | D102: Wpływy z pozostałych odsetek | E102: =0+'ZADANIOWY (2)'!J600 -> 0 | F102: =0+'ZADANIOWY (2)'!K600 -> 0 | G102: =0+'ZADANIOWY (2)'!L600 -> 0 | H102: =0+'ZADANIOWY (2)'!M600 -> 0 | I102: =0+'ZADANIOWY (2)'!N600 -> 0 | J102: =0+'ZADANIOWY (2)'!O600 -> 0 | K102: 0 | L102: 0
B103: 60021 | D103: Funkcjonowanie dworców i węzłów przesiadkowych | E103: =SUM(E104:E105) -> 0 | F103: 0 | G103: 0 | H103: 0 | I103: 0 | J103: 0 | K103: 0 | L103: 0
C104: 0750 | D104: Wpływy z najmu i dzierżawy składników majątkowych Skarbu Państwa, jednostek samorządu terytorialnego lub innych jednostek zaliczanych do sektora finansów publicznych oraz innych umów o podobnym charakterze | E104: =0+'ZADANIOWY (2)'!J215 -> 0 | F104: =0+'ZADANIOWY (2)'!K215 -> 0 | G104: =0+'ZADANIOWY (2)'!L215 -> 0 | H104: =0+'ZADANIOWY (2)'!M215 -> 0 | I104: =0+'ZADANIOWY (2)'!N215 -> 0 | J104: =0+'ZADANIOWY (2)'!O215 -> 0 | K104: 0 | L104: 0
C105: 0920 | D105: Wpływy z pozostałych odsetek | E105: =0+'ZADANIOWY (2)'!J601 -> 0 | F105: =0+'ZADANIOWY (2)'!K601 -> 0 | G105: =0+'ZADANIOWY (2)'!L601 -> 0 | H105: =0+'ZADANIOWY (2)'!M601 -> 0 | I105: =0+'ZADANIOWY (2)'!N601 -> 0 | J105: =0+'ZADANIOWY (2)'!O601 -> 0 | K105: 0 | L105: 0
B106: 60022 | D106: Funkcjonowanie systemów rowerów publicznych | E106: =SUM(E107:E108) -> 0 | F106: 0 | G106: 0 | H106: 0 | I106: 0 | J106: 0 | K106: 0 | L106: 0
C107: 0690 | D107: Wpływy z różnych opłat | E107: =0+'ZADANIOWY (2)'!J453 -> 0 | F107: =0+'ZADANIOWY (2)'!K453 -> 0 | G107: =0+'ZADANIOWY (2)'!L453 -> 0 | H107: =0+'ZADANIOWY (2)'!M453 -> 0 | I107: =0+'ZADANIOWY (2)'!N453 -> 0 | J107: =0+'ZADANIOWY (2)'!O453 -> 0 | K107: 0 | L107: 0
C108: 0920 | D108: Wpływy z pozostałych odsetek | E108: =0+'ZADANIOWY (2)'!J602 -> 0 | F108: =0+'ZADANIOWY (2)'!K602 -> 0 | G108: =0+'ZADANIOWY (2)'!L602 -> 0 | H108: =0+'ZADANIOWY (2)'!M602 -> 0 | I108: =0+'ZADANIOWY (2)'!N602 -> 0 | J108: =0+'ZADANIOWY (2)'!O602 -> 0 | K108: 0 | L108: 0
B109: 60078 | D109: Usuwanie skutków klęsk żywiołowych | E109: =SUM(E110) -> 0 | F109: 0 | G109: 0 | H109: 0 | I109: 0 | J109: 0 | K109: 0 | L109: 0
C110: 2030 | D110: Dotacje celowe otrzymane z budżetu państwa na realizację własnych zadań bieżących gmin (związków gmin, związków powiatowo-gminnych) | E110: =0+'ZADANIOWY (2)'!J1025 -> 0 | F110: =0+'ZADANIOWY (2)'!K1025 -> 0 | G110: =0+'ZADANIOWY (2)'!L1025 -> 0 | H110: =0+'ZADANIOWY (2)'!M1025 -> 0 | I110: =0+'ZADANIOWY (2)'!N1025 -> 0 | J110: =0+'ZADANIOWY (2)'!O1025 -> 0 | K110: 0 | L110: 0
B111: 60095 | D111: Pozostała działalność | E111: =SUM(E112:E130) -> 0 | F111: 0 | G111: 0 | H111: 0 | I111: 0 | J111: 0 | K111: 0 | L111: 0
C112: 0570 | D112: Wpływy z tytułu grzywien, mandatów i innych kar pieniężnych od osób fizycznych | E112: =0+'ZADANIOWY (2)'!J292 -> 0 | F112: =0+'ZADANIOWY (2)'!K292 -> 0 | G112: =0+'ZADANIOWY (2)'!L292 -> 0 | H112: =0+'ZADANIOWY (2)'!M292 -> 0 | I112: =0+'ZADANIOWY (2)'!N292 -> 0 | J112: =0+'ZADANIOWY (2)'!O292 -> 0 | K112: 0 | L112: 0
C113: 0610 | D113: Wpływy z opłat egzaminacyjnych oraz opłat za wydawanie świadectw, dyplomów, zaświadczeń, certyfikatów i ich duplikatów | E113: =0+'ZADANIOWY (2)'!J362+'ZADANIOWY (2)'!J363 -> 0 | F113: =0+'ZADANIOWY (2)'!K362+'ZADANIOWY (2)'!K363 -> 0 | G113: =0+'ZADANIOWY (2)'!L362+'ZADANIOWY (2)'!L363 -> 0 | H113: =0+'ZADANIOWY (2)'!M362+'ZADANIOWY (2)'!M363 -> 0 | I113: =0+'ZADANIOWY (2)'!N362+'ZADANIOWY (2)'!N363 -> 0 | J113: =0+'ZADANIOWY (2)'!O362+'ZADANIOWY (2)'!O363 -> 0 | K113: 0 | L113: 0
C114: 0640 | D114: Wpływy z tytułu kosztów egzekucyjnych, opłaty komorniczej i kosztów upomnień | E114: =0+'ZADANIOWY (2)'!J386 -> 0 | F114: =0+'ZADANIOWY (2)'!K386 -> 0 | G114: =0+'ZADANIOWY (2)'!L386 -> 0 | H114: =0+'ZADANIOWY (2)'!M386 -> 0 | I114: =0+'ZADANIOWY (2)'!N386 -> 0 | J114: =0+'ZADANIOWY (2)'!O386 -> 0 | K114: 0 | L114: 0
C115: 0620 | D115: Wpływy z opłat za zezwolenia, akredytacje oraz opłaty ewidencyjne, w tym opłaty za częstotliwości | E115: =0+'ZADANIOWY (2)'!J376 -> 0 | F115: =0+'ZADANIOWY (2)'!K376 -> 0 | G115: =0+'ZADANIOWY (2)'!L376 -> 0 | H115: =0+'ZADANIOWY (2)'!M376 -> 0 | I115: =0+'ZADANIOWY (2)'!N376 -> 0 | J115: =0+'ZADANIOWY (2)'!O376 -> 0 | K115: 0 | L115: 0
C116: 0690 | D116: Wpływy z różnych opłat | E116: =0+'ZADANIOWY (2)'!J413+'ZADANIOWY (2)'!J414+'ZADANIOWY (2)'!J441 -> 0 | F116: =0+'ZADANIOWY (2)'!K413+'ZADANIOWY (2)'!K414+'ZADANIOWY (2)'!K441 -> 0 | G116: =0+'ZADANIOWY (2)'!L413+'ZADANIOWY (2)'!L414+'ZADANIOWY (2)'!L441 -> 0 | H116: =0+'ZADANIOWY (2)'!M413+'ZADANIOWY (2)'!M414+'ZADANIOWY (2)'!M441 -> 0 | I116: =0+'ZADANIOWY (2)'!N413+'ZADANIOWY (2)'!N414+'ZADANIOWY (2)'!N441 -> 0 | J116: =0+'ZADANIOWY (2)'!O413+'ZADANIOWY (2)'!O414+'ZADANIOWY (2)'!O441 -> 0 | K116: 0 | L116: 0
C117: 0880 | D117: Wpływy z opłaty prolongacyjnej | E117: =0+'ZADANIOWY (2)'!J42 -> 0 | F117: =0+'ZADANIOWY (2)'!K42 -> 0 | G117: =0+'ZADANIOWY (2)'!L42 -> 0 | H117: =0+'ZADANIOWY (2)'!M42 -> 0 | I117: =0+'ZADANIOWY (2)'!N42 -> 0 | J117: =0+'ZADANIOWY (2)'!O42 -> 0 | K117: 0 | L117: 0
C118: 0910 | D118: Wpływy z odsetek od nieterminowych wpłat z tytułu podatków i opłat | E118: =0+'ZADANIOWY (2)'!J582 -> 0 | F118: =0+'ZADANIOWY (2)'!K582 -> 0 | G118: =0+'ZADANIOWY (2)'!L582 -> 0 | H118: =0+'ZADANIOWY (2)'!M582 -> 0 | I118: =0+'ZADANIOWY (2)'!N582 -> 0 | J118: =0+'ZADANIOWY (2)'!O582 -> 0 | K118: 0 | L118: 0
C119: 0920 | D119: Wpływy z pozostałych odsetek | E119: =0+'ZADANIOWY (2)'!J603 -> 0 | F119: =0+'ZADANIOWY (2)'!K603 -> 0 | G119: =0+'ZADANIOWY (2)'!L603 -> 0 | H119: =0+'ZADANIOWY (2)'!M603 -> 0 | I119: =0+'ZADANIOWY (2)'!N603 -> 0 | J119: =0+'ZADANIOWY (2)'!O603 -> 0 | K119: 0 | L119: 0
C120: 0970 | D120: Wpływy z różnych dochodów | E120: =0+'ZADANIOWY (2)'!J729 -> 0 | F120: =0+'ZADANIOWY (2)'!K729 -> 0 | G120: =0+'ZADANIOWY (2)'!L729 -> 0 | H120: =0+'ZADANIOWY (2)'!M729 -> 0 | I120: =0+'ZADANIOWY (2)'!N729 -> 0 | J120: =0+'ZADANIOWY (2)'!O729 -> 0 | K120: 0 | L120: 0
C121: 2007 | D121: Dotacje celowe w ramach programów finansowanych z udziałem środków europejskich oraz środków, o których mowa w art. 5 ust. 1 pkt 3 oraz ust. 3 pkt 5 i 6 ustawy, lub płatności w ramach budżetu środków europejskich, z wyłączeniem dochodów klasyfikowanych w paragrafie 205 | E121: =0+'ZADANIOWY (2)'!J1206 -> 0 | F121: =0+'ZADANIOWY (2)'!K1206 -> 0 | G121: =0+'ZADANIOWY (2)'!L1206 -> 0 | H121: =0+'ZADANIOWY (2)'!M1206 -> 0 | I121: =0+'ZADANIOWY (2)'!N1206 -> 0 | J121: =0+'ZADANIOWY (2)'!O1206 -> 0 | K121: 0 | L121: 0
C122: 2009 | D122: Dotacje celowe w ramach programów finansowanych z udziałem środków europejskich oraz środków, o których mowa w art. 5 ust. 1 pkt 3 oraz ust. 3 pkt 5 i 6 ustawy, lub płatności w ramach budżetu środków europejskich, z wyłączeniem dochodów klasyfikowanych w paragrafie 205 | E122: =0+'ZADANIOWY (2)'!J1387 -> 0 | F122: =0+'ZADANIOWY (2)'!K1387 -> 0 | G122: =0+'ZADANIOWY (2)'!L1387 -> 0 | H122: =0+'ZADANIOWY (2)'!M1387 -> 0 | I122: =0+'ZADANIOWY (2)'!N1387 -> 0 | J122: =0+'ZADANIOWY (2)'!O1387 -> 0 | K122: 0 | L122: 0
C123: 2010 | D123: Dotacje celowe otrzymane z budżetu państwa na realizację zadań bieżących z zakresu administracji rządowej oraz innych zadań zleconych gminie (związkom gmin, związkom powiatowo-gminnym) ustawami | E123: =0+'ZADANIOWY (2)'!J1062 -> 0 | F123: =0+'ZADANIOWY (2)'!K1062 -> 0 | G123: =0+'ZADANIOWY (2)'!L1062 -> 0 | H123: =0+'ZADANIOWY (2)'!M1062 -> 0 | I123: =0+'ZADANIOWY (2)'!N1062 -> 0 | J123: =0+'ZADANIOWY (2)'!O1062 -> 0 | K123: 0 | L123: 0
C124: 2110 | D124: Dotacje celowe otrzymane z budżetu państwa na zadania bieżące z zakresu administracji rządowej oraz inne zadania zlecone ustawami realizowane przez powiat | E124: =0+'ZADANIOWY (2)'!J1100 -> 0 | F124: =0+'ZADANIOWY (2)'!K1100 -> 0 | G124: =0+'ZADANIOWY (2)'!L1100 -> 0 | H124: =0+'ZADANIOWY (2)'!M1100 -> 0 | I124: =0+'ZADANIOWY (2)'!N1100 -> 0 | J124: =0+'ZADANIOWY (2)'!O1100 -> 0 | K124: 0 | L124: 0
C125: 2370 | D125: Wpływy do budżetu nadwyżki środków obrotowych samorządowego zakładu budżetowego | E125: =0+'ZADANIOWY (2)'!J870 -> 0 | F125: =0+'ZADANIOWY (2)'!K870 -> 0 | G125: =0+'ZADANIOWY (2)'!L870 -> 0 | H125: =0+'ZADANIOWY (2)'!M870 -> 0 | I125: =0+'ZADANIOWY (2)'!N870 -> 0 | J125: =0+'ZADANIOWY (2)'!O870 -> 0 | K125: 0 | L125: 0
C126: 6207 | D126: Dotacje celowe w ramach programów finansowanych z udziałem środków europejskich oraz środków, o których mowa w art. 5 ust. 1 pkt 3 oraz ust. 3 pkt 5 i 6 ustawy, lub płatności w ramach budżetu środków europejskich, z wyłączeniem dochodów klasyfikowanych w paragrafie 625 | E126: =0+'ZADANIOWY (2)'!J1680+'ZADANIOWY (2)'!J1696 -> 0 | F126: =0+'ZADANIOWY (2)'!K1680+'ZADANIOWY (2)'!K1696 -> 0 | G126: =0+'ZADANIOWY (2)'!L1680+'ZADANIOWY (2)'!L1696 -> 0 | H126: =0+'ZADANIOWY (2)'!M1680+'ZADANIOWY (2)'!M1696 -> 0 | I126: =0+'ZADANIOWY (2)'!N1680+'ZADANIOWY (2)'!N1696 -> 0 | J126: =0+'ZADANIOWY (2)'!O1680+'ZADANIOWY (2)'!O1696 -> 0 | K126: 0 | L126: 0
C127: 6257 | D127: Dotacje celowe w ramach programów finansowanych z udziałem środków europejskich oraz środków, o których mowa w art. 5 ust. 3 pkt 5 lit. a i b ustawy, lub płatności w ramach budżetu środków europejskich, realizowanych przez jednostki samorządu terytorialnego | E127: =0+'ZADANIOWY (2)'!J1710 -> 0 | F127: =0+'ZADANIOWY (2)'!K1710 -> 0 | G127: =0+'ZADANIOWY (2)'!L1710 -> 0 | H127: =0+'ZADANIOWY (2)'!M1710 -> 0 | I127: =0+'ZADANIOWY (2)'!N1710 -> 0 | J127: =0+'ZADANIOWY (2)'!O1710 -> 0 | K127: 0 | L127: 0
C128: 6298 | D128: Środki na dofinansowanie własnych inwestycji gmin, powiatów (związków gmin, związków powiatowo-gminnych, związków powiatów), samorządów województw, pozyskane z innych źródeł | E128: =0 -> 0 | F128: =0 -> 0 | G128: =0 -> 0 | H128: =0 -> 0 | I128: =0 -> 0 | J128: =0 -> 0 | K128: 0 | L128: 0
C129: 6300 | D129: Dotacja celowa otrzymana z tytułu pomocy finansowej udzielanej między jednostkami samorządu terytorialnego na dofinansowanie własnych zadań inwestycyjnych i zakupów inwestycyjnych | E129: =0+'ZADANIOWY (2)'!J1594 -> 0 | F129: =0+'ZADANIOWY (2)'!K1594 -> 0 | G129: =0+'ZADANIOWY (2)'!L1594 -> 0 | H129: =0+'ZADANIOWY (2)'!M1594 -> 0 | I129: =0+'ZADANIOWY (2)'!N1594 -> 0 | J129: =0+'ZADANIOWY (2)'!O1594 -> 0 | K129: 0 | L129: 0
C130: 6680 | D130: Wpłata środków finansowych z niewykorzystanych w terminie wydatków, które nie wygasają z upływem roku budżetowego | E130: =0+'ZADANIOWY (2)'!J1607 -> 0 | F130: =0+'ZADANIOWY (2)'!K1607 -> 0 | G130: =0+'ZADANIOWY (2)'!L1607 -> 0 | H130: =0+'ZADANIOWY (2)'!M1607 -> 0 | I130: =0+'ZADANIOWY (2)'!N1607 -> 0 | J130: =0+'ZADANIOWY (2)'!O1607 -> 0 | K130: 0 | L130: 0
A131: 630 | D131: Turystyka | E131: =SUM(E132) -> 0 | F131: 0 | G131: 0 | H131: 0 | I131: 0 | J131: 0 | K131: 0 | L131: 0
B132: 63001 | D132: Ośrodki informacji turystycznej | E132: =SUM(E133:E136) -> 0 | F132: 0 | G132: 0 | H132: 0 | I132: 0 | J132: 0 | K132: 0 | L132: 0
C133: 0830 | D133: Wpływy z usług | E133: =0+'ZADANIOWY (2)'!J462+'ZADANIOWY (2)'!J499 -> 0 | F133: =0+'ZADANIOWY (2)'!K462+'ZADANIOWY (2)'!K499 -> 0 | G133: =0+'ZADANIOWY (2)'!L462+'ZADANIOWY (2)'!L499 -> 0 | H133: =0+'ZADANIOWY (2)'!M462+'ZADANIOWY (2)'!M499 -> 0 | I133: =0+'ZADANIOWY (2)'!N462+'ZADANIOWY (2)'!N499 -> 0 | J133: =0+'ZADANIOWY (2)'!O462+'ZADANIOWY (2)'!O499 -> 0 | K133: 0 | L133: 0
C134: 0920 | D134: Wpływy z pozostałych odsetek | E134: =0+'ZADANIOWY (2)'!J604 -> 0 | F134: =0+'ZADANIOWY (2)'!K604 -> 0 | G134: =0+'ZADANIOWY (2)'!L604 -> 0 | H134: =0+'ZADANIOWY (2)'!M604 -> 0 | I134: =0+'ZADANIOWY (2)'!N604 -> 0 | J134: =0+'ZADANIOWY (2)'!O604 -> 0 | K134: 0 | L134: 0
C135: 0940 | D135: Wpływy z rozliczeń/zwrotów z lat ubiegłych | E135: =0+'ZADANIOWY (2)'!J681 -> 0 | F135: =0+'ZADANIOWY (2)'!K681 -> 0 | G135: =0+'ZADANIOWY (2)'!L681 -> 0 | H135: =0+'ZADANIOWY (2)'!M681 -> 0 | I135: =0+'ZADANIOWY (2)'!N681 -> 0 | J135: =0+'ZADANIOWY (2)'!O681 -> 0 | K135: 0 | L135: 0
C136: 0970 | D136: Wpływy z różnych dochodów | E136: =0+'ZADANIOWY (2)'!J730 -> 0 | F136: =0+'ZADANIOWY (2)'!K730 -> 0 | G136: =0+'ZADANIOWY (2)'!L730 -> 0 | H136: =0+'ZADANIOWY (2)'!M730 -> 0 | I136: =0+'ZADANIOWY (2)'!N730 -> 0 | J136: =0+'ZADANIOWY (2)'!O730 -> 0 | K136: 0 | L136: 0 | M136: =IF(SUM(E136:L136)>0,"Tak","") -> 
A137: 700 | D137: Gospodarka mieszkaniowa | E137: =SUM(E138,E145,E173,E183) -> 429013525 | F137: 89113525 | G137: 742200 | H137: 742200 | I137: 0 | J137: 0 | K137: 429013525 | L137: 89113525 | M137: Tak | N137: Tak
B138: 70004 | D138: Różne jednostki obsługi gospodarki mieszkaniowej | E138: =SUM(E139:E144) -> 0 | F138: 0 | G138: 0 | H138: 0 | I138: 0 | J138: 0 | K138: 0 | L138: 0
C139: 0580 | D139: Wpływy z tytułu grzywien i innych kar pieniężnych od osób prawnych i innych jednostek organizacyjnych | E139: =0 -> 0 | F139: =0 -> 0 | G139: =0 -> 0 | H139: =0 -> 0 | I139: =0 -> 0 | J139: =0 -> 0 | K139: 0 | L139: 0
C140: 0690 | D140: Wpływy z różnych opłat | E140: =0 -> 0 | F140: =0 -> 0 | G140: =0 -> 0 | H140: =0 -> 0 | I140: =0 -> 0 | J140: =0 -> 0 | K140: 0 | L140: 0
C141: 0750 | D141: Wpływy z najmu i dzierżawy składników majątkowych Skarbu Państwa, jednostek samorządu terytorialnego lub innych jednostek zaliczanych do sektora finansów publicznych oraz innych umów o podobnym charakterze | E141: =0+'ZADANIOWY (2)'!J62+'ZADANIOWY (2)'!J93+'ZADANIOWY (2)'!J123+'ZADANIOWY (2)'!J151+'ZADANIOWY (2)'!J182+'ZADANIOWY (2)'!J216+'ZADANIOWY (2)'!J249 -> 0 | F141: =0+'ZADANIOWY (2)'!K62+'ZADANIOWY (2)'!K93+'ZADANIOWY (2)'!K123+'ZADANIOWY (2)'!K151+'ZADANIOWY (2)'!K182+'ZADANIOWY (2)'!K216+'ZADANIOWY (2)'!K249 -> 0 | G141: =0+'ZADANIOWY (2)'!L62+'ZADANIOWY (2)'!L93+'ZADANIOWY (2)'!L123+'ZADANIOWY (2)'!L151+'ZADANIOWY (2)'!L182+'ZADANIOWY (2)'!L216+'ZADANIOWY (2)'!L249 -> 0 | H141: =0+'ZADANIOWY (2)'!M62+'ZADANIOWY (2)'!M93+'ZADANIOWY (2)'!M123+'ZADANIOWY (2)'!M151+'ZADANIOWY (2)'!M182+'ZADANIOWY (2)'!M216+'ZADANIOWY (2)'!M249 -> 0 | I141: =0+'ZADANIOWY (2)'!N62+'ZADANIOWY (2)'!N93+'ZADANIOWY (2)'!N123+'ZADANIOWY (2)'!N151+'ZADANIOWY (2)'!N182+'ZADANIOWY (2)'!N216+'ZADANIOWY (2)'!N249 -> 0 | J141: =0+'ZADANIOWY (2)'!O62+'ZADANIOWY (2)'!O93+'ZADANIOWY (2)'!O123+'ZADANIOWY (2)'!O151+'ZADANIOWY (2)'!O182+'ZADANIOWY (2)'!O216+'ZADANIOWY (2)'!O249 -> 0 | K141: 0 | L141: 0
C142: 0830 | D142: Wpływy z usług | E142: =0+'ZADANIOWY (2)'!J463+'ZADANIOWY (2)'!J500 -> 0 | F142: =0+'ZADANIOWY (2)'!K463+'ZADANIOWY (2)'!K500 -> 0 | G142: =0+'ZADANIOWY (2)'!L463+'ZADANIOWY (2)'!L500 -> 0 | H142: =0+'ZADANIOWY (2)'!M463+'ZADANIOWY (2)'!M500 -> 0 | I142: =0+'ZADANIOWY (2)'!N463+'ZADANIOWY (2)'!N500 -> 0 | J142: =0+'ZADANIOWY (2)'!O463+'ZADANIOWY (2)'!O500 -> 0 | K142: 0 | L142: 0
C143: 0920 | D143: Wpływy z pozostałych odsetek | E143: =0+'ZADANIOWY (2)'!J605 -> 0 | F143: =0+'ZADANIOWY (2)'!K605 -> 0 | G143: =0+'ZADANIOWY (2)'!L605 -> 0 | H143: =0+'ZADANIOWY (2)'!M605 -> 0 | I143: =0+'ZADANIOWY (2)'!N605 -> 0 | J143: =0+'ZADANIOWY (2)'!O605 -> 0 | K143: 0 | L143: 0
C144: 0970 | D144: Wpływy z różnych dochodów | E144: =0+'ZADANIOWY (2)'!J731 -> 0 | F144: =0+'ZADANIOWY (2)'!K731 -> 0 | G144: =0+'ZADANIOWY (2)'!L731 -> 0 | H144: =0+'ZADANIOWY (2)'!M731 -> 0 | I144: =0+'ZADANIOWY (2)'!N731 -> 0 | J144: =0+'ZADANIOWY (2)'!O731 -> 0 | K144: 0 | L144: 0
B145: 70005 | D145: Gospodarka gruntami i nieruchomościami | E145: =SUM(E146:E172) -> 292373525 | F145: 89113525 | G145: 257200 | H145: 257200 | I145: 0 | J145: 0 | K145: 292373525 | L145: 89113525 | M145: Tak | N145: Tak
C146: 0470 | D146: Wpływy z opłat za trwały zarząd, użytkowanie i służebności | E146: =0+'ZADANIOWY (2)'!J53 -> 1700000 | F146: =0+'ZADANIOWY (2)'!K53 -> 1700000 | G146: =0+'ZADANIOWY (2)'!L53 -> 0 | H146: =0+'ZADANIOWY (2)'!M53 -> 0 | I146: =0+'ZADANIOWY (2)'!N53 -> 0 | J146: =0+'ZADANIOWY (2)'!O53 -> 0 | K146: 1700000 | L146: 1700000 | M146: Tak
C147: 0550 | D147: Wpływy z opłat z tytułu użytkowania wieczystego nieruchomości | E147: =0+'ZADANIOWY (2)'!J50+'ZADANIOWY (2)'!J51+'ZADANIOWY (2)'!J52 -> 67148000 | F147: =0+'ZADANIOWY (2)'!K50+'ZADANIOWY (2)'!K51+'ZADANIOWY (2)'!K52 -> 67148000 | G147: =0+'ZADANIOWY (2)'!L50+'ZADANIOWY (2)'!L51+'ZADANIOWY (2)'!L52 -> 0 | H147: =0+'ZADANIOWY (2)'!M50+'ZADANIOWY (2)'!M51+'ZADANIOWY (2)'!M52 -> 0 | I147: =0+'ZADANIOWY (2)'!N50+'ZADANIOWY (2)'!N51+'ZADANIOWY (2)'!N52 -> 0 | J147: =0+'ZADANIOWY (2)'!O50+'ZADANIOWY (2)'!O51+'ZADANIOWY (2)'!O52 -> 0 | K147: 67148000 | L147: 67148000 | M147: Tak
C148: 0570 | D148: Wpływy z tytułu grzywien, mandatów i innych kar pieniężnych od osób fizycznych | E148: =0+'ZADANIOWY (2)'!J293+'ZADANIOWY (2)'!J294 -> 0 | F148: =0+'ZADANIOWY (2)'!K293+'ZADANIOWY (2)'!K294 -> 0 | G148: =0+'ZADANIOWY (2)'!L293+'ZADANIOWY (2)'!L294 -> 0 | H148: =0+'ZADANIOWY (2)'!M293+'ZADANIOWY (2)'!M294 -> 0 | I148: =0+'ZADANIOWY (2)'!N293+'ZADANIOWY (2)'!N294 -> 0 | J148: =0+'ZADANIOWY (2)'!O293+'ZADANIOWY (2)'!O294 -> 0 | K148: 0 | L148: 0
C149: 0580 | D149: Wpływy z tytułu grzywien i innych kar pieniężnych od osób prawnych i innych jednostek organizacyjnych | E149: =0+'ZADANIOWY (2)'!J312 -> 0 | F149: =0+'ZADANIOWY (2)'!K312 -> 0 | G149: =0+'ZADANIOWY (2)'!L312 -> 0 | H149: =0+'ZADANIOWY (2)'!M312 -> 0 | I149: =0+'ZADANIOWY (2)'!N312 -> 0 | J149: =0+'ZADANIOWY (2)'!O312 -> 0 | K149: 0 | L149: 0
C150: 0630 | D150: Wpływy z tytułu opłat i kosztów sądowych oraz innych opłat uiszczanych na rzecz Skarbu Państwa z tytułu postępowania sądowego i prokuratorskiego | E150: =0+'ZADANIOWY (2)'!J379+'ZADANIOWY (2)'!J380 -> 0 | F150: =0+'ZADANIOWY (2)'!K379+'ZADANIOWY (2)'!K380 -> 0 | G150: =0+'ZADANIOWY (2)'!L379+'ZADANIOWY (2)'!L380 -> 0 | H150: =0+'ZADANIOWY (2)'!M379+'ZADANIOWY (2)'!M380 -> 257200 | I150: =0+'ZADANIOWY (2)'!N379+'ZADANIOWY (2)'!N380 -> 0 | J150: =0+'ZADANIOWY (2)'!O379+'ZADANIOWY (2)'!O380 -> 0 | K150: 257200 | L150: 0 | M150: =IF(SUM(E150:L150)>0,"Tak","") -> Tak | N150: =IF(SUM(G150:J150)>0,"Tak","") -> Tak
C151: 0640 | D151: Wpływy z tytułu kosztów egzekucyjnych, opłaty komorniczej i kosztów upomnień | E151: =0+'ZADANIOWY (2)'!J387+'ZADANIOWY (2)'!J388 -> 10000 | F151: =0+'ZADANIOWY (2)'!K387+'ZADANIOWY (2)'!K388 -> 0 | G151: =0+'ZADANIOWY (2)'!L387+'ZADANIOWY (2)'!L388 -> 0 | H151: =0+'ZADANIOWY (2)'!M387+'ZADANIOWY (2)'!M388 -> 0 | I151: =0+'ZADANIOWY (2)'!N387+'ZADANIOWY (2)'!N388 -> 0 | J151: =0+'ZADANIOWY (2)'!O387+'ZADANIOWY (2)'!O388 -> 0 | K151: 10000 | L151: 0 | M151: Tak
C152: 0690 | D152: Wpływy z różnych opłat | E152: =0+'ZADANIOWY (2)'!J415 -> 0 | F152: =0+'ZADANIOWY (2)'!K415 -> 0 | G152: =0+'ZADANIOWY (2)'!L415 -> 0 | H152: =0+'ZADANIOWY (2)'!M415 -> 0 | I152: =0+'ZADANIOWY (2)'!N415 -> 0 | J152: =0+'ZADANIOWY (2)'!O415 -> 0 | K152: 0 | L152: 0
C153: 0750 | D153: Wpływy z najmu i dzierżawy składników majątkowych Skarbu Państwa, jednostek samorządu terytorialnego lub innych jednostek zaliczanych do sektora finansów publicznych oraz innych umów o podobnym charakterze | E153: =0+'ZADANIOWY (2)'!J63+'ZADANIOWY (2)'!J124+'ZADANIOWY (2)'!J152+'ZADANIOWY (2)'!J183+'ZADANIOWY (2)'!J217+'ZADANIOWY (2)'!J250+'ZADANIOWY (2)'!J94 -> 162000000 | F153: =0+'ZADANIOWY (2)'!K63+'ZADANIOWY (2)'!K124+'ZADANIOWY (2)'!K152+'ZADANIOWY (2)'!K183+'ZADANIOWY (2)'!K217+'ZADANIOWY (2)'!K250+'ZADANIOWY (2)'!K94 -> 2200000 | G153: =0+'ZADANIOWY (2)'!L63+'ZADANIOWY (2)'!L124+'ZADANIOWY (2)'!L152+'ZADANIOWY (2)'!L183+'ZADANIOWY (2)'!L217+'ZADANIOWY (2)'!L250+'ZADANIOWY (2)'!L94 -> 0 | H153: =0+'ZADANIOWY (2)'!M63+'ZADANIOWY (2)'!M124+'ZADANIOWY (2)'!M152+'ZADANIOWY (2)'!M183+'ZADANIOWY (2)'!M217+'ZADANIOWY (2)'!M250+'ZADANIOWY (2)'!M94 -> 0 | I153: =0+'ZADANIOWY (2)'!N63+'ZADANIOWY (2)'!N124+'ZADANIOWY (2)'!N152+'ZADANIOWY (2)'!N183+'ZADANIOWY (2)'!N217+'ZADANIOWY (2)'!N250+'ZADANIOWY (2)'!N94 -> 0 | J153: =0+'ZADANIOWY (2)'!O63+'ZADANIOWY (2)'!O124+'ZADANIOWY (2)'!O152+'ZADANIOWY (2)'!O183+'ZADANIOWY (2)'!O217+'ZADANIOWY (2)'!O250+'ZADANIOWY (2)'!O94 -> 0 | K153: 162000000 | L153: 2200000 | M153: Tak
C154: 0760 | D154: Wpływy z tytułu przekształcenia prawa użytkowania wieczystego przysługującego osobom fizycznym w prawo własności | E154: =0+'ZADANIOWY (2)'!J1582+'ZADANIOWY (2)'!J1583+'ZADANIOWY (2)'!J1584 -> 10852000 | F154: =0+'ZADANIOWY (2)'!K1582+'ZADANIOWY (2)'!K1583+'ZADANIOWY (2)'!K1584 -> 10852000 | G154: =0+'ZADANIOWY (2)'!L1582+'ZADANIOWY (2)'!L1583+'ZADANIOWY (2)'!L1584 -> 0 | H154: =0+'ZADANIOWY (2)'!M1582+'ZADANIOWY (2)'!M1583+'ZADANIOWY (2)'!M1584 -> 0 | I154: =0+'ZADANIOWY (2)'!N1582+'ZADANIOWY (2)'!N1583+'ZADANIOWY (2)'!N1584 -> 0 | J154: =0+'ZADANIOWY (2)'!O1582+'ZADANIOWY (2)'!O1583+'ZADANIOWY (2)'!O1584 -> 0 | K154: 10852000 | L154: 10852000 | M154: Tak
C155: 0770 | D155: Wpłaty z tytułu odpłatnego nabycia prawa własności oraz prawa użytkowania wieczystego nieruchomości | E155: =0+'ZADANIOWY (2)'!J1555+'ZADANIOWY (2)'!J1557+'ZADANIOWY (2)'!J1558 -> 0 | F155: =0+'ZADANIOWY (2)'!K1555+'ZADANIOWY (2)'!K1557+'ZADANIOWY (2)'!K1558 -> 0 | G155: =0+'ZADANIOWY (2)'!L1555+'ZADANIOWY (2)'!L1557+'ZADANIOWY (2)'!L1558 -> 0 | H155: =0+'ZADANIOWY (2)'!M1555+'ZADANIOWY (2)'!M1557+'ZADANIOWY (2)'!M1558 -> 0 | I155: =0+'ZADANIOWY (2)'!N1555+'ZADANIOWY (2)'!N1557+'ZADANIOWY (2)'!N1558 -> 0 | J155: =0+'ZADANIOWY (2)'!O1555+'ZADANIOWY (2)'!O1557+'ZADANIOWY (2)'!O1558 -> 0 | K155: 0 | L155: 0
C156: 0780 | D156: Wpływy ze zbycia praw majątkowych | E156: =0 -> 0 | F156: =0 -> 0 | G156: =0 -> 0 | H156: =0 -> 0 | I156: =0 -> 0 | J156: =0 -> 0 | K156: 0 | L156: 0
C157: 0800 | D157: Wpływy z tytułu odszkodowania za przejęte nieruchomości pod inwestycje celu publicznego | E157: =0+'ZADANIOWY (2)'!J1559 -> 0 | F157: =0+'ZADANIOWY (2)'!K1559 -> 0 | G157: =0+'ZADANIOWY (2)'!L1559 -> 0 | H157: =0+'ZADANIOWY (2)'!M1559 -> 0 | I157: =0+'ZADANIOWY (2)'!N1559 -> 0 | J157: =0+'ZADANIOWY (2)'!O1559 -> 0 | K157: 0 | L157: 0
C158: 0830 | D158: Wpływy z usług | E158: =0+'ZADANIOWY (2)'!J464+'ZADANIOWY (2)'!J465+'ZADANIOWY (2)'!J501 -> 39000000 | F158: =0+'ZADANIOWY (2)'!K464+'ZADANIOWY (2)'!K465+'ZADANIOWY (2)'!K501 -> 0 | G158: =0+'ZADANIOWY (2)'!L464+'ZADANIOWY (2)'!L465+'ZADANIOWY (2)'!L501 -> 0 | H158: =0+'ZADANIOWY (2)'!M464+'ZADANIOWY (2)'!M465+'ZADANIOWY (2)'!M501 -> 0 | I158: =0+'ZADANIOWY (2)'!N464+'ZADANIOWY (2)'!N465+'ZADANIOWY (2)'!N501 -> 0 | J158: =0+'ZADANIOWY (2)'!O464+'ZADANIOWY (2)'!O465+'ZADANIOWY (2)'!O501 -> 0 | K158: 39000000 | L158: 0 | M158: Tak
C159: 0870 | D159: Wpływy ze sprzedaży składników majątkowych | E159: =0+'ZADANIOWY (2)'!J1568 -> 0 | F159: =0+'ZADANIOWY (2)'!K1568 -> 0 | G159: =0+'ZADANIOWY (2)'!L1568 -> 0 | H159: =0+'ZADANIOWY (2)'!M1568 -> 0 | I159: =0+'ZADANIOWY (2)'!N1568 -> 0 | J159: =0+'ZADANIOWY (2)'!O1568 -> 0 | K159: 0 | L159: 0
C160: 0900 | D160: Wpływy z odsetek od dotacji oraz płatności: wykorzystanych niezgodnie z przeznaczeniem lub wykorzystanych z naruszeniem procedur, o których mowa w art. 184 ustawy, pobranych nienależnie lub w nadmiernej wysokości | E160: =0+'ZADANIOWY (2)'!J544 -> 0 | F160: =0+'ZADANIOWY (2)'!K544 -> 0 | G160: =0+'ZADANIOWY (2)'!L544 -> 0 | H160: =0+'ZADANIOWY (2)'!M544 -> 0 | I160: =0+'ZADANIOWY (2)'!N544 -> 0 | J160: =0+'ZADANIOWY (2)'!O544 -> 0 | K160: 0 | L160: 0 | N160: =IF(SUM(G160:J160)>0,"Tak","") -> 
C161: 0950 | D161: Wpływy z tytułu kar i odszkodowań wynikających z umów | E161: =0+'ZADANIOWY (2)'!J325 -> 20000 | F161: =0+'ZADANIOWY (2)'!K325 -> 0 | G161: =0+'ZADANIOWY (2)'!L325 -> 0 | H161: =0+'ZADANIOWY (2)'!M325 -> 0 | I161: =0+'ZADANIOWY (2)'!N325 -> 0 | J161: =0+'ZADANIOWY (2)'!O325 -> 0 | K161: 20000 | L161: 0 | M161: Tak
C162: 0940 | D162: Wpływy z rozliczeń/zwrotów z lat ubiegłych | E162: =0+'ZADANIOWY (2)'!J682+'ZADANIOWY (2)'!J824 -> 2130000 | F162: =0+'ZADANIOWY (2)'!K682+'ZADANIOWY (2)'!K824 -> 0 | G162: =0+'ZADANIOWY (2)'!L682+'ZADANIOWY (2)'!L824 -> 0 | H162: =0+'ZADANIOWY (2)'!M682+'ZADANIOWY (2)'!M824 -> 0 | I162: =0+'ZADANIOWY (2)'!N682+'ZADANIOWY (2)'!N824 -> 0 | J162: =0+'ZADANIOWY (2)'!O682+'ZADANIOWY (2)'!O824 -> 0 | K162: 2130000 | L162: 0 | M162: Tak
C163: 0910 | D163: Wpływy z odsetek od nieterminowych wpłat z tytułu podatków i opłat | E163: =0 -> 0 | F163: =0 -> 0 | G163: =0 -> 0 | H163: =0 -> 0 | I163: =0 -> 0 | J163: =0 -> 0 | K163: =E163-G163+H163 -> 0 | L163: =F163-I163+J163 -> 0
C164: 0920 | D164: Wpływy z pozostałych odsetek | E164: =0+'ZADANIOWY (2)'!J606 -> 5213525 | F164: =0+'ZADANIOWY (2)'!K606 -> 4013525 | G164: =0+'ZADANIOWY (2)'!L606 -> 0 | H164: =0+'ZADANIOWY (2)'!M606 -> 0 | I164: =0+'ZADANIOWY (2)'!N606 -> 0 | J164: =0+'ZADANIOWY (2)'!O606 -> 0 | K164: 5213525 | L164: 4013525 | M164: Tak
C165: 0970 | D165: Wpływy z różnych dochodów | E165: =0+'ZADANIOWY (2)'!J732+'ZADANIOWY (2)'!J733+'ZADANIOWY (2)'!J840 -> 4300000 | F165: =0+'ZADANIOWY (2)'!K732+'ZADANIOWY (2)'!K733+'ZADANIOWY (2)'!K840 -> 3200000 | G165: =0+'ZADANIOWY (2)'!L732+'ZADANIOWY (2)'!L733+'ZADANIOWY (2)'!L840 -> 257200 | H165: =0+'ZADANIOWY (2)'!M732+'ZADANIOWY (2)'!M733+'ZADANIOWY (2)'!M840 -> 0 | I165: =0+'ZADANIOWY (2)'!N732+'ZADANIOWY (2)'!N733+'ZADANIOWY (2)'!N840 -> 0 | J165: =0+'ZADANIOWY (2)'!O732+'ZADANIOWY (2)'!O733+'ZADANIOWY (2)'!O840 -> 0 | K165: 4042800 | L165: 3200000 | M165: Tak | N165: Tak
C166: 2110 | D166: Dotacje celowe otrzymane z budżetu państwa na zadania bieżące z zakresu administracji rządowej oraz inne zadania zlecone ustawami realizowane przez powiat | E166: =0+'ZADANIOWY (2)'!J1101 -> 0 | F166: =0+'ZADANIOWY (2)'!K1101 -> 0 | G166: =0+'ZADANIOWY (2)'!L1101 -> 0 | H166: =0+'ZADANIOWY (2)'!M1101 -> 0 | I166: =0+'ZADANIOWY (2)'!N1101 -> 0 | J166: =0+'ZADANIOWY (2)'!O1101 -> 0 | K166: 0 | L166: 0
C167: 2360 | D167: Dochody jednostek samorządu terytorialnego związane z realizacją zadań z zakresu administracji rządowej oraz innych zadań zleconych ustawami | E167: =0+'ZADANIOWY (2)'!J852 -> 0 | F167: =0+'ZADANIOWY (2)'!K852 -> 0 | G167: =0+'ZADANIOWY (2)'!L852 -> 0 | H167: =0+'ZADANIOWY (2)'!M852 -> 0 | I167: =0+'ZADANIOWY (2)'!N852 -> 0 | J167: =0+'ZADANIOWY (2)'!O852 -> 0 | K167: 0 | L167: 0
C168: 2440 | D168: Dotacje otrzymane z państwowych funduszy celowych na realizację zadań bieżących jednostek sektora finansów publicznych | E168: =0+'ZADANIOWY (2)'!J1150 -> 0 | F168: =0+'ZADANIOWY (2)'!K1150 -> 0 | G168: =0+'ZADANIOWY (2)'!L1150 -> 0 | H168: =0+'ZADANIOWY (2)'!M1150 -> 0 | I168: =0+'ZADANIOWY (2)'!N1150 -> 0 | J168: =0+'ZADANIOWY (2)'!O1150 -> 0 | K168: 0 | L168: 0
C169: 2910 | D169: Wpływy ze zwrotów dotacji oraz płatności wykorzystanych niezgodnie z przeznaczeniem lub wykorzystanych z naruszeniem procedur, o których mowa w art. 184 ustawy, pobranych nienależnie lub w nadmiernej wysokości | E169: =0+'ZADANIOWY (2)'!J928+'ZADANIOWY (2)'!J929 -> 0 | F169: =0+'ZADANIOWY (2)'!K928+'ZADANIOWY (2)'!K929 -> 0 | G169: =0+'ZADANIOWY (2)'!L928+'ZADANIOWY (2)'!L929 -> 0 | H169: =0+'ZADANIOWY (2)'!M928+'ZADANIOWY (2)'!M929 -> 0 | I169: =0+'ZADANIOWY (2)'!N928+'ZADANIOWY (2)'!N929 -> 0 | J169: =0+'ZADANIOWY (2)'!O928+'ZADANIOWY (2)'!O929 -> 0 | K169: 0 | L169: 0
C170: 2980 | D170: Wpływy do wyjaśnienia | E170: =0+'ZADANIOWY (2)'!J986 -> 0 | F170: =0+'ZADANIOWY (2)'!K986 -> 0 | G170: =0+'ZADANIOWY (2)'!L986 -> 0 | H170: =0+'ZADANIOWY (2)'!M986 -> 0 | I170: =0+'ZADANIOWY (2)'!N986 -> 0 | J170: =0+'ZADANIOWY (2)'!O986 -> 0 | K170: 0 | L170: 0
C171: 6290 | D171: Środki na dofinansowanie własnych inwestycji gmin, powiatów (związków gmin, związków powiatowo-gminnych, związków powiatów), samorządów województw, pozyskane z innych źródeł | E171: 0 | F171: 0 | G171: =0+'ZADANIOWY (2)'!L1731 -> 0 | H171: =0+'ZADANIOWY (2)'!M1731 -> 0 | I171: =0+'ZADANIOWY (2)'!N1731 -> 0 | J171: =0+'ZADANIOWY (2)'!O1731 -> 0 | K171: 0 | L171: 0
C172: 6680 | D172: Wpłata środków finansowych z niewykorzystanych w terminie wydatków, które nie wygasają z upływem roku budżetowego | E172: =0+'ZADANIOWY (2)'!J1608 -> 0 | F172: =0+'ZADANIOWY (2)'!K1608 -> 0 | G172: =0+'ZADANIOWY (2)'!L1608 -> 0 | H172: =0+'ZADANIOWY (2)'!M1608 -> 0 | I172: =0+'ZADANIOWY (2)'!N1608 -> 0 | J172: =0+'ZADANIOWY (2)'!O1608 -> 0 | K172: 0 | L172: 0
B173: 70007 | D173: Gospodarowanie mieszkaniowym zasobem gminy | E173: =SUM(E174:E182) -> 136640000 | F173: =SUM(F174:F182) -> 0 | G173: 485000 | H173: 485000 | I173: 0 | J173: 0 | K173: 136640000 | L173: 0 | M173: Tak | N173: Tak
C174: 0630 | D174: Wpływy z tytułu opłat i kosztów sądowych oraz innych opłat uiszczanych na rzecz Skarbu Państwa z tytułu postępowania sądowego i prokuratorskiego | E174: =0+'ZADANIOWY (2)'!J381+'ZADANIOWY (2)'!J382 -> 0 | F174: =0+'ZADANIOWY (2)'!K381+'ZADANIOWY (2)'!K382 -> 0 | G174: =0+'ZADANIOWY (2)'!L381+'ZADANIOWY (2)'!L382 -> 0 | H174: =0+'ZADANIOWY (2)'!M381+'ZADANIOWY (2)'!M382 -> 485000 | I174: =0+'ZADANIOWY (2)'!N381+'ZADANIOWY (2)'!N382 -> 0 | J174: =0+'ZADANIOWY (2)'!O381+'ZADANIOWY (2)'!O382 -> 0 | K174: =E174-G174+H174 -> 485000 | L174: =F174-I174+J174 -> 0 | M174: =IF(SUM(E174:L174)>0,"Tak","") -> Tak | N174: =IF(SUM(G174:J174)>0,"Tak","") -> Tak
C175: 0640 | D175: Wpływy z tytułu kosztów egzekucyjnych, opłaty komorniczej i kosztów upomnień | E175: =0+'ZADANIOWY (2)'!J389+'ZADANIOWY (2)'!J390 -> 50000 | F175: =0+'ZADANIOWY (2)'!K389+'ZADANIOWY (2)'!K390 -> 0 | G175: =0+'ZADANIOWY (2)'!L389+'ZADANIOWY (2)'!L390 -> 0 | H175: =0+'ZADANIOWY (2)'!M389+'ZADANIOWY (2)'!M390 -> 0 | I175: =0+'ZADANIOWY (2)'!N389+'ZADANIOWY (2)'!N390 -> 0 | J175: =0+'ZADANIOWY (2)'!O389+'ZADANIOWY (2)'!O390 -> 0 | K175: 50000 | L175: 0 | M175: Tak
C176: 0750 | D176: Wpływy z najmu i dzierżawy składników majątkowych Skarbu Państwa, jednostek samorządu terytorialnego lub innych jednostek zaliczanych do sektora finansów publicznych oraz innych umów o podobnym charakterze | E176: =0+'ZADANIOWY (2)'!J95+'ZADANIOWY (2)'!J218 -> 60000000 | F176: =0+'ZADANIOWY (2)'!K95+'ZADANIOWY (2)'!K218 -> 0 | G176: =0+'ZADANIOWY (2)'!L95+'ZADANIOWY (2)'!L218 -> 0 | H176: =0+'ZADANIOWY (2)'!M95+'ZADANIOWY (2)'!M218 -> 0 | I176: =0+'ZADANIOWY (2)'!N95+'ZADANIOWY (2)'!N218 -> 0 | J176: =0+'ZADANIOWY (2)'!O95+'ZADANIOWY (2)'!O218 -> 0 | K176: =E176-G176+H176 -> 60000000 | L176: 0 | M176: Tak
C177: 0770 | D177: Wpłaty z tytułu odpłatnego nabycia prawa własności oraz prawa użytkowania wieczystego nieruchomości | K177: 0 | L177: 0
C178: 0920 | D178: Wpływy z pozostałych odsetek | E178: =0+'ZADANIOWY (2)'!J607 -> 1000000 | F178: =0+'ZADANIOWY (2)'!K607 -> 0 | G178: =0+'ZADANIOWY (2)'!L607 -> 0 | H178: =0+'ZADANIOWY (2)'!M607 -> 0 | I178: =0+'ZADANIOWY (2)'!N607 -> 0 | J178: =0+'ZADANIOWY (2)'!O607 -> 0 | K178: 1000000 | L178: 0 | M178: Tak
C179: 0970 | D179: Wpływy z różnych dochodów | E179: =0+'ZADANIOWY (2)'!J734+'ZADANIOWY (2)'!J735 -> 3050000 | F179: =0+'ZADANIOWY (2)'!K734+'ZADANIOWY (2)'!K735 -> 0 | G179: =0+'ZADANIOWY (2)'!L734+'ZADANIOWY (2)'!L735 -> 485000 | H179: =0+'ZADANIOWY (2)'!M734+'ZADANIOWY (2)'!M735 -> 0 | I179: =0+'ZADANIOWY (2)'!N734+'ZADANIOWY (2)'!N735 -> 0 | J179: =0+'ZADANIOWY (2)'!O734+'ZADANIOWY (2)'!O735 -> 0 | K179: 2565000 | L179: 0 | M179: Tak | N179: Tak
C180: 0940 | D180: Wpływy z rozliczeń/zwrotów z lat ubiegłych | E180: =0+'ZADANIOWY (2)'!J683+'ZADANIOWY (2)'!J825 -> 20000 | F180: =0+'ZADANIOWY (2)'!K683+'ZADANIOWY (2)'!K825 -> 0 | G180: =0+'ZADANIOWY (2)'!L683+'ZADANIOWY (2)'!L825 -> 0 | H180: =0+'ZADANIOWY (2)'!M683+'ZADANIOWY (2)'!M825 -> 0 | I180: =0+'ZADANIOWY (2)'!N683+'ZADANIOWY (2)'!N825 -> 0 | J180: =0+'ZADANIOWY (2)'!O683+'ZADANIOWY (2)'!O825 -> 0 | K180: 20000 | L180: 0 | M180: Tak
C181: 0950 | D181: Wpływy z tytułu kar i odszkodowań wynikających z umów | E181: =0+'ZADANIOWY (2)'!J326 -> 20000 | F181: =0+'ZADANIOWY (2)'!K326 -> 0 | G181: =0+'ZADANIOWY (2)'!L326 -> 0 | H181: =0+'ZADANIOWY (2)'!M326 -> 0 | I181: =0+'ZADANIOWY (2)'!N326 -> 0 | J181: =0+'ZADANIOWY (2)'!O326 -> 0 | K181: 20000 | L181: 0 | M181: =IF(SUM(E181:L181)>0,"Tak","") -> Tak
C182: 0830 | D182: Wpływy z usług | E182: =0+'ZADANIOWY (2)'!J466 -> 72500000 | F182: =0+'ZADANIOWY (2)'!K466 -> 0 | G182: =0+'ZADANIOWY (2)'!L466 -> 0 | H182: =0+'ZADANIOWY (2)'!M466 -> 0 | I182: =0+'ZADANIOWY (2)'!N466 -> 0 | J182: =0+'ZADANIOWY (2)'!O466 -> 0 | K182: 72500000 | L182: 0 | M182: Tak
B183: 70095 | D183: Pozostała działalność | E183: =SUM(E184:E185) -> 0 | F183: 0 | G183: 0 | H183: 0 | I183: 0 | J183: 0 | K183: 0 | L183: 0
C184: 0960 | D184: Wpływy z otrzymanych spadków, zapisów i darowizn w postaci pieniężnej | E184: =0+'ZADANIOWY (2)'!J667 -> 0 | F184: =0+'ZADANIOWY (2)'!K667 -> 0 | G184: =0+'ZADANIOWY (2)'!L667 -> 0 | H184: =0+'ZADANIOWY (2)'!M667 -> 0 | I184: =0+'ZADANIOWY (2)'!N667 -> 0 | J184: =0+'ZADANIOWY (2)'!O667 -> 0 | K184: 0 | L184: 0
C185: 0970 | D185: Wpływy z różnych dochodów | E185: =0+'ZADANIOWY (2)'!J736 -> 0 | F185: =0+'ZADANIOWY (2)'!K736 -> 0 | G185: =0+'ZADANIOWY (2)'!L736 -> 0 | H185: =0+'ZADANIOWY (2)'!M736 -> 0 | I185: =0+'ZADANIOWY (2)'!N736 -> 0 | J185: =0+'ZADANIOWY (2)'!O736 -> 0 | K185: 0 | L185: 0
A186: 710 | D186: Działalność usługowa | E186: =SUM(E187,E194,E196,E198,E204,E210,E215,E219,E221,E226) -> 0 | F186: 0 | G186: 0 | H186: 0 | I186: 0 | J186: 0 | K186: 0 | L186: 0
B187: 71002 | D187: Jednostki organizacji i nadzoru inwestycyjnego | E187: =SUM(E188:E193) -> 0 | F187: 0 | G187: 0 | H187: 0 | I187: 0 | J187: 0 | K187: 0 | L187: 0
C188: 0570 | D188: Wpływy z tytułu grzywien, mandatów i innych kar pieniężnych od osób fizycznych | E188: =0+'ZADANIOWY (2)'!J295 -> 0 | F188: =0+'ZADANIOWY (2)'!K295 -> 0 | G188: =0+'ZADANIOWY (2)'!L295 -> 0 | H188: =0+'ZADANIOWY (2)'!M295 -> 0 | I188: =0+'ZADANIOWY (2)'!N295 -> 0 | J188: =0+'ZADANIOWY (2)'!O295 -> 0 | K188: 0 | L188: 0
C189: 0640 | D189: Wpływy z tytułu kosztów egzekucyjnych, opłaty komorniczej i kosztów upomnień | E189: =0+'ZADANIOWY (2)'!J391 -> 0 | F189: =0+'ZADANIOWY (2)'!K391 -> 0 | G189: =0+'ZADANIOWY (2)'!L391 -> 0 | H189: =0+'ZADANIOWY (2)'!M391 -> 0 | I189: =0+'ZADANIOWY (2)'!N391 -> 0 | J189: =0+'ZADANIOWY (2)'!O391 -> 0 | K189: 0 | L189: 0
C190: 0830 | D190: Wpływy z usług | E190: =0+'ZADANIOWY (2)'!J502 -> 0 | F190: =0+'ZADANIOWY (2)'!K502 -> 0 | G190: =0+'ZADANIOWY (2)'!L502 -> 0 | H190: =0+'ZADANIOWY (2)'!M502 -> 0 | I190: =0+'ZADANIOWY (2)'!N502 -> 0 | J190: =0+'ZADANIOWY (2)'!O502 -> 0 | K190: 0 | L190: 0
C191: 0920 | D191: Wpływy z pozostałych odsetek | E191: =0+'ZADANIOWY (2)'!J608 -> 0 | F191: =0+'ZADANIOWY (2)'!K608 -> 0 | G191: =0+'ZADANIOWY (2)'!L608 -> 0 | H191: =0+'ZADANIOWY (2)'!M608 -> 0 | I191: =0+'ZADANIOWY (2)'!N608 -> 0 | J191: =0+'ZADANIOWY (2)'!O608 -> 0 | K191: 0 | L191: 0
C192: 0950 | D192: Wpływy z tytułu kar i odszkodowań wynikających z umów | E192: =0+'ZADANIOWY (2)'!J327 -> 0 | F192: =0+'ZADANIOWY (2)'!K327 -> 0 | G192: =0+'ZADANIOWY (2)'!L327 -> 0 | H192: =0+'ZADANIOWY (2)'!M327 -> 0 | I192: =0+'ZADANIOWY (2)'!N327 -> 0 | J192: =0+'ZADANIOWY (2)'!O327 -> 0 | K192: 0 | L192: 0
C193: 0970 | D193: Wpływy z różnych dochodów | E193: =0+'ZADANIOWY (2)'!J737 -> 0 | F193: =0+'ZADANIOWY (2)'!K737 -> 0 | G193: =0+'ZADANIOWY (2)'!L737 -> 0 | H193: =0+'ZADANIOWY (2)'!M737 -> 0 | I193: =0+'ZADANIOWY (2)'!N737 -> 0 | J193: =0+'ZADANIOWY (2)'!O737 -> 0 | K193: 0 | L193: 0
B194: 71004 | D194: Plany zagospodarowania przestrzennego | E194: =SUM(E195) -> 0 | F194: 0 | G194: 0 | H194: 0 | I194: 0 | J194: 0 | K194: 0 | L194: 0
C195: 0580 | D195: Wpływy z tytułu grzywien i innych kar pieniężnych od osób prawnych i innych jednostek organizacyjnych | E195: =0 -> 0 | F195: =0 -> 0 | G195: =0 -> 0 | H195: =0 -> 0 | I195: =0 -> 0 | J195: =0 -> 0 | K195: 0 | L195: 0
B196: 71005 | D196: Gospodarka gruntami i nieruchomościami | E196: =SUM(E197) -> 0 | F196: 0 | G196: 0 | H196: 0 | I196: 0 | J196: 0 | K196: 0 | L196: 0
C197: 6410 | D197: Dotacje celowe otrzymane z budżetu państwa na inwestycje i zakupy inwestycyjne z zakresu administracji rządowej oraz inne zadania zlecone ustawami realizowane przez powiat | E197: =0+'ZADANIOWY (2)'!J1638 -> 0 | F197: =0+'ZADANIOWY (2)'!K1638 -> 0 | G197: =0+'ZADANIOWY (2)'!L1638 -> 0 | H197: =0+'ZADANIOWY (2)'!M1638 -> 0 | I197: =0+'ZADANIOWY (2)'!N1638 -> 0 | J197: =0+'ZADANIOWY (2)'!O1638 -> 0 | K197: 0 | L197: 0
B198: 71012 | D198: Ośrodki dokumentacji geodezyjnej i kartograficznej | E198: =SUM(E199:E203) -> 0 | F198: 0 | G198: 0 | H198: 0 | I198: 0 | J198: 0 | K198: 0 | L198: 0
C199: 0570 | D199: Wpływy z tytułu grzywien, mandatów i innych kar pieniężnych od osób fizycznych | E199: =0+'ZADANIOWY (2)'!J286 -> 0 | F199: =0+'ZADANIOWY (2)'!K286 -> 0 | G199: =0+'ZADANIOWY (2)'!L286 -> 0 | H199: =0+'ZADANIOWY (2)'!M286 -> 0 | I199: =0+'ZADANIOWY (2)'!N286 -> 0 | J199: =0+'ZADANIOWY (2)'!O286 -> 0 | K199: 0 | L199: 0
C200: 0580 | D200: Wpływy z tytułu grzywien i innych kar pieniężnych od osób prawnych i innych jednostek organizacyjnych | E200: =0+'ZADANIOWY (2)'!J288 -> 0 | F200: =0+'ZADANIOWY (2)'!K288 -> 0 | G200: =0+'ZADANIOWY (2)'!L288 -> 0 | H200: =0+'ZADANIOWY (2)'!M288 -> 0 | I200: =0+'ZADANIOWY (2)'!N288 -> 0 | J200: =0+'ZADANIOWY (2)'!O288 -> 0 | K200: 0 | L200: 0
C201: 0690 | D201: Wpływy z różnych opłat | E201: =0+'ZADANIOWY (2)'!J347 -> 0 | F201: =0+'ZADANIOWY (2)'!K347 -> 0 | G201: =0+'ZADANIOWY (2)'!L347 -> 0 | H201: =0+'ZADANIOWY (2)'!M347 -> 0 | I201: =0+'ZADANIOWY (2)'!N347 -> 0 | J201: =0+'ZADANIOWY (2)'!O347 -> 0 | K201: 0 | L201: 0
... 1134 more rows

Sheet ZADANIOWY
A1: PLAN WYDATKÓW w UKŁADZIE ZADANIOWYM | Q1: Załącznik Nr 6 do Uchwały Nr 58/12/2025 Rady Dzielnicy Śródmieście m.st. Warszawy z dnia 18.02.2025 r. | V1: =IF(COUNTA(V2:V15010)=0,"",COUNTA(V2:V15010)) -> 
A2: D.09.000 | F2: =IF(OR(T3<>"",U3<>""),"Istnieją błędy","") ->  | J2: =J10649 -> 1174240078 | K2: 294249343 | L2: 0 | M2: 864688 | N2: 0 | O2: 122281 | P2: 1175104766 | Q2: 294371624
A3: PROGRAM | B3: OPIS | C3: S/P/Z/PZ | D3: Header | E3: DZIAŁ | F3: ROZDZIAŁ | G3: § | H3: NAZWA PARAGRAFU | I3: OBSZAR FUNKCJONALNY | J3: PLAN | K3: w tym Urząd m.st. Warszawy | L3: PLAN Zmiana[-] | M3: PLAN Zmiana[+] | N3: w tym Urząd Zmiana[-] | O3: w tym Urząd Zmiana[+] | P3: PLAN PO ZMIANIE | Q3: w tym Urząd PO ZMIANIE | R3: WYPEŁNIONE POZYCJE | S3: WYPEŁNIONE ZMIANY | T3: =IF(COUNTIF(T4:T10648,"błędny urząd")<>0,"ŹLE","") ->  | U3: =IF(COUNTIF(U4:U10648,"ujemny plan")<>0,"ŹLE","") -> 
A4: I | B4: TRANSPORT I KOMUNIKACJA | C4: I sfera | D4: T | J4: =SUM(J204,J5) -> 24098403 | K4: 0 | L4: 0 | M4: 0 | N4: 0 | O4: 0 | P4: 24098403 | Q4: 0 | R4: =IF(SUM(J4:Q4)>0,"Tak","") -> Tak | S4: =IF(SUM(L4:O4)>0,"Tak","") ->  | T4: =IF(OR(J4<K4,P4<Q4,L4<N4,M4<O4),"błędny urząd","") ->  | U4: =IF(OR(J4<0,K4<0,P4<0,Q4<0),"ujemny plan","") -> 
A5: I/1 | B5: Komunikacja zbiorowa | C5: 1 program | D5: T | J5: =SUM(J193,J182,J38,J6) -> 0 | K5: 0 | L5: 0 | M5: 0 | N5: 0 | O5: 0 | P5: 0 | Q5: 0
A6: B/I/1/1 | B6: Zakup usług komunikacji miejskiej | C6: 1 zadanie | D6: T | J6: =SUM(J34,J30,J26,J19,J11,J7) -> 0 | K6: 0 | L6: 0 | M6: 0 | N6: 0 | O6: 0 | P6: 0 | Q6: 0
A7: B/I/1/1/1 | B7: Metro Warszawskie | C7: 1 podzadanie | D7: T | E7: 600 | F7: 60004 | J7: =SUM(J8) -> 0 | K7: 0 | L7: 0 | M7: 0 | N7: 0 | O7: 0 | P7: 0 | Q7: 0
A8: B/I/1/1/1 | B8: Metro Warszawskie | C8: 1 podzadanie | D8: NIE | E8: 600 | F8: 60004 | J8: =SUM(J9:J10) -> 0 | K8: 0 | L8: 0 | M8: 0 | N8: 0 | O8: 0 | P8: 0 | Q8: 0
A9: B/I/1/1/1 | B9: Metro Warszawskie | C9: 1 podzadanie | D9: NIE | E9: 600 | F9: 60004 | G9: 4300 | H9: Zakup usług pozostałych | I9: GMMW | P9: =J9+M9-L9 -> 0 | Q9: =K9+O9-N9 -> 0 | R9: =IF(SUM(J9:Q9)>0,"Tak","") ->  | S9: =IF(SUM(L9:O9)>0,"Tak","") ->  | T9: =IF(OR(J9<K9,P9<Q9,L9<N9,M9<O9),"błędny urząd","") ->  | U9: =IF(OR(J9<0,K9<0,P9<0,Q9<0),"ujemny plan","") -> 
A10: B/I/1/1/1 | B10: Metro Warszawskie | C10: 1 podzadanie | D10: NIE | E10: 600 | F10: 60004 | G10: 4530 | H10: Podatek od towarów i usług (VAT) | I10: GMMW | P10: =J10+M10-L10 -> 0 | Q10: =K10+O10-N10 -> 0 | R10: =IF(SUM(J10:Q10)>0,"Tak","") ->  | S10: =IF(SUM(L10:O10)>0,"Tak","") ->  | T10: =IF(OR(J10<K10,P10<Q10,L10<N10,M10<O10),"błędny urząd","") ->  | U10: =IF(OR(J10<0,K10<0,P10<0,Q10<0),"ujemny plan","") -> 
A11: B/I/1/1/2 | B11: Miejskie Zakłady Autobusowe | C11: 2 podzadanie | D11: T | E11: 600 | F11: 60004 | J11: =SUM(J12) -> 0 | K11: 0 | L11: 0 | M11: 0 | N11: 0 | O11: 0 | P11: 0 | Q11: 0
A12: B/I/1/1/2 | B12: Miejskie Zakłady Autobusowe | C12: 2 podzadanie | D12: NIE | E12: 600 | F12: 60004 | J12: =SUM(J13:J18) -> 0 | K12: 0 | L12: 0 | M12: 0 | N12: 0 | O12: 0 | P12: 0 | Q12: 0
A13: B/I/1/1/2 | B13: Miejskie Zakłady Autobusowe | C13: 2 podzadanie | D13: NIE | E13: 600 | F13: 60004 | G13: 4300 | H13: Zakup usług pozostałych | I13: GUUW | P13: 0 | Q13: 0
A14: B/I/1/1/2 | B14: Miejskie Zakłady Autobusowe | C14: 2 podzadanie | D14: NIE | E14: 600 | F14: 60004 | G14: 4300 | H14: Zakup usług pozostałych | I14: GMMW | P14: 0 | Q14: 0
A15: B/I/1/1/2 | B15: Miejskie Zakłady Autobusowe | C15: 2 podzadanie | D15: NIE | E15: 600 | F15: 60004 | G15: 4300 | H15: Zakup usług pozostałych | I15: GPGM | P15: 0 | Q15: 0
A16: B/I/1/1/2 | B16: Miejskie Zakłady Autobusowe | C16: 2 podzadanie | D16: NIE | E16: 600 | F16: 60004 | G16: 4370 | H16: Zakup usług związanych z pomocą obywatelom Ukrainy | I16: GUUW | P16: 0 | Q16: 0
A17: B/I/1/1/2 | B17: Miejskie Zakłady Autobusowe | C17: 2 podzadanie | D17: NIE | E17: 600 | F17: 60004 | G17: 4530 | H17: Podatek od towarów i usług (VAT) | I17: GUUW | P17: 0 | Q17: 0
A18: B/I/1/1/2 | B18: Miejskie Zakłady Autobusowe | C18: 2 podzadanie | D18: NIE | E18: 600 | F18: 60004 | G18: 4530 | H18: Podatek od towarów i usług (VAT) | I18: GMMW | P18: 0 | Q18: 0
A19: B/I/1/1/3 | B19: Pozostali przewoźnicy autobusowi | C19: 3 podzadanie | D19: T | E19: 600 | F19: 60004 | J19: =SUM(J20) -> 0 | K19: 0 | L19: 0 | M19: 0 | N19: 0 | O19: 0 | P19: 0 | Q19: 0
A20: B/I/1/1/3 | B20: Pozostali przewoźnicy autobusowi | C20: 3 podzadanie | D20: NIE | E20: 600 | F20: 60004 | J20: =SUM(J21:J25) -> 0 | K20: 0 | L20: 0 | M20: 0 | N20: 0 | O20: 0 | P20: 0 | Q20: 0
A21: B/I/1/1/3 | B21: Pozostali przewoźnicy autobusowi | C21: 3 podzadanie | D21: NIE | E21: 600 | F21: 60004 | G21: 4300 | H21: Zakup usług pozostałych | I21: GUUW | P21: 0 | Q21: 0
A22: B/I/1/1/3 | B22: Pozostali przewoźnicy autobusowi | C22: 3 podzadanie | D22: NIE | E22: 600 | F22: 60004 | G22: 4300 | H22: Zakup usług pozostałych | I22: GMMW | P22: 0 | Q22: 0
A23: B/I/1/1/3 | B23: Pozostali przewoźnicy autobusowi | C23: 3 podzadanie | D23: NIE | E23: 600 | F23: 60004 | G23: 4370 | H23: Zakup usług związanych z pomocą obywatelom Ukrainy | I23: GUUW | P23: 0 | Q23: 0
A24: B/I/1/1/3 | B24: Pozostali przewoźnicy autobusowi | C24: 3 podzadanie | D24: NIE | E24: 600 | F24: 60004 | G24: 4530 | H24: Podatek od towarów i usług (VAT) | I24: GUUW | P24: 0 | Q24: 0
A25: B/I/1/1/3 | B25: Pozostali przewoźnicy autobusowi | C25: 3 podzadanie | D25: NIE | E25: 600 | F25: 60004 | G25: 4530 | H25: Podatek od towarów i usług (VAT) | I25: GMMW | P25: 0 | Q25: 0
A26: B/I/1/1/4 | B26: Szybka Kolej Miejska | C26: 4 podzadanie | D26: T | E26: 600 | F26: 60004 | J26: =SUM(J27) -> 0 | K26: 0 | L26: 0 | M26: 0 | N26: 0 | O26: 0 | P26: 0 | Q26: 0
A27: B/I/1/1/4 | B27: Szybka Kolej Miejska | C27: 4 podzadanie | D27: NIE | E27: 600 | F27: 60004 | J27: =SUM(J28:J29) -> 0 | K27: 0 | L27: 0 | M27: 0 | N27: 0 | O27: 0 | P27: 0 | Q27: 0
A28: B/I/1/1/4 | B28: Szybka Kolej Miejska | C28: 4 podzadanie | D28: NIE | E28: 600 | F28: 60004 | G28: 4300 | H28: Zakup usług pozostałych | I28: GMMW | P28: 0 | Q28: 0
A29: B/I/1/1/4 | B29: Szybka Kolej Miejska | C29: 4 podzadanie | D29: NIE | E29: 600 | F29: 60004 | G29: 4530 | H29: Podatek od towarów i usług (VAT) | I29: GMMW | P29: 0 | Q29: 0
A30: B/I/1/1/5 | B30: Tramwaje Warszawskie | C30: 5 podzadanie | D30: T | E30: 600 | F30: 60004 | J30: =SUM(J31) -> 0 | K30: 0 | L30: 0 | M30: 0 | N30: 0 | O30: 0 | P30: 0 | Q30: 0
A31: B/I/1/1/5 | B31: Tramwaje Warszawskie | C31: 5 podzadanie | D31: NIE | E31: 600 | F31: 60004 | J31: =SUM(J32:J33) -> 0 | K31: 0 | L31: 0 | M31: 0 | N31: 0 | O31: 0 | P31: 0 | Q31: 0
A32: B/I/1/1/5 | B32: Tramwaje Warszawskie | C32: 5 podzadanie | D32: NIE | E32: 600 | F32: 60004 | G32: 4300 | H32: Zakup usług pozostałych | I32: GMMW | P32: 0 | Q32: 0
A33: B/I/1/1/5 | B33: Tramwaje Warszawskie | C33: 5 podzadanie | D33: NIE | E33: 600 | F33: 60004 | G33: 4530 | H33: Podatek od towarów i usług (VAT) | I33: GMMW | P33: 0 | Q33: 0
A34: B/I/1/1/6 | B34: Pozostali przewoźnicy kolejowi | C34: 6 podzadanie | D34: T | E34: 600 | F34: 60004 | J34: =SUM(J35) -> 0 | K34: 0 | L34: 0 | M34: 0 | N34: 0 | O34: 0 | P34: 0 | Q34: 0
A35: B/I/1/1/6 | B35: Pozostali przewoźnicy kolejowi | C35: 6 podzadanie | D35: NIE | E35: 600 | F35: 60004 | J35: =SUM(J36:J37) -> 0 | K35: 0 | L35: 0 | M35: 0 | N35: 0 | O35: 0 | P35: 0 | Q35: 0
A36: B/I/1/1/6 | B36: Pozostali przewoźnicy kolejowi | C36: 6 podzadanie | D36: NIE | E36: 600 | F36: 60004 | G36: 4300 | H36: Zakup usług pozostałych | I36: GMMW | P36: 0 | Q36: 0
A37: B/I/1/1/6 | B37: Pozostali przewoźnicy kolejowi | C37: 6 podzadanie | D37: NIE | E37: 600 | F37: 60004 | G37: 4530 | H37: Podatek od towarów i usług (VAT) | I37: GMMW | P37: 0 | Q37: 0
A38: B/I/1/2 | B38: Zarządzanie komunikacją miejską | C38: 2 zadanie | D38: T | J38: =SUM(J135,J125,J39) -> 0 | K38: 0 | L38: 0 | M38: 0 | N38: 0 | O38: 0 | P38: 0 | Q38: 0
A39: B/I/1/2/1 | B39: Utrzymanie Zarządu Transportu Miejskiego, w tym obsługa inwestycji | C39: 1 podzadanie | D39: T | E39: 600 | F39: 60004 | J39: =SUM(J121,J40) -> 0 | K39: 0 | L39: 0 | M39: 0 | N39: 0 | O39: 0 | P39: 0 | Q39: 0
A40: B/I/1/2/1 | B40: Utrzymanie Zarządu Transportu Miejskiego, w tym obsługa inwestycji | C40: 1 podzadanie | D40: NIE | E40: 600 | F40: 60004 | J40: =SUM(J41:J86,J90:J112,J116:J120) -> 0 | K40: 0 | L40: 0 | M40: 0 | N40: 0 | O40: 0 | P40: 0 | Q40: 0
A41: B/I/1/2/1 | B41: Utrzymanie Zarządu Transportu Miejskiego, w tym obsługa inwestycji | C41: 1 podzadanie | D41: NIE | E41: 600 | F41: 60004 | G41: 3020 | H41: Wydatki osobowe niezaliczone do wynagrodzeń | I41: GMMW | P41: 0 | Q41: 0
A42: B/I/1/2/1 | B42: Utrzymanie Zarządu Transportu Miejskiego, w tym obsługa inwestycji | C42: 1 podzadanie | D42: NIE | E42: 600 | F42: 60004 | G42: 4010 | H42: Wynagrodzenia osobowe pracowników | I42: GMMW | P42: 0 | Q42: 0
A43: B/I/1/2/1 | B43: Utrzymanie Zarządu Transportu Miejskiego, w tym obsługa inwestycji | C43: 1 podzadanie | D43: NIE | E43: 600 | F43: 60004 | G43: 4017 | H43: Wynagrodzenia osobowe pracowników | I43: SFUE/23/6 | P43: 0 | Q43: 0
A44: B/I/1/2/1 | B44: Utrzymanie Zarządu Transportu Miejskiego, w tym obsługa inwestycji | C44: 1 podzadanie | D44: NIE | E44: 600 | F44: 60004 | G44: 4018 | H44: Wynagrodzenia osobowe pracowników | I44: SFUE/8/59 | P44: 0 | Q44: 0
A45: B/I/1/2/1 | B45: Utrzymanie Zarządu Transportu Miejskiego, w tym obsługa inwestycji | C45: 1 podzadanie | D45: NIE | E45: 600 | F45: 60004 | G45: 4018 | H45: Wynagrodzenia osobowe pracowników | I45: SFUE/8/60 | P45: 0 | Q45: 0
A46: B/I/1/2/1 | B46: Utrzymanie Zarządu Transportu Miejskiego, w tym obsługa inwestycji | C46: 1 podzadanie | D46: NIE | E46: 600 | F46: 60004 | G46: 4018 | H46: Wynagrodzenia osobowe pracowników | I46: SFUE/8/61 | P46: 0 | Q46: 0
A47: B/I/1/2/1 | B47: Utrzymanie Zarządu Transportu Miejskiego, w tym obsługa inwestycji | C47: 1 podzadanie | D47: NIE | E47: 600 | F47: 60004 | G47: 4019 | H47: Wynagrodzenia osobowe pracowników | I47: SFUE/23/6 | P47: 0 | Q47: 0
A48: B/I/1/2/1 | B48: Utrzymanie Zarządu Transportu Miejskiego, w tym obsługa inwestycji | C48: 1 podzadanie | D48: NIE | E48: 600 | F48: 60004 | G48: 4019 | H48: Wynagrodzenia osobowe pracowników | I48: SFUE/8/60 | P48: 0 | Q48: 0
A49: B/I/1/2/1 | B49: Utrzymanie Zarządu Transportu Miejskiego, w tym obsługa inwestycji | C49: 1 podzadanie | D49: NIE | E49: 600 | F49: 60004 | G49: 4019 | H49: Wynagrodzenia osobowe pracowników | I49: SFUE/8/61 | P49: 0 | Q49: 0
A50: B/I/1/2/1 | B50: Utrzymanie Zarządu Transportu Miejskiego, w tym obsługa inwestycji | C50: 1 podzadanie | D50: NIE | E50: 600 | F50: 60004 | G50: 4040 | H50: Dodatkowe wynagrodzenie roczne | I50: GMMW | P50: 0 | Q50: 0
A51: B/I/1/2/1 | B51: Utrzymanie Zarządu Transportu Miejskiego, w tym obsługa inwestycji | C51: 1 podzadanie | D51: NIE | E51: 600 | F51: 60004 | G51: 4047 | H51: Dodatkowe wynagrodzenie roczne | I51: SFUE/23/6 | P51: 0 | Q51: 0
A52: B/I/1/2/1 | B52: Utrzymanie Zarządu Transportu Miejskiego, w tym obsługa inwestycji | C52: 1 podzadanie | D52: NIE | E52: 600 | F52: 60004 | G52: 4048 | H52: Dodatkowe wynagrodzenie roczne | I52: SFUE/8/59 | P52: 0 | Q52: 0
A53: B/I/1/2/1 | B53: Utrzymanie Zarządu Transportu Miejskiego, w tym obsługa inwestycji | C53: 1 podzadanie | D53: NIE | E53: 600 | F53: 60004 | G53: 4049 | H53: Dodatkowe wynagrodzenie roczne | I53: SFUE/23/6 | P53: 0 | Q53: 0
A54: B/I/1/2/1 | B54: Utrzymanie Zarządu Transportu Miejskiego, w tym obsługa inwestycji | C54: 1 podzadanie | D54: NIE | E54: 600 | F54: 60004 | G54: 4110 | H54: Składki na ubezpieczenia społeczne | I54: GMMW | P54: 0 | Q54: 0
A55: B/I/1/2/1 | B55: Utrzymanie Zarządu Transportu Miejskiego, w tym obsługa inwestycji | C55: 1 podzadanie | D55: NIE | E55: 600 | F55: 60004 | G55: 4117 | H55: Składki na ubezpieczenia społeczne | I55: SFUE/23/6 | P55: 0 | Q55: 0
A56: B/I/1/2/1 | B56: Utrzymanie Zarządu Transportu Miejskiego, w tym obsługa inwestycji | C56: 1 podzadanie | D56: NIE | E56: 600 | F56: 60004 | G56: 4118 | H56: Składki na ubezpieczenia społeczne | I56: SFUE/8/59 | P56: 0 | Q56: 0
A57: B/I/1/2/1 | B57: Utrzymanie Zarządu Transportu Miejskiego, w tym obsługa inwestycji | C57: 1 podzadanie | D57: NIE | E57: 600 | F57: 60004 | G57: 4118 | H57: Składki na ubezpieczenia społeczne | I57: SFUE/8/60 | P57: 0 | Q57: 0
A58: B/I/1/2/1 | B58: Utrzymanie Zarządu Transportu Miejskiego, w tym obsługa inwestycji | C58: 1 podzadanie | D58: NIE | E58: 600 | F58: 60004 | G58: 4118 | H58: Składki na ubezpieczenia społeczne | I58: SFUE/8/61 | P58: 0 | Q58: 0
A59: B/I/1/2/1 | B59: Utrzymanie Zarządu Transportu Miejskiego, w tym obsługa inwestycji | C59: 1 podzadanie | D59: NIE | E59: 600 | F59: 60004 | G59: 4119 | H59: Składki na ubezpieczenia społeczne | I59: SFUE/23/6 | P59: 0 | Q59: 0
A60: B/I/1/2/1 | B60: Utrzymanie Zarządu Transportu Miejskiego, w tym obsługa inwestycji | C60: 1 podzadanie | D60: NIE | E60: 600 | F60: 60004 | G60: 4119 | H60: Składki na ubezpieczenia społeczne | I60: SFUE/8/60 | P60: 0 | Q60: 0
A61: B/I/1/2/1 | B61: Utrzymanie Zarządu Transportu Miejskiego, w tym obsługa inwestycji | C61: 1 podzadanie | D61: NIE | E61: 600 | F61: 60004 | G61: 4119 | H61: Składki na ubezpieczenia społeczne | I61: SFUE/8/61 | P61: 0 | Q61: 0
A62: B/I/1/2/1 | B62: Utrzymanie Zarządu Transportu Miejskiego, w tym obsługa inwestycji | C62: 1 podzadanie | D62: NIE | E62: 600 | F62: 60004 | G62: 4120 | H62: Składki na Fundusz Pracy oraz Fundusz Solidarnościowy | I62: GMMW | P62: 0 | Q62: 0
A63: B/I/1/2/1 | B63: Utrzymanie Zarządu Transportu Miejskiego, w tym obsługa inwestycji | C63: 1 podzadanie | D63: NIE | E63: 600 | F63: 60004 | G63: 4127 | H63: Składki na Fundusz Pracy oraz Fundusz Solidarnościowy | I63: SFUE/23/6 | P63: 0 | Q63: 0
A64: B/I/1/2/1 | B64: Utrzymanie Zarządu Transportu Miejskiego, w tym obsługa inwestycji | C64: 1 podzadanie | D64: NIE | E64: 600 | F64: 60004 | G64: 4128 | H64: Składki na Fundusz Pracy oraz Fundusz Solidarnościowy | I64: SFUE/8/59 | P64: 0 | Q64: 0
A65: B/I/1/2/1 | B65: Utrzymanie Zarządu Transportu Miejskiego, w tym obsługa inwestycji | C65: 1 podzadanie | D65: NIE | E65: 600 | F65: 60004 | G65: 4128 | H65: Składki na Fundusz Pracy oraz Fundusz Solidarnościowy | I65: SFUE/8/60 | P65: 0 | Q65: 0
A66: B/I/1/2/1 | B66: Utrzymanie Zarządu Transportu Miejskiego, w tym obsługa inwestycji | C66: 1 podzadanie | D66: NIE | E66: 600 | F66: 60004 | G66: 4128 | H66: Składki na Fundusz Pracy oraz Fundusz Solidarnościowy | I66: SFUE/8/61 | P66: 0 | Q66: 0
A67: B/I/1/2/1 | B67: Utrzymanie Zarządu Transportu Miejskiego, w tym obsługa inwestycji | C67: 1 podzadanie | D67: NIE | E67: 600 | F67: 60004 | G67: 4129 | H67: Składki na Fundusz Pracy oraz Fundusz Solidarnościowy | I67: SFUE/23/6 | P67: 0 | Q67: 0
A68: B/I/1/2/1 | B68: Utrzymanie Zarządu Transportu Miejskiego, w tym obsługa inwestycji | C68: 1 podzadanie | D68: NIE | E68: 600 | F68: 60004 | G68: 4129 | H68: Składki na Fundusz Pracy oraz Fundusz Solidarnościowy | I68: SFUE/8/60 | P68: 0 | Q68: 0
A69: B/I/1/2/1 | B69: Utrzymanie Zarządu Transportu Miejskiego, w tym obsługa inwestycji | C69: 1 podzadanie | D69: NIE | E69: 600 | F69: 60004 | G69: 4129 | H69: Składki na Fundusz Pracy oraz Fundusz Solidarnościowy | I69: SFUE/8/61 | P69: 0 | Q69: 0
A70: B/I/1/2/1 | B70: Utrzymanie Zarządu Transportu Miejskiego, w tym obsługa inwestycji | C70: 1 podzadanie | D70: NIE | E70: 600 | F70: 60004 | G70: 4140 | H70: Wpłaty na Państwowy Fundusz Rehabilitacji Osób Niepełnosprawnych | I70: GMMW | P70: 0 | Q70: 0
A71: B/I/1/2/1 | B71: Utrzymanie Zarządu Transportu Miejskiego, w tym obsługa inwestycji | C71: 1 podzadanie | D71: NIE | E71: 600 | F71: 60004 | G71: 4170 | H71: Wynagrodzenia bezosobowe | I71: GMMW | P71: 0 | Q71: 0
A72: B/I/1/2/1 | B72: Utrzymanie Zarządu Transportu Miejskiego, w tym obsługa inwestycji | C72: 1 podzadanie | D72: NIE | E72: 600 | F72: 60004 | G72: 4190 | H72: Nagrody konkursowe | I72: GMMW | P72: 0 | Q72: 0
A73: B/I/1/2/1 | B73: Utrzymanie Zarządu Transportu Miejskiego, w tym obsługa inwestycji | C73: 1 podzadanie | D73: NIE | E73: 600 | F73: 60004 | G73: 4210 | H73: Zakup materiałów i wyposażenia | I73: GMMW/C | P73: 0 | Q73: 0
A74: B/I/1/2/1 | B74: Utrzymanie Zarządu Transportu Miejskiego, w tym obsługa inwestycji | C74: 1 podzadanie | D74: NIE | E74: 600 | F74: 60004 | G74: 4210 | H74: Zakup materiałów i wyposażenia | I74: GMMW | P74: =J74+M74-L74 -> 0 | Q74: =K74+O74-N74 -> 0 | R74: =IF(SUM(J74:Q74)>0,"Tak","") ->  | S74: =IF(SUM(L74:O74)>0,"Tak","") ->  | T74: =IF(OR(J74<K74,P74<Q74,L74<N74,M74<O74),"błędny urząd","") ->  | U74: =IF(OR(J74<0,K74<0,P74<0,Q74<0),"ujemny plan","") -> 
A75: B/I/1/2/1 | B75: Utrzymanie Zarządu Transportu Miejskiego, w tym obsługa inwestycji | C75: 1 podzadanie | D75: NIE | E75: 600 | F75: 60004 | G75: 4260 | H75: Zakup energii | I75: GMMW | P75: 0 | Q75: 0
A76: B/I/1/2/1 | B76: Utrzymanie Zarządu Transportu Miejskiego, w tym obsługa inwestycji | C76: 1 podzadanie | D76: NIE | E76: 600 | F76: 60004 | G76: 4270 | H76: Zakup usług remontowych | I76: GMMW | P76: 0 | Q76: 0
A77: B/I/1/2/1 | B77: Utrzymanie Zarządu Transportu Miejskiego, w tym obsługa inwestycji | C77: 1 podzadanie | D77: NIE | E77: 600 | F77: 60004 | G77: 4280 | H77: Zakup usług zdrowotnych | I77: GMMW/C | P77: 0 | Q77: 0
A78: B/I/1/2/1 | B78: Utrzymanie Zarządu Transportu Miejskiego, w tym obsługa inwestycji | C78: 1 podzadanie | D78: NIE | E78: 600 | F78: 60004 | G78: 4280 | H78: Zakup usług zdrowotnych | I78: GMMW | P78: 0 | Q78: 0
A79: B/I/1/2/1 | B79: Utrzymanie Zarządu Transportu Miejskiego, w tym obsługa inwestycji | C79: 1 podzadanie | D79: NIE | E79: 600 | F79: 60004 | G79: 4300 | H79: Zakup usług pozostałych | I79: GMMW | P79: 0 | Q79: 0
A80: B/I/1/2/1 | B80: Utrzymanie Zarządu Transportu Miejskiego, w tym obsługa inwestycji | C80: 1 podzadanie | D80: NIE | E80: 600 | F80: 60004 | G80: 4307 | H80: Zakup usług pozostałych | I80: SFUE/29/1 | P80: 0 | Q80: 0
A81: B/I/1/2/1 | B81: Utrzymanie Zarządu Transportu Miejskiego, w tym obsługa inwestycji | C81: 1 podzadanie | D81: NIE | E81: 600 | F81: 60004 | G81: 4309 | H81: Zakup usług pozostałych | I81: SFUE/29/1 | P81: 0 | Q81: 0
A82: B/I/1/2/1 | B82: Utrzymanie Zarządu Transportu Miejskiego, w tym obsługa inwestycji | C82: 1 podzadanie | D82: NIE | E82: 600 | F82: 60004 | G82: 4360 | H82: Opłaty z tytułu zakupu usług telekomunikacyjnych | I82: GMMW | P82: 0 | Q82: 0
A83: B/I/1/2/1 | B83: Utrzymanie Zarządu Transportu Miejskiego, w tym obsługa inwestycji | C83: 1 podzadanie | D83: NIE | E83: 600 | F83: 60004 | G83: 4380 | H83: Zakup usług obejmujących tłumaczenia | I83: GMMW | P83: 0 | Q83: 0
A84: B/I/1/2/1 | B84: Utrzymanie Zarządu Transportu Miejskiego, w tym obsługa inwestycji | C84: 1 podzadanie | D84: NIE | E84: 600 | F84: 60004 | G84: 4390 | H84: Zakup usług obejmujących wykonanie ekspertyz, analiz i opinii | I84: GMMW | P84: 0 | Q84: 0
A85: B/I/1/2/1 | B85: Utrzymanie Zarządu Transportu Miejskiego, w tym obsługa inwestycji | C85: 1 podzadanie | D85: NIE | E85: 600 | F85: 60004 | G85: 4397 | H85: Zakup usług obejmujących wykonanie ekspertyz, analiz i opinii | I85: SFUE/29/1 | P85: 0 | Q85: 0
A86: B/I/1/2/1 | B86: Utrzymanie Zarządu Transportu Miejskiego, w tym obsługa inwestycji | C86: 1 podzadanie | D86: NIE | E86: 600 | F86: 60004 | G86: 4399 | H86: Zakup usług obejmujących wykonanie ekspertyz, analiz i opinii | J86: =SUM(J87:J89) -> 0 | K86: 0 | L86: 0 | M86: 0 | N86: 0 | O86: 0 | P86: 0 | Q86: 0
A87: B/I/1/2/1 | B87: Utrzymanie Zarządu Transportu Miejskiego, w tym obsługa inwestycji | C87: 1 podzadanie | D87: NIE | E87: 600 | F87: 60004 | G87: 4399 | H87: +000 | I87: SFUE/29/1 | P87: 0 | Q87: 0
A88: B/I/1/2/1 | B88: Utrzymanie Zarządu Transportu Miejskiego, w tym obsługa inwestycji | C88: 1 podzadanie | D88: NIE | E88: 600 | F88: 60004 | G88: 4399 | H88: +001 | I88: SFUE/29/1 | P88: 0 | Q88: 0
A89: B/I/1/2/1 | B89: Utrzymanie Zarządu Transportu Miejskiego, w tym obsługa inwestycji | C89: 1 podzadanie | D89: NIE | E89: 600 | F89: 60004 | G89: 4399 | H89: +002 | I89: SFUE/29/1 | P89: 0 | Q89: 0
A90: B/I/1/2/1 | B90: Utrzymanie Zarządu Transportu Miejskiego, w tym obsługa inwestycji | C90: 1 podzadanie | D90: NIE | E90: 600 | F90: 60004 | G90: 4400 | H90: Opłaty za administrowanie i czynsze za budynki, lokale i pomieszczenia garażowe | I90: GMMW | P90: 0 | Q90: 0
A91: B/I/1/2/1 | B91: Utrzymanie Zarządu Transportu Miejskiego, w tym obsługa inwestycji | C91: 1 podzadanie | D91: NIE | E91: 600 | F91: 60004 | G91: 4410 | H91: Podróże służbowe krajowe | I91: GMMW | P91: 0 | Q91: 0
A92: B/I/1/2/1 | B92: Utrzymanie Zarządu Transportu Miejskiego, w tym obsługa inwestycji | C92: 1 podzadanie | D92: NIE | E92: 600 | F92: 60004 | G92: 4420 | H92: Podróże służbowe zagraniczne | I92: GMMW | P92: 0 | Q92: 0
A93: B/I/1/2/1 | B93: Utrzymanie Zarządu Transportu Miejskiego, w tym obsługa inwestycji | C93: 1 podzadanie | D93: NIE | E93: 600 | F93: 60004 | G93: 4428 | H93: Podróże służbowe zagraniczne | I93: SFUE/8/59 | P93: 0 | Q93: 0
A94: B/I/1/2/1 | B94: Utrzymanie Zarządu Transportu Miejskiego, w tym obsługa inwestycji | C94: 1 podzadanie | D94: NIE | E94: 600 | F94: 60004 | G94: 4428 | H94: Podróże służbowe zagraniczne | I94: SFUE/8/60 | P94: 0 | Q94: 0
A95: B/I/1/2/1 | B95: Utrzymanie Zarządu Transportu Miejskiego, w tym obsługa inwestycji | C95: 1 podzadanie | D95: NIE | E95: 600 | F95: 60004 | G95: 4428 | H95: Podróże służbowe zagraniczne | I95: SFUE/8/61 | P95: 0 | Q95: 0
A96: B/I/1/2/1 | B96: Utrzymanie Zarządu Transportu Miejskiego, w tym obsługa inwestycji | C96: 1 podzadanie | D96: NIE | E96: 600 | F96: 60004 | G96: 4429 | H96: Podróże służbowe zagraniczne | I96: SFUE/8/60 | P96: 0 | Q96: 0
A97: B/I/1/2/1 | B97: Utrzymanie Zarządu Transportu Miejskiego, w tym obsługa inwestycji | C97: 1 podzadanie | D97: NIE | E97: 600 | F97: 60004 | G97: 4429 | H97: Podróże służbowe zagraniczne | I97: SFUE/8/61 | P97: 0 | Q97: 0
A98: B/I/1/2/1 | B98: Utrzymanie Zarządu Transportu Miejskiego, w tym obsługa inwestycji | C98: 1 podzadanie | D98: NIE | E98: 600 | F98: 60004 | G98: 4430 | H98: Różne opłaty i składki | I98: GMMW | P98: 0 | Q98: 0
A99: B/I/1/2/1 | B99: Utrzymanie Zarządu Transportu Miejskiego, w tym obsługa inwestycji | C99: 1 podzadanie | D99: NIE | E99: 600 | F99: 60004 | G99: 4440 | H99: Odpisy na zakładowy fundusz świadczeń socjalnych | I99: GMMW | P99: 0 | Q99: 0
A100: B/I/1/2/1 | B100: Utrzymanie Zarządu Transportu Miejskiego, w tym obsługa inwestycji | C100: 1 podzadanie | D100: NIE | E100: 600 | F100: 60004 | G100: 4480 | H100: Podatek od nieruchomości | I100: GMMW | P100: 0 | Q100: 0
A101: B/I/1/2/1 | B101: Utrzymanie Zarządu Transportu Miejskiego, w tym obsługa inwestycji | C101: 1 podzadanie | D101: NIE | E101: 600 | F101: 60004 | G101: 4510 | H101: Opłaty na rzecz budżetu państwa | I101: GMMW | P101: 0 | Q101: 0
A102: B/I/1/2/1 | B102: Utrzymanie Zarządu Transportu Miejskiego, w tym obsługa inwestycji | C102: 1 podzadanie | D102: NIE | E102: 600 | F102: 60004 | G102: 4530 | H102: Podatek od towarów i usług (VAT) | I102: GMMW/C | P102: 0 | Q102: 0
A103: B/I/1/2/1 | B103: Utrzymanie Zarządu Transportu Miejskiego, w tym obsługa inwestycji | C103: 1 podzadanie | D103: NIE | E103: 600 | F103: 60004 | G103: 4530 | H103: Podatek od towarów i usług (VAT) | I103: GMMW | P103: 0 | Q103: 0
A104: B/I/1/2/1 | B104: Utrzymanie Zarządu Transportu Miejskiego, w tym obsługa inwestycji | C104: 1 podzadanie | D104: NIE | E104: 600 | F104: 60004 | G104: 4530 | H104: Podatek od towarów i usług (VAT) | I104: SFUE/29/1 | P104: 0 | Q104: 0
A105: B/I/1/2/1 | B105: Utrzymanie Zarządu Transportu Miejskiego, w tym obsługa inwestycji | C105: 1 podzadanie | D105: NIE | E105: 600 | F105: 60004 | G105: 4540 | H105: Składki do organizacji międzynarodowych | I105: GMMW | P105: 0 | Q105: 0
A106: B/I/1/2/1 | B106: Utrzymanie Zarządu Transportu Miejskiego, w tym obsługa inwestycji | C106: 1 podzadanie | D106: NIE | E106: 600 | F106: 60004 | G106: 4590 | H106: Kary i odszkodowania wypłacane na rzecz osób fizycznych | I106: GMMW | P106: 0 | Q106: 0
A107: B/I/1/2/1 | B107: Utrzymanie Zarządu Transportu Miejskiego, w tym obsługa inwestycji | C107: 1 podzadanie | D107: NIE | E107: 600 | F107: 60004 | G107: 4600 | H107: Kary, odszkodowania i grzywny wypłacane na rzecz osób prawnych i innych jednostek organizacyjnych | I107: GMMW | P107: 0 | Q107: 0
A108: B/I/1/2/1 | B108: Utrzymanie Zarządu Transportu Miejskiego, w tym obsługa inwestycji | C108: 1 podzadanie | D108: NIE | E108: 600 | F108: 60004 | G108: 4610 | H108: Koszty postępowania sądowego i prokuratorskiego | I108: GMMW | P108: 0 | Q108: 0
A109: B/I/1/2/1 | B109: Utrzymanie Zarządu Transportu Miejskiego, w tym obsługa inwestycji | C109: 1 podzadanie | D109: NIE | E109: 600 | F109: 60004 | G109: 4700 | H109: Szkolenia pracowników niebędących członkami korpusu służby cywilnej | I109: GMMW/C | P109: 0 | Q109: 0
A110: B/I/1/2/1 | B110: Utrzymanie Zarządu Transportu Miejskiego, w tym obsługa inwestycji | C110: 1 podzadanie | D110: NIE | E110: 600 | F110: 60004 | G110: 4700 | H110: Szkolenia pracowników niebędących członkami korpusu służby cywilnej | I110: GMMW | P110: 0 | Q110: 0
A111: B/I/1/2/1 | B111: Utrzymanie Zarządu Transportu Miejskiego, w tym obsługa inwestycji | C111: 1 podzadanie | D111: NIE | E111: 600 | F111: 60004 | G111: 4707 | H111: Szkolenia pracowników niebędących członkami korpusu służby cywilnej | I111: SFUE/29/1 | P111: 0 | Q111: 0
A112: B/I/1/2/1 | B112: Utrzymanie Zarządu Transportu Miejskiego, w tym obsługa inwestycji | C112: 1 podzadanie | D112: NIE | E112: 600 | F112: 60004 | G112: 4709 | H112: Szkolenia pracowników niebędących członkami korpusu służby cywilnej | J112: =SUM(J113:J115) -> 0 | K112: 0 | L112: 0 | M112: 0 | N112: 0 | O112: 0 | P112: 0 | Q112: 0
A113: B/I/1/2/1 | B113: Utrzymanie Zarządu Transportu Miejskiego, w tym obsługa inwestycji | C113: 1 podzadanie | D113: NIE | E113: 600 | F113: 60004 | G113: 4709 | H113: +000 | I113: SFUE/29/1 | P113: 0 | Q113: 0
A114: B/I/1/2/1 | B114: Utrzymanie Zarządu Transportu Miejskiego, w tym obsługa inwestycji | C114: 1 podzadanie | D114: NIE | E114: 600 | F114: 60004 | G114: 4709 | H114: +001 | I114: SFUE/29/1 | P114: 0 | Q114: 0
A115: B/I/1/2/1 | B115: Utrzymanie Zarządu Transportu Miejskiego, w tym obsługa inwestycji | C115: 1 podzadanie | D115: NIE | E115: 600 | F115: 60004 | G115: 4709 | H115: +002 | I115: SFUE/29/1 | P115: 0 | Q115: 0
A116: B/I/1/2/1 | B116: Utrzymanie Zarządu Transportu Miejskiego, w tym obsługa inwestycji | C116: 1 podzadanie | D116: NIE | E116: 600 | F116: 60004 | G116: 4710 | H116: Wpłaty na PPK finansowane przez podmiot zatrudniający | I116: GMMW | P116: 0 | Q116: 0
A117: B/I/1/2/1 | B117: Utrzymanie Zarządu Transportu Miejskiego, w tym obsługa inwestycji | C117: 1 podzadanie | D117: NIE | E117: 600 | F117: 60004 | G117: 4718 | H117: Wpłaty na PPK finansowane przez podmiot zatrudniający | I117: SFUE/8/59 | P117: 0 | Q117: 0
A118: B/I/1/2/1 | B118: Utrzymanie Zarządu Transportu Miejskiego, w tym obsługa inwestycji | C118: 1 podzadanie | D118: NIE | E118: 600 | F118: 60004 | G118: 4718 | H118: Wpłaty na PPK finansowane przez podmiot zatrudniający | I118: SFUE/8/61 | P118: 0 | Q118: 0
A119: B/I/1/2/1 | B119: Utrzymanie Zarządu Transportu Miejskiego, w tym obsługa inwestycji | C119: 1 podzadanie | D119: NIE | E119: 600 | F119: 60004 | G119: 4719 | H119: Wpłaty na PPK finansowane przez podmiot zatrudniający | I119: SFUE/8/61 | P119: 0 | Q119: 0
A120: B/I/1/2/1 | B120: Utrzymanie Zarządu Transportu Miejskiego, w tym obsługa inwestycji | C120: 1 podzadanie | D120: NIE | E120: 600 | F120: 60004 | G120: 4950 | H120: Różnice kursowe | I120: GMMW | P120: 0 | Q120: 0
A121: B/I/1/2/1 | B121: Utrzymanie Zarządu Transportu Miejskiego, w tym obsługa inwestycji | C121: 1 podzadanie | D121: NIE | E121: 754 | F121: 75416 | J121: =SUM(J122:J124) -> 0 | K121: 0 | L121: 0 | M121: 0 | N121: 0 | O121: 0 | P121: 0 | Q121: 0
A122: B/I/1/2/1 | B122: Utrzymanie Zarządu Transportu Miejskiego, w tym obsługa inwestycji | C122: 1 podzadanie | D122: NIE | E122: 754 | F122: 75416 | G122: 4260 | H122: Zakup energii | I122: GMMW | P122: 0 | Q122: 0
A123: B/I/1/2/1 | B123: Utrzymanie Zarządu Transportu Miejskiego, w tym obsługa inwestycji | C123: 1 podzadanie | D123: NIE | E123: 754 | F123: 75416 | G123: 4300 | H123: Zakup usług pozostałych | I123: GMMW | P123: 0 | Q123: 0
A124: B/I/1/2/1 | B124: Utrzymanie Zarządu Transportu Miejskiego, w tym obsługa inwestycji | C124: 1 podzadanie | D124: NIE | E124: 754 | F124: 75416 | G124: 4400 | H124: Opłaty za administrowanie i czynsze za budynki, lokale i pomieszczenia garażowe | I124: GMMW | P124: 0 | Q124: 0
A125: B/I/1/2/2 | B125: Utrzymanie i obsługa systemu biletowego | C125: 2 podzadanie | D125: T | E125: 600 | F125: 60004 | J125: =SUM(J126) -> 0 | K125: 0 | L125: 0 | M125: 0 | N125: 0 | O125: 0 | P125: 0 | Q125: 0
A126: B/I/1/2/2 | B126: Utrzymanie i obsługa systemu biletowego | C126: 2 podzadanie | D126: NIE | E126: 600 | F126: 60004 | J126: =SUM(J127:J134) -> 0 | K126: 0 | L126: 0 | M126: 0 | N126: 0 | O126: 0 | P126: 0 | Q126: 0
A127: B/I/1/2/2 | B127: Utrzymanie i obsługa systemu biletowego | C127: 2 podzadanie | D127: NIE | E127: 600 | F127: 60004 | G127: 4190 | H127: Nagrody konkursowe | I127: GMMW | P127: 0 | Q127: 0
A128: B/I/1/2/2 | B128: Utrzymanie i obsługa systemu biletowego | C128: 2 podzadanie | D128: NIE | E128: 600 | F128: 60004 | G128: 4210 | H128: Zakup materiałów i wyposażenia | I128: GMMW | P128: 0 | Q128: 0
A129: B/I/1/2/2 | B129: Utrzymanie i obsługa systemu biletowego | C129: 2 podzadanie | D129: NIE | E129: 600 | F129: 60004 | G129: 4260 | H129: Zakup energii | I129: GMMW | P129: 0 | Q129: 0
A130: B/I/1/2/2 | B130: Utrzymanie i obsługa systemu biletowego | C130: 2 podzadanie | D130: NIE | E130: 600 | F130: 60004 | G130: 4270 | H130: Zakup usług remontowych | I130: GMMW | P130: 0 | Q130: 0
A131: B/I/1/2/2 | B131: Utrzymanie i obsługa systemu biletowego | C131: 2 podzadanie | D131: NIE | E131: 600 | F131: 60004 | G131: 4300 | H131: Zakup usług pozostałych | I131: GMMW | P131: 0 | Q131: 0
A132: B/I/1/2/2 | B132: Utrzymanie i obsługa systemu biletowego | C132: 2 podzadanie | D132: NIE | E132: 600 | F132: 60004 | G132: 4400 | H132: Opłaty za administrowanie i czynsze za budynki, lokale i pomieszczenia garażowe | I132: GMMW | P132: 0 | Q132: 0
A133: B/I/1/2/2 | B133: Utrzymanie i obsługa systemu biletowego | C133: 2 podzadanie | D133: NIE | E133: 600 | F133: 60004 | G133: 4530 | H133: Podatek od towarów i usług (VAT) | I133: GMMW | P133: 0 | Q133: 0
A134: B/I/1/2/2 | B134: Utrzymanie i obsługa systemu biletowego | C134: 2 podzadanie | D134: NIE | E134: 600 | F134: 60004 | G134: 4610 | H134: Koszty postępowania sądowego i prokuratorskiego | I134: GMMW | P134: 0 | Q134: 0
A135: B/I/1/2/3 | B135: Organizacja komunikacji, marketing, nadzór i kontrola ruchu | C135: 3 podzadanie | D135: T | J135: =SUM(J177,J172,J136) -> 0 | K135: 0 | L135: 0 | M135: 0 | N135: 0 | O135: 0 | P135: 0 | Q135: 0
A136: B/I/1/2/3 | B136: Organizacja komunikacji, marketing, nadzór i kontrola ruchu | C136: 3 podzadanie | D136: NIE | E136: 600 | F136: 60004 | J136: =SUM(J137:J161,J165:J168) -> 0 | K136: 0 | L136: 0 | M136: 0 | N136: 0 | O136: 0 | P136: 0 | Q136: 0
A137: B/I/1/2/3 | B137: Organizacja komunikacji, marketing, nadzór i kontrola ruchu | C137: 3 podzadanie | D137: NIE | E137: 600 | F137: 60004 | G137: 3020 | H137: Wydatki osobowe niezaliczone do wynagrodzeń | I137: GMMW | P137: 0 | Q137: 0
A138: B/I/1/2/3 | B138: Organizacja komunikacji, marketing, nadzór i kontrola ruchu | C138: 3 podzadanie | D138: NIE | E138: 600 | F138: 60004 | G138: 4210 | H138: Zakup materiałów i wyposażenia | I138: GMMW | P138: =J138+M138-L138 -> 0 | Q138: =K138+O138-N138 -> 0 | R138: =IF(SUM(J138:Q138)>0,"Tak","") ->  | S138: =IF(SUM(L138:O138)>0,"Tak","") ->  | T138: =IF(OR(J138<K138,P138<Q138,L138<N138,M138<O138),"błędny urząd","") ->  | U138: =IF(OR(J138<0,K138<0,P138<0,Q138<0),"ujemny plan","") -> 
A139: B/I/1/2/3 | B139: Organizacja komunikacji, marketing, nadzór i kontrola ruchu | C139: 3 podzadanie | D139: NIE | E139: 600 | F139: 60004 | G139: 4218 | H139: Zakup materiałów i wyposażenia | I139: SFUE/8/59 | P139: 0 | Q139: 0
A140: B/I/1/2/3 | B140: Organizacja komunikacji, marketing, nadzór i kontrola ruchu | C140: 3 podzadanie | D140: NIE | E140: 600 | F140: 60004 | G140: 4218 | H140: Zakup materiałów i wyposażenia | I140: SFUE/8/60 | P140: 0 | Q140: 0
A141: B/I/1/2/3 | B141: Organizacja komunikacji, marketing, nadzór i kontrola ruchu | C141: 3 podzadanie | D141: NIE | E141: 600 | F141: 60004 | G141: 4218 | H141: Zakup materiałów i wyposażenia | I141: SFUE/8/61 | P141: 0 | Q141: 0
A142: B/I/1/2/3 | B142: Organizacja komunikacji, marketing, nadzór i kontrola ruchu | C142: 3 podzadanie | D142: NIE | E142: 600 | F142: 60004 | G142: 4219 | H142: Zakup materiałów i wyposażenia | I142: SFUE/8/61 | P142: 0 | Q142: 0
A143: B/I/1/2/3 | B143: Organizacja komunikacji, marketing, nadzór i kontrola ruchu | C143: 3 podzadanie | D143: NIE | E143: 600 | F143: 60004 | G143: 4270 | H143: Zakup usług remontowych | I143: GMMW | P143: 0 | Q143: 0
A144: B/I/1/2/3 | B144: Organizacja komunikacji, marketing, nadzór i kontrola ruchu | C144: 3 podzadanie | D144: NIE | E144: 600 | F144: 60004 | G144: 4300 | H144: Zakup usług pozostałych | I144: GMMW | P144: 0 | Q144: 0
A145: B/I/1/2/3 | B145: Organizacja komunikacji, marketing, nadzór i kontrola ruchu | C145: 3 podzadanie | D145: NIE | E145: 600 | F145: 60004 | G145: 4307 | H145: Zakup usług pozostałych | I145: SFUE/23/6 | P145: 0 | Q145: 0
A146: B/I/1/2/3 | B146: Organizacja komunikacji, marketing, nadzór i kontrola ruchu | C146: 3 podzadanie | D146: NIE | E146: 600 | F146: 60004 | G146: 4308 | H146: Zakup usług pozostałych | I146: SFUE/8/59 | P146: 0 | Q146: 0
A147: B/I/1/2/3 | B147: Organizacja komunikacji, marketing, nadzór i kontrola ruchu | C147: 3 podzadanie | D147: NIE | E147: 600 | F147: 60004 | G147: 4308 | H147: Zakup usług pozostałych | I147: SFUE/8/60 | P147: 0 | Q147: 0
A148: B/I/1/2/3 | B148: Organizacja komunikacji, marketing, nadzór i kontrola ruchu | C148: 3 podzadanie | D148: NIE | E148: 600 | F148: 60004 | G148: 4308 | H148: Zakup usług pozostałych | I148: SFUE/8/61 | P148: 0 | Q148: 0
A149: B/I/1/2/3 | B149: Organizacja komunikacji, marketing, nadzór i kontrola ruchu | C149: 3 podzadanie | D149: NIE | E149: 600 | F149: 60004 | G149: 4309 | H149: Zakup usług pozostałych | I149: SFUE/23/6 | P149: 0 | Q149: 0
A150: B/I/1/2/3 | B150: Organizacja komunikacji, marketing, nadzór i kontrola ruchu | C150: 3 podzadanie | D150: NIE | E150: 600 | F150: 60004 | G150: 4309 | H150: Zakup usług pozostałych | I150: SFUE/8/61 | P150: 0 | Q150: 0
A151: B/I/1/2/3 | B151: Organizacja komunikacji, marketing, nadzór i kontrola ruchu | C151: 3 podzadanie | D151: NIE | E151: 600 | F151: 60004 | G151: 4388 | H151: Zakup usług obejmujących tłumaczenia | I151: SFUE/8/59 | P151: 0 | Q151: 0
A152: B/I/1/2/3 | B152: Organizacja komunikacji, marketing, nadzór i kontrola ruchu | C152: 3 podzadanie | D152: NIE | E152: 600 | F152: 60004 | G152: 4388 | H152: Zakup usług obejmujących tłumaczenia | I152: SFUE/8/60 | P152: 0 | Q152: 0
A153: B/I/1/2/3 | B153: Organizacja komunikacji, marketing, nadzór i kontrola ruchu | C153: 3 podzadanie | D153: NIE | E153: 600 | F153: 60004 | G153: 4388 | H153: Zakup usług obejmujących tłumaczenia | I153: SFUE/8/61 | P153: 0 | Q153: 0
A154: B/I/1/2/3 | B154: Organizacja komunikacji, marketing, nadzór i kontrola ruchu | C154: 3 podzadanie | D154: NIE | E154: 600 | F154: 60004 | G154: 4389 | H154: Zakup usług obejmujących tłumaczenia | I154: SFUE/8/61 | P154: 0 | Q154: 0
A155: B/I/1/2/3 | B155: Organizacja komunikacji, marketing, nadzór i kontrola ruchu | C155: 3 podzadanie | D155: NIE | E155: 600 | F155: 60004 | G155: 4390 | H155: Zakup usług obejmujących wykonanie ekspertyz, analiz i opinii | I155: GMMW | P155: 0 | Q155: 0
A156: B/I/1/2/3 | B156: Organizacja komunikacji, marketing, nadzór i kontrola ruchu | C156: 3 podzadanie | D156: NIE | E156: 600 | F156: 60004 | G156: 4398 | H156: Zakup usług obejmujących wykonanie ekspertyz, analiz i opinii | I156: SFUE/19/6 | P156: 0 | Q156: 0
A157: B/I/1/2/3 | B157: Organizacja komunikacji, marketing, nadzór i kontrola ruchu | C157: 3 podzadanie | D157: NIE | E157: 600 | F157: 60004 | G157: 4398 | H157: Zakup usług obejmujących wykonanie ekspertyz, analiz i opinii | I157: SFUE/8/59 | P157: 0 | Q157: 0
A158: B/I/1/2/3 | B158: Organizacja komunikacji, marketing, nadzór i kontrola ruchu | C158: 3 podzadanie | D158: NIE | E158: 600 | F158: 60004 | G158: 4398 | H158: Zakup usług obejmujących wykonanie ekspertyz, analiz i opinii | I158: SFUE/8/60 | P158: 0 | Q158: 0
A159: B/I/1/2/3 | B159: Organizacja komunikacji, marketing, nadzór i kontrola ruchu | C159: 3 podzadanie | D159: NIE | E159: 600 | F159: 60004 | G159: 4398 | H159: Zakup usług obejmujących wykonanie ekspertyz, analiz i opinii | I159: SFUE/8/61 | P159: 0 | Q159: 0
A160: B/I/1/2/3 | B160: Organizacja komunikacji, marketing, nadzór i kontrola ruchu | C160: 3 podzadanie | D160: NIE | E160: 600 | F160: 60004 | G160: 4399 | H160: Zakup usług obejmujących wykonanie ekspertyz, analiz i opinii | I160: SFUE/8/61 | P160: 0 | Q160: 0
A161: B/I/1/2/3 | B161: Organizacja komunikacji, marketing, nadzór i kontrola ruchu | C161: 3 podzadanie | D161: NIE | E161: 600 | F161: 60004 | G161: 4399 | H161: Zakup usług obejmujących wykonanie ekspertyz, analiz i opinii | J161: =SUM(J162:J164) -> 0 | K161: 0 | L161: 0 | M161: 0 | N161: 0 | O161: 0 | P161: 0 | Q161: 0
A162: B/I/1/2/3 | B162: Organizacja komunikacji, marketing, nadzór i kontrola ruchu | C162: 3 podzadanie | D162: NIE | E162: 600 | F162: 60004 | G162: 4399 | H162: +000 | I162: SFUE/19/6 | P162: 0 | Q162: 0
A163: B/I/1/2/3 | B163: Organizacja komunikacji, marketing, nadzór i kontrola ruchu | C163: 3 podzadanie | D163: NIE | E163: 600 | F163: 60004 | G163: 4399 | H163: +001 | I163: SFUE/19/6 | P163: 0 | Q163: 0
A164: B/I/1/2/3 | B164: Organizacja komunikacji, marketing, nadzór i kontrola ruchu | C164: 3 podzadanie | D164: NIE | E164: 600 | F164: 60004 | G164: 4399 | H164: +002 | I164: SFUE/19/6 | P164: 0 | Q164: 0
A165: B/I/1/2/3 | B165: Organizacja komunikacji, marketing, nadzór i kontrola ruchu | C165: 3 podzadanie | D165: NIE | E165: 600 | F165: 60004 | G165: 4530 | H165: Podatek od towarów i usług (VAT) | I165: GMMW | P165: 0 | Q165: 0
A166: B/I/1/2/3 | B166: Organizacja komunikacji, marketing, nadzór i kontrola ruchu | C166: 3 podzadanie | D166: NIE | E166: 600 | F166: 60004 | G166: 4530 | H166: Podatek od towarów i usług (VAT) | I166: SFUE/23/6 | P166: 0 | Q166: 0
A167: B/I/1/2/3 | B167: Organizacja komunikacji, marketing, nadzór i kontrola ruchu | C167: 3 podzadanie | D167: NIE | E167: 600 | F167: 60004 | G167: 4538 | H167: Podatek od towarów i usług (VAT) | I167: SFUE/19/6 | P167: 0 | Q167: 0
A168: B/I/1/2/3 | B168: Organizacja komunikacji, marketing, nadzór i kontrola ruchu | C168: 3 podzadanie | D168: NIE | E168: 600 | F168: 60004 | G168: 4539 | H168: Podatek od towarów i usług (VAT) | J168: =SUM(J169:J171) -> 0 | K168: 0 | L168: 0 | M168: 0 | N168: 0 | O168: 0 | P168: 0 | Q168: 0
A169: B/I/1/2/3 | B169: Organizacja komunikacji, marketing, nadzór i kontrola ruchu | C169: 3 podzadanie | D169: NIE | E169: 600 | F169: 60004 | G169: 4539 | H169: +000 | I169: SFUE/19/6 | P169: 0 | Q169: 0
A170: B/I/1/2/3 | B170: Organizacja komunikacji, marketing, nadzór i kontrola ruchu | C170: 3 podzadanie | D170: NIE | E170: 600 | F170: 60004 | G170: 4539 | H170: +001 | I170: SFUE/19/6 | P170: 0 | Q170: 0
A171: B/I/1/2/3 | B171: Organizacja komunikacji, marketing, nadzór i kontrola ruchu | C171: 3 podzadanie | D171: NIE | E171: 600 | F171: 60004 | G171: 4539 | H171: +002 | I171: SFUE/19/6 | P171: 0 | Q171: 0
A172: B/I/1/2/3 | B172: Organizacja komunikacji, marketing, nadzór i kontrola ruchu | C172: 3 podzadanie | D172: NIE | E172: 600 | F172: 60022 | J172: =SUM(J173:J176) -> 0 | K172: 0 | L172: 0 | M172: 0 | N172: 0 | O172: 0 | P172: 0 | Q172: 0
A173: B/I/1/2/3 | B173: Organizacja komunikacji, marketing, nadzór i kontrola ruchu | C173: 3 podzadanie | D173: NIE | E173: 600 | F173: 60022 | G173: 4210 | H173: Zakup materiałów i wyposażenia | I173: GMMW | P173: 0 | Q173: 0
A174: B/I/1/2/3 | B174: Organizacja komunikacji, marketing, nadzór i kontrola ruchu | C174: 3 podzadanie | D174: NIE | E174: 600 | F174: 60022 | G174: 4270 | H174: Zakup usług remontowych | I174: GMMW | P174: 0 | Q174: 0
A175: B/I/1/2/3 | B175: Organizacja komunikacji, marketing, nadzór i kontrola ruchu | C175: 3 podzadanie | D175: NIE | E175: 600 | F175: 60022 | G175: 4300 | H175: Zakup usług pozostałych | I175: GMMW | P175: 0 | Q175: 0
A176: B/I/1/2/3 | B176: Organizacja komunikacji, marketing, nadzór i kontrola ruchu | C176: 3 podzadanie | D176: NIE | E176: 600 | F176: 60022 | G176: 4430 | H176: Różne opłaty i składki | I176: GMMW | P176: 0 | Q176: 0
A177: B/I/1/2/3 | B177: Organizacja komunikacji, marketing, nadzór i kontrola ruchu | C177: 3 podzadanie | D177: NIE | E177: 600 | F177: 60095 | J177: =SUM(J178:J181) -> 0 | K177: 0 | L177: 0 | M177: 0 | N177: 0 | O177: 0 | P177: 0 | Q177: 0
A178: B/I/1/2/3 | B178: Organizacja komunikacji, marketing, nadzór i kontrola ruchu | C178: 3 podzadanie | D178: NIE | E178: 600 | F178: 60095 | G178: 4210 | H178: Zakup materiałów i wyposażenia | I178: BO/25/01/0038 | P178: 0 | Q178: 0
A179: B/I/1/2/3 | B179: Organizacja komunikacji, marketing, nadzór i kontrola ruchu | C179: 3 podzadanie | D179: NIE | E179: 600 | F179: 60095 | G179: 4210 | H179: Zakup materiałów i wyposażenia | I179: GMMW | P179: 0 | Q179: 0
A180: B/I/1/2/3 | B180: Organizacja komunikacji, marketing, nadzór i kontrola ruchu | C180: 3 podzadanie | D180: NIE | E180: 600 | F180: 60095 | G180: 4270 | H180: Zakup usług remontowych | I180: GMMW | P180: 0 | Q180: 0
A181: B/I/1/2/3 | B181: Organizacja komunikacji, marketing, nadzór i kontrola ruchu | C181: 3 podzadanie | D181: NIE | E181: 600 | F181: 60095 | G181: 4300 | H181: Zakup usług pozostałych | I181: GMMW | P181: 0 | Q181: 0
A182: B/I/1/3 | B182: Utrzymanie infrastruktury przystankowej | C182: 3 zadanie | D182: T | J182: =SUM(J183) -> 0 | K182: 0 | L182: 0 | M182: 0 | N182: 0 | O182: 0 | P182: 0 | Q182: 0
A183: B/I/1/3 | B183: Utrzymanie infrastruktury przystankowej | C183: 3 zadanie | D183: NIE | E183: 600 | F183: 60020 | J183: =SUM(J184:J192) -> 0 | K183: 0 | L183: 0 | M183: 0 | N183: 0 | O183: 0 | P183: 0 | Q183: 0
A184: B/I/1/3 | B184: Utrzymanie infrastruktury przystankowej | C184: 3 zadanie | D184: NIE | E184: 600 | F184: 60020 | G184: 4210 | H184: Zakup materiałów i wyposażenia | I184: GMMW | P184: 0 | Q184: 0
A185: B/I/1/3 | B185: Utrzymanie infrastruktury przystankowej | C185: 3 zadanie | D185: NIE | E185: 600 | F185: 60020 | G185: 4270 | H185: Zakup usług remontowych | I185: GMMW/C | P185: 0 | Q185: 0
A186: B/I/1/3 | B186: Utrzymanie infrastruktury przystankowej | C186: 3 zadanie | D186: NIE | E186: 600 | F186: 60020 | G186: 4270 | H186: Zakup usług remontowych | I186: GMMW | P186: 0 | Q186: 0
A187: B/I/1/3 | B187: Utrzymanie infrastruktury przystankowej | C187: 3 zadanie | D187: NIE | E187: 600 | F187: 60020 | G187: 4270 | H187: Zakup usług remontowych | I187: GUPP | P187: 0 | Q187: 0
A188: B/I/1/3 | B188: Utrzymanie infrastruktury przystankowej | C188: 3 zadanie | D188: NIE | E188: 600 | F188: 60020 | G188: 4300 | H188: Zakup usług pozostałych | I188: GMMW/C | P188: 0 | Q188: 0
A189: B/I/1/3 | B189: Utrzymanie infrastruktury przystankowej | C189: 3 zadanie | D189: NIE | E189: 600 | F189: 60020 | G189: 4300 | H189: Zakup usług pozostałych | I189: GMMW | P189: 0 | Q189: 0
A190: B/I/1/3 | B190: Utrzymanie infrastruktury przystankowej | C190: 3 zadanie | D190: NIE | E190: 600 | F190: 60020 | G190: 4520 | H190: Opłaty na rzecz budżetów jednostek samorządu terytorialnego | I190: GMMW | P190: 0 | Q190: 0
A191: B/I/1/3 | B191: Utrzymanie infrastruktury przystankowej | C191: 3 zadanie | D191: NIE | E191: 600 | F191: 60020 | G191: 4530 | H191: Podatek od towarów i usług (VAT) | I191: GMMW/C | P191: 0 | Q191: 0
A192: B/I/1/3 | B192: Utrzymanie infrastruktury przystankowej | C192: 3 zadanie | D192: NIE | E192: 600 | F192: 60020 | G192: 4530 | H192: Podatek od towarów i usług (VAT) | I192: GMMW | P192: 0 | Q192: 0
A193: B/I/1/4 | B193: Opracowania i analizy związane z komunikacją miejską | C193: 4 zadanie | D193: T | J193: =SUM(J200,J194) -> 0 | K193: 0 | L193: 0 | M193: 0 | N193: 0 | O193: 0 | P193: 0 | Q193: 0
A194: B/I/1/4 | B194: Opracowania i analizy związane z komunikacją miejską | C194: 4 zadanie | D194: NIE | E194: 600 | F194: 60004 | J194: =SUM(J195:J199) -> 0 | K194: 0 | L194: 0 | M194: 0 | N194: 0 | O194: 0 | P194: 0 | Q194: 0
A195: B/I/1/4 | B195: Opracowania i analizy związane z komunikacją miejską | C195: 4 zadanie | D195: NIE | E195: 600 | F195: 60004 | G195: 2310 | H195: Dotacja celowa przekazana gminie na zadania bieżące realizowane na podstawie porozumień (umów) między jednostkami samorządu terytorialnego | I195: GMMW | P195: 0 | Q195: 0
A196: B/I/1/4 | B196: Opracowania i analizy związane z komunikacją miejską | C196: 4 zadanie | D196: NIE | E196: 600 | F196: 60004 | G196: 4390 | H196: Zakup usług obejmujących wykonanie ekspertyz, analiz i opinii | I196: SFUE/8/57 | P196: 0 | Q196: 0
A197: B/I/1/4 | B197: Opracowania i analizy związane z komunikacją miejską | C197: 4 zadanie | D197: NIE | E197: 600 | F197: 60004 | G197: 4397 | H197: Zakup usług obejmujących wykonanie ekspertyz, analiz i opinii | I197: SFUE/8/57 | P197: 0 | Q197: 0
A198: B/I/1/4 | B198: Opracowania i analizy związane z komunikacją miejską | C198: 4 zadanie | D198: NIE | E198: 600 | F198: 60004 | G198: 4399 | H198: Zakup usług obejmujących wykonanie ekspertyz, analiz i opinii | I198: SFUE/8/57 | P198: 0 | Q198: 0
A199: B/I/1/4 | B199: Opracowania i analizy związane z komunikacją miejską | C199: 4 zadanie | D199: NIE | E199: 600 | F199: 60004 | G199: 4530 | H199: Podatek od towarów i usług (VAT) | I199: SFUE/8/57 | P199: 0 | Q199: 0
A200: B/I/1/4 | B200: Opracowania i analizy związane z komunikacją miejską | C200: 4 zadanie | D200: NIE | E200: 600 | F200: 60095 | J200: =SUM(J201:J203) -> 0 | K200: 0 | L200: 0 | M200: 0 | N200: 0 | O200: 0 | P200: 0 | Q200: 0
... 4300 more rows

Sheet KLASYCZNY
A1: PLAN WYDATKÓW w UKŁADZIE KLASYCZNYM | L1: Załącznik Nr 7 do Uchwały Nr 58/12/2025 Rady Dzielnicy Śródmieście m.st. Warszawy z dnia 18.02.2025 r. | Q1: 9267
D3: =IF(OR(P4<>"",O4<>""),"Istnieją błędy","") ->  | E3: =E9259 -> 1237868271 | F3: 328151198 | G3: 6832600 | H3: 16020171 | I3: 0 | J3: 6962056 | K3: 1247055842 | L3: 335113254
A4: Dział | B4: Rozdział | C4: § | D4: Wyszczególnienie | E4: PLAN | F4: w tym Urząd m.st. Warszawy | G4: PLAN Zmiana[-] | H4: PLAN Zmiana[+] | I4: w tym Urząd Zmiana[-] | J4: w tym Urząd Zmiana[+] | K4: PLAN PO ZMIANIE | L4: w tym Urząd PO ZMIANIE | M4: Pozycja wypełniona | N4: Zmiany wypełnione | O4: =IF(COUNTIF(O5:O164,"błędny urząd")<>0,"ŹLE","") ->  | P4: =IF(COUNTIF(P5:P164,"ujemny plan")<>0,"ŹLE","") -> 
A5: 010 | D5: Rolnictwo i łowiectwo | E5: =SUM(E6,E15) -> 0 | F5: 0 | G5: 0 | H5: 0 | I5: 0 | J5: 0 | K5: 0 | L5: 0 | M5: =IF(SUM(E5:L5)>0,"Tak","") ->  | N5: =IF(SUM(G5:J5)>0,"Tak","") ->  | O5: =IF(OR(E5<F5,K5<L5,G5<I5,H5<J5),"błędny urząd","") ->  | P5: =IF(OR(E5<0,F5<0,K5<0,L5<0),"ujemny plan","") -> 
D6: WYDATKI BIEŻĄCE | E6: =SUM(E7,E10:E14) -> 0 | F6: 0 | G6: 0 | H6: 0 | I6: 0 | J6: 0 | K6: 0 | L6: 0
D7: Wydatki jednostek budżetowych w tym na: | E7: =SUM(E8:E9) -> 0 | F7: 0 | G7: 0 | H7: 0 | I7: 0 | J7: 0 | K7: 0 | L7: 0
D8: wynagrodzenia i składki od nich naliczane | E8: =SUM(E19,E33,E45,E57) -> 0 | F8: 0 | G8: 0 | H8: 0 | I8: 0 | J8: 0 | K8: 0 | L8: 0
D9: wydatki związane z realizacją ich zadań statutowych | E9: 0 | F9: 0 | G9: 0 | H9: 0 | I9: 0 | J9: 0 | K9: 0 | L9: 0
D10: Dotacje na zadania bieżące | E10: 0 | F10: 0 | G10: 0 | H10: 0 | I10: 0 | J10: 0 | K10: 0 | L10: 0
D11: Świadczenia na rzecz osób fizycznych | E11: 0 | F11: 0 | G11: 0 | H11: 0 | I11: 0 | J11: 0 | K11: 0 | L11: 0
D12: Wydatki na programy finansowane z UE | E12: 0 | F12: 0 | G12: 0 | H12: 0 | I12: 0 | J12: 0 | K12: 0 | L12: 0
D13: Obsługa długu | E13: 0 | F13: 0 | G13: 0 | H13: 0 | I13: 0 | J13: 0 | K13: 0 | L13: 0
D14: Poręczenia i gwarancje | E14: 0 | F14: 0 | G14: 0 | H14: 0 | I14: 0 | J14: 0 | K14: 0 | L14: 0
D15: WYDATKI MAJĄTKOWE | E15: 0 | F15: 0 | G15: 0 | H15: 0 | I15: 0 | J15: 0 | K15: 0 | L15: 0
B16: 01005 | D16: Prace geodezyjno - urządzeniowe na potrzeby rolnictwa | E16: =SUM(E17,E26) -> 0 | F16: 0 | G16: 0 | H16: 0 | I16: 0 | J16: 0 | K16: 0 | L16: 0
D17: WYDATKI BIEŻĄCE | E17: =SUM(E18,E21:E25) -> 0 | F17: 0 | G17: 0 | H17: 0 | I17: 0 | J17: 0 | K17: 0 | L17: 0
D18: Wydatki jednostek budżetowych w tym na: | E18: =SUM(E19:E20) -> 0 | F18: 0 | G18: 0 | H18: 0 | I18: 0 | J18: 0 | K18: 0 | L18: 0
D19: wynagrodzenia i składki od nich naliczane
D20: wydatki związane z realizacją ich zadań statutowych | E20: =SUM(E27) -> 0 | F20: 0 | G20: 0 | H20: 0 | I20: 0 | J20: 0 | K20: 0 | L20: 0
D21: Dotacje na zadania bieżące
D22: Świadczenia na rzecz osób fizycznych
D23: Wydatki na programy finansowane z UE
D24: Obsługa długu
D25: Poręczenia i gwarancje
D26: WYDATKI MAJĄTKOWE
C27: 4300 | D27: Zakup usług pozostałych | E27: =SUM(E28:E29) -> 0 | F27: 0 | G27: 0 | H27: 0 | I27: 0 | J27: 0 | K27: 0 | L27: 0
D28: Środki z budżetu państwa | E28: =0 -> 0 | F28: =0 -> 0 | G28: =0 -> 0 | H28: =0 -> 0 | I28: =0 -> 0 | J28: =0 -> 0 | K28: =E28-G28+H28 -> 0 | L28: =F28-I28+J28 -> 0 | M28: =IF(SUM(E28:L28)>0,"Tak","") ->  | N28: =IF(SUM(G28:J28)>0,"Tak","") ->  | O28: =IF(OR(E28<F28,K28<L28,G28<I28,H28<J28),"błędny urząd","") ->  | P28: =IF(OR(E28<0,F28<0,K28<0,L28<0),"ujemny plan","") -> 
D29: Środki z budżetu miasta | E29: =0 -> 0 | F29: =0 -> 0 | G29: =0 -> 0 | H29: =0 -> 0 | I29: =0 -> 0 | J29: =0 -> 0 | K29: =E29-G29+H29 -> 0 | L29: =F29-I29+J29 -> 0 | M29: =IF(SUM(E29:L29)>0,"Tak","") ->  | N29: =IF(SUM(G29:J29)>0,"Tak","") ->  | O29: =IF(OR(E29<F29,K29<L29,G29<I29,H29<J29),"błędny urząd","") ->  | P29: =IF(OR(E29<0,F29<0,K29<0,L29<0),"ujemny plan","") -> 
B30: 01030 | D30: Izby rolnicze | E30: =SUM(E31,E40) -> 0 | F30: 0 | G30: 0 | H30: 0 | I30: 0 | J30: 0 | K30: 0 | L30: 0
D31: WYDATKI BIEŻĄCE | E31: =SUM(E32,E35:E39) -> 0 | F31: 0 | G31: 0 | H31: 0 | I31: 0 | J31: 0 | K31: 0 | L31: 0
D32: Wydatki jednostek budżetowych w tym na: | E32: =SUM(E33:E34) -> 0 | F32: 0 | G32: 0 | H32: 0 | I32: 0 | J32: 0 | K32: 0 | L32: 0
D33: wynagrodzenia i składki od nich naliczane
D34: wydatki związane z realizacją ich zadań statutowych | E34: =SUM(E41) -> 0 | F34: 0 | G34: 0 | H34: 0 | I34: 0 | J34: 0 | K34: 0 | L34: 0
D35: Dotacje na zadania bieżące
D36: Świadczenia na rzecz osób fizycznych
D37: Wydatki na programy finansowane z UE
D38: Obsługa długu
D39: Poręczenia i gwarancje
D40: WYDATKI MAJĄTKOWE
C41: 2850 | D41: Wpłaty gmin na rzecz izb rolniczych w wysokości 2% uzyskanych wpływów z podatku rolnego | E41: =0+ZADANIOWY!J2016 -> 0 | F41: =0+ZADANIOWY!K2016 -> 0 | G41: =0+ZADANIOWY!L2016 -> 0 | H41: =0+ZADANIOWY!M2016 -> 0 | I41: =0+ZADANIOWY!N2016 -> 0 | J41: =0+ZADANIOWY!O2016 -> 0 | K41: 0 | L41: 0
B42: 01078 | D42: Izby rolnicze | E42: =SUM(E43,E52) -> 0 | F42: 0 | G42: 0 | H42: 0 | I42: 0 | J42: 0 | K42: 0 | L42: 0
D43: WYDATKI BIEŻĄCE | E43: =SUM(E44,E47:E51) -> 0 | F43: 0 | G43: 0 | H43: 0 | I43: 0 | J43: 0 | K43: 0 | L43: 0
D44: Wydatki jednostek budżetowych w tym na: | E44: =SUM(E45:E46) -> 0 | F44: 0 | G44: 0 | H44: 0 | I44: 0 | J44: 0 | K44: 0 | L44: 0
D45: wynagrodzenia i składki od nich naliczane
D46: wydatki związane z realizacją ich zadań statutowych
D47: Dotacje na zadania bieżące | E47: =SUM(E53) -> 0 | F47: 0 | G47: 0 | H47: 0 | I47: 0 | J47: 0 | K47: 0 | L47: 0
D48: Świadczenia na rzecz osób fizycznych
D49: Wydatki na programy finansowane z UE
D50: Obsługa długu
D51: Poręczenia i gwarancje
D52: WYDATKI MAJĄTKOWE
C53: 2710 | D53: Dotacja celowa na pomoc finansową udzielaną między jednostkami samorządu terytorialnego na dofinansowanie własnych zadań bieżących | E53: =0 -> 0 | F53: =0 -> 0 | G53: =0 -> 0 | H53: =0 -> 0 | I53: =0 -> 0 | J53: =0 -> 0 | K53: 0 | L53: 0
B54: 01095 | D54: Pozostała działalność | E54: =SUM(E55,E64) -> 0 | F54: 0 | G54: 0 | H54: 0 | I54: 0 | J54: 0 | K54: 0 | L54: 0
D55: WYDATKI BIEŻĄCE | E55: =SUM(E56,E59:E63) -> 0 | F55: 0 | G55: 0 | H55: 0 | I55: 0 | J55: 0 | K55: 0 | L55: 0
D56: Wydatki jednostek budżetowych w tym na: | E56: =SUM(E57:E58) -> 0 | F56: 0 | G56: 0 | H56: 0 | I56: 0 | J56: 0 | K56: 0 | L56: 0
D57: wynagrodzenia i składki od nich naliczane | E57: =SUM(E65,E68,E71,E80) -> 0 | F57: 0 | G57: 0 | H57: 0 | I57: 0 | J57: 0 | K57: 0 | L57: 0
D58: wydatki związane z realizacją ich zadań statutowych | E58: =SUM(E74,E77) -> 0 | F58: 0 | G58: 0 | H58: 0 | I58: 0 | J58: 0 | K58: 0 | L58: 0
D59: Dotacje na zadania bieżące
D60: Świadczenia na rzecz osób fizycznych
D61: Wydatki na programy finansowane z UE
D62: Obsługa długu
D63: Poręczenia i gwarancje
D64: WYDATKI MAJĄTKOWE
C65: 4010 | D65: Wynagrodzenia osobowe pracowników | E65: =SUM(E66:E67) -> 0 | F65: 0 | G65: 0 | H65: 0 | I65: 0 | J65: 0 | K65: 0 | L65: 0
D66: Środki z budżetu państwa | E66: =0 -> 0 | F66: =0 -> 0 | G66: =0 -> 0 | H66: =0 -> 0 | I66: =0 -> 0 | J66: =0 -> 0 | K66: 0 | L66: 0
D67: Środki z budżetu miasta | E67: =0 -> 0 | F67: =0 -> 0 | G67: =0 -> 0 | H67: =0 -> 0 | I67: =0 -> 0 | J67: =0 -> 0 | K67: 0 | L67: 0
C68: 4110 | D68: Składki na ubezpieczenia społeczne | E68: =SUM(E69:E70) -> 0 | F68: 0 | G68: 0 | H68: 0 | I68: 0 | J68: 0 | K68: 0 | L68: 0
D69: Środki z budżetu państwa | E69: =0 -> 0 | F69: =0 -> 0 | G69: =0 -> 0 | H69: =0 -> 0 | I69: =0 -> 0 | J69: =0 -> 0 | K69: 0 | L69: 0
D70: Środki z budżetu miasta | E70: =0 -> 0 | F70: =0 -> 0 | G70: =0 -> 0 | H70: =0 -> 0 | I70: =0 -> 0 | J70: =0 -> 0 | K70: 0 | L70: 0
C71: 4120 | D71: Składki na Fundusz Pracy oraz Fundusz Solidarnościowy | E71: =SUM(E72:E73) -> 0 | F71: 0 | G71: 0 | H71: 0 | I71: 0 | J71: 0 | K71: 0 | L71: 0
D72: Środki z budżetu państwa | E72: =0 -> 0 | F72: =0 -> 0 | G72: =0 -> 0 | H72: =0 -> 0 | I72: =0 -> 0 | J72: =0 -> 0 | K72: 0 | L72: 0
D73: Środki z budżetu miasta | E73: =0 -> 0 | F73: =0 -> 0 | G73: =0 -> 0 | H73: =0 -> 0 | I73: =0 -> 0 | J73: =0 -> 0 | K73: 0 | L73: 0
C74: 4300 | D74: Zakup usług pozostałych | E74: =SUM(E75:E76) -> 0 | F74: 0 | G74: 0 | H74: 0 | I74: 0 | J74: 0 | K74: 0 | L74: 0
D75: Środki z budżetu państwa | E75: =0+ZADANIOWY!J2009 -> 0 | F75: =0+ZADANIOWY!K2009 -> 0 | G75: =0+ZADANIOWY!L2009 -> 0 | H75: =0+ZADANIOWY!M2009 -> 0 | I75: =0+ZADANIOWY!N2009 -> 0 | J75: =0+ZADANIOWY!O2009 -> 0 | K75: 0 | L75: 0
D76: Środki z budżetu miasta | E76: =0+ZADANIOWY!J2010 -> 0 | F76: =0+ZADANIOWY!K2010 -> 0 | G76: =0+ZADANIOWY!L2010 -> 0 | H76: =0+ZADANIOWY!M2010 -> 0 | I76: =0+ZADANIOWY!N2010 -> 0 | J76: =0+ZADANIOWY!O2010 -> 0 | K76: 0 | L76: 0
C77: 4430 | D77: Różne opłaty i składki | E77: =SUM(E78:E79) -> 0 | F77: 0 | G77: 0 | H77: 0 | I77: 0 | J77: 0 | K77: 0 | L77: 0
D78: Środki z budżetu państwa | E78: =0+ZADANIOWY!J2012 -> 0 | F78: =0+ZADANIOWY!K2012 -> 0 | G78: =0+ZADANIOWY!L2012 -> 0 | H78: =0+ZADANIOWY!M2012 -> 0 | I78: =0+ZADANIOWY!N2012 -> 0 | J78: =0+ZADANIOWY!O2012 -> 0 | K78: 0 | L78: 0
D79: Środki z budżetu miasta | E79: =0+ZADANIOWY!J2013 -> 0 | F79: =0+ZADANIOWY!K2013 -> 0 | G79: =0+ZADANIOWY!L2013 -> 0 | H79: =0+ZADANIOWY!M2013 -> 0 | I79: =0+ZADANIOWY!N2013 -> 0 | J79: =0+ZADANIOWY!O2013 -> 0 | K79: 0 | L79: 0
C80: 4710 | D80: Wpłaty na PPK finansowane przez podmiot zatrudniający | E80: =SUM(E81:E82) -> 0 | F80: 0 | G80: 0 | H80: 0 | I80: 0 | J80: 0 | K80: 0 | L80: 0
D81: Środki z budżetu państwa | E81: =0 -> 0 | F81: =0 -> 0 | G81: =0 -> 0 | H81: =0 -> 0 | I81: =0 -> 0 | J81: =0 -> 0 | K81: 0 | L81: 0
D82: Środki z budżetu miasta | E82: =0 -> 0 | F82: =0 -> 0 | G82: =0 -> 0 | H82: =0 -> 0 | I82: =0 -> 0 | J82: =0 -> 0 | K82: 0 | L82: 0
A83: 020 | D83: Leśnictwo | E83: =SUM(E84,E93) -> 0 | F83: 0 | G83: 0 | H83: 0 | I83: 0 | J83: 0 | K83: 0 | L83: 0
D84: WYDATKI BIEŻĄCE | E84: =SUM(E85,E88:E92) -> 0 | F84: 0 | G84: 0 | H84: 0 | I84: 0 | J84: 0 | K84: 0 | L84: 0
D85: Wydatki jednostek budżetowych w tym na: | E85: =SUM(E86:E87) -> 0 | F85: 0 | G85: 0 | H85: 0 | I85: 0 | J85: 0 | K85: 0 | L85: 0
D86: wynagrodzenia i składki od nich naliczane | E86: =SUM(E97,E147) -> 0 | F86: 0 | G86: 0 | H86: 0 | I86: 0 | J86: 0 | K86: 0 | L86: 0
D87: wydatki związane z realizacją ich zadań statutowych | E87: 0 | F87: 0 | G87: 0 | H87: 0 | I87: 0 | J87: 0 | K87: 0 | L87: 0
D88: Dotacje na zadania bieżące | E88: 0 | F88: 0 | G88: 0 | H88: 0 | I88: 0 | J88: 0 | K88: 0 | L88: 0
D89: Świadczenia na rzecz osób fizycznych | E89: 0 | F89: 0 | G89: 0 | H89: 0 | I89: 0 | J89: 0 | K89: 0 | L89: 0
D90: Wydatki na programy finansowane z UE | E90: 0 | F90: 0 | G90: 0 | H90: 0 | I90: 0 | J90: 0 | K90: 0 | L90: 0
D91: Obsługa długu | E91: 0 | F91: 0 | G91: 0 | H91: 0 | I91: 0 | J91: 0 | K91: 0 | L91: 0
D92: Poręczenia i gwarancje | E92: 0 | F92: 0 | G92: 0 | H92: 0 | I92: 0 | J92: 0 | K92: 0 | L92: 0
D93: WYDATKI MAJĄTKOWE | E93: 0 | F93: 0 | G93: 0 | H93: 0 | I93: 0 | J93: 0 | K93: 0 | L93: 0 | M93: =IF(SUM(E93:L93)>0,"Tak","") ->  | N93: =IF(SUM(G93:J93)>0,"Tak","") ->  | O93: =IF(OR(E93<F93,K93<L93,G93<I93,H93<J93),"błędny urząd","") ->  | P93: =IF(OR(E93<0,F93<0,K93<0,L93<0),"ujemny plan","") -> 
B94: 02001 | D94: Gospodarka leśna | E94: =SUM(E95,E104) -> 0 | F94: 0 | G94: 0 | H94: 0 | I94: 0 | J94: 0 | K94: 0 | L94: 0
D95: WYDATKI BIEŻĄCE | E95: =SUM(E96,E99:E103) -> 0 | F95: 0 | G95: 0 | H95: 0 | I95: 0 | J95: 0 | K95: 0 | L95: 0
D96: Wydatki jednostek budżetowych w tym na: | E96: =SUM(E97:E98) -> 0 | F96: 0 | G96: 0 | H96: 0 | I96: 0 | J96: 0 | K96: 0 | L96: 0
D97: wynagrodzenia i składki od nich naliczane | E97: =SUM(E106:E109,E111,E143) -> 0 | F97: 0 | G97: 0 | H97: 0 | I97: 0 | J97: 0 | K97: 0 | L97: 0
D98: wydatki związane z realizacją ich zadań statutowych | E98: =SUM(E110,E112:E113,E116:E121,E124:E142) -> 0 | F98: 0 | G98: 0 | H98: 0 | I98: 0 | J98: 0 | K98: 0 | L98: 0
D99: Dotacje na zadania bieżące
D100: Świadczenia na rzecz osób fizycznych | E100: =SUM(E105) -> 0 | F100: 0 | G100: 0 | H100: 0 | I100: 0 | J100: 0 | K100: 0 | L100: 0
D101: Wydatki na programy finansowane z UE | E101: =SUM(E114:E115,E122:E123) -> 0 | F101: 0 | G101: 0 | H101: 0 | I101: 0 | J101: 0 | K101: 0 | L101: 0
D102: Obsługa długu
D103: Poręczenia i gwarancje
D104: WYDATKI MAJĄTKOWE
C105: 3020 | D105: Wydatki osobowe niezaliczone do wynagrodzeń | E105: =0+ZADANIOWY!J1919 -> 0 | F105: =0+ZADANIOWY!K1919 -> 0 | G105: =0+ZADANIOWY!L1919 -> 0 | H105: =0+ZADANIOWY!M1919 -> 0 | I105: =0+ZADANIOWY!N1919 -> 0 | J105: =0+ZADANIOWY!O1919 -> 0 | K105: =E105-G105+H105 -> 0 | L105: =F105-I105+J105 -> 0
C106: 4010 | D106: Wynagrodzenia osobowe pracowników | E106: =0+ZADANIOWY!J1920 -> 0 | F106: =0+ZADANIOWY!K1920 -> 0 | G106: =0+ZADANIOWY!L1920 -> 0 | H106: =0+ZADANIOWY!M1920 -> 0 | I106: =0+ZADANIOWY!N1920 -> 0 | J106: =0+ZADANIOWY!O1920 -> 0 | K106: 0 | L106: 0
C107: 4040 | D107: Dodatkowe wynagrodzenie roczne | E107: =0+ZADANIOWY!J1921 -> 0 | F107: =0+ZADANIOWY!K1921 -> 0 | G107: =0+ZADANIOWY!L1921 -> 0 | H107: =0+ZADANIOWY!M1921 -> 0 | I107: =0+ZADANIOWY!N1921 -> 0 | J107: =0+ZADANIOWY!O1921 -> 0 | K107: 0 | L107: 0
C108: 4110 | D108: Składki na ubezpieczenia społeczne | E108: =0+ZADANIOWY!J1922 -> 0 | F108: =0+ZADANIOWY!K1922 -> 0 | G108: =0+ZADANIOWY!L1922 -> 0 | H108: =0+ZADANIOWY!M1922 -> 0 | I108: =0+ZADANIOWY!N1922 -> 0 | J108: =0+ZADANIOWY!O1922 -> 0 | K108: 0 | L108: 0
C109: 4120 | D109: Składki na Fundusz Pracy oraz Fundusz Solidarnościowy | E109: =0+ZADANIOWY!J1923 -> 0 | F109: =0+ZADANIOWY!K1923 -> 0 | G109: =0+ZADANIOWY!L1923 -> 0 | H109: =0+ZADANIOWY!M1923 -> 0 | I109: =0+ZADANIOWY!N1923 -> 0 | J109: =0+ZADANIOWY!O1923 -> 0 | K109: 0 | L109: 0
C110: 4140 | D110: Wpłaty na Państwowy Fundusz Rehabilitacji Osób Niepełnosprawnych | E110: =0+ZADANIOWY!J1924 -> 0 | F110: =0+ZADANIOWY!K1924 -> 0 | G110: =0+ZADANIOWY!L1924 -> 0 | H110: =0+ZADANIOWY!M1924 -> 0 | I110: =0+ZADANIOWY!N1924 -> 0 | J110: =0+ZADANIOWY!O1924 -> 0 | K110: 0 | L110: 0
C111: 4170 | D111: Wynagrodzenia bezosobowe | E111: =0+ZADANIOWY!J1925+ZADANIOWY!J1926+ZADANIOWY!J1927 -> 0 | F111: =0+ZADANIOWY!K1925+ZADANIOWY!K1926+ZADANIOWY!K1927 -> 0 | G111: =0+ZADANIOWY!L1925+ZADANIOWY!L1926+ZADANIOWY!L1927 -> 0 | H111: =0+ZADANIOWY!M1925+ZADANIOWY!M1926+ZADANIOWY!M1927 -> 0 | I111: =0+ZADANIOWY!N1925+ZADANIOWY!N1926+ZADANIOWY!N1927 -> 0 | J111: =0+ZADANIOWY!O1925+ZADANIOWY!O1926+ZADANIOWY!O1927 -> 0 | K111: 0 | L111: 0
C112: 4190 | D112: Nagrody konkursowe | E112: =0 -> 0 | F112: =0 -> 0 | G112: =0 -> 0 | H112: =0 -> 0 | I112: =0 -> 0 | J112: =0 -> 0 | K112: 0 | L112: 0
C113: 4210 | D113: Zakup materiałów i wyposażenia | E113: =0+ZADANIOWY!J1928+ZADANIOWY!J1929+ZADANIOWY!J1930+ZADANIOWY!J1931+ZADANIOWY!J1932+ZADANIOWY!J1933+ZADANIOWY!J1934 -> 0 | F113: =0+ZADANIOWY!K1928+ZADANIOWY!K1929+ZADANIOWY!K1930+ZADANIOWY!K1931+ZADANIOWY!K1932+ZADANIOWY!K1933+ZADANIOWY!K1934 -> 0 | G113: =0+ZADANIOWY!L1928+ZADANIOWY!L1929+ZADANIOWY!L1930+ZADANIOWY!L1931+ZADANIOWY!L1932+ZADANIOWY!L1933+ZADANIOWY!L1934 -> 0 | H113: =0+ZADANIOWY!M1928+ZADANIOWY!M1929+ZADANIOWY!M1930+ZADANIOWY!M1931+ZADANIOWY!M1932+ZADANIOWY!M1933+ZADANIOWY!M1934 -> 0 | I113: =0+ZADANIOWY!N1928+ZADANIOWY!N1929+ZADANIOWY!N1930+ZADANIOWY!N1931+ZADANIOWY!N1932+ZADANIOWY!N1933+ZADANIOWY!N1934 -> 0 | J113: =0+ZADANIOWY!O1928+ZADANIOWY!O1929+ZADANIOWY!O1930+ZADANIOWY!O1931+ZADANIOWY!O1932+ZADANIOWY!O1933+ZADANIOWY!O1934 -> 0 | K113: 0 | L113: 0
C114: 4217 | D114: Zakup materiałów i wyposażenia | E114: =0 -> 0 | F114: =0 -> 0 | G114: =0 -> 0 | H114: =0 -> 0 | I114: =0 -> 0 | J114: =0 -> 0 | K114: 0 | L114: 0
C115: 4219 | D115: Zakup materiałów i wyposażenia | E115: =0 -> 0 | F115: =0 -> 0 | G115: =0 -> 0 | H115: =0 -> 0 | I115: =0 -> 0 | J115: =0 -> 0 | K115: 0 | L115: 0
C116: 4220 | D116: Zakup środków żywności | E116: =0+ZADANIOWY!J1935+ZADANIOWY!J1936 -> 0 | F116: =0+ZADANIOWY!K1935+ZADANIOWY!K1936 -> 0 | G116: =0+ZADANIOWY!L1935+ZADANIOWY!L1936 -> 0 | H116: =0+ZADANIOWY!M1935+ZADANIOWY!M1936 -> 0 | I116: =0+ZADANIOWY!N1935+ZADANIOWY!N1936 -> 0 | J116: =0+ZADANIOWY!O1935+ZADANIOWY!O1936 -> 0 | K116: 0 | L116: 0
C117: 4240 | D117: Zakup środków dydaktycznych i książek | E117: =0 -> 0 | F117: =0 -> 0 | G117: =0 -> 0 | H117: =0 -> 0 | I117: =0 -> 0 | J117: =0 -> 0 | K117: 0 | L117: 0
C118: 4260 | D118: Zakup energii | E118: =0+ZADANIOWY!J1937 -> 0 | F118: =0+ZADANIOWY!K1937 -> 0 | G118: =0+ZADANIOWY!L1937 -> 0 | H118: =0+ZADANIOWY!M1937 -> 0 | I118: =0+ZADANIOWY!N1937 -> 0 | J118: =0+ZADANIOWY!O1937 -> 0 | K118: 0 | L118: 0
C119: 4270 | D119: Zakup usług remontowych | E119: =0+ZADANIOWY!J1938 -> 0 | F119: =0+ZADANIOWY!K1938 -> 0 | G119: =0+ZADANIOWY!L1938 -> 0 | H119: =0+ZADANIOWY!M1938 -> 0 | I119: =0+ZADANIOWY!N1938 -> 0 | J119: =0+ZADANIOWY!O1938 -> 0 | K119: 0 | L119: 0
C120: 4280 | D120: Zakup usług zdrowotnych | E120: =0+ZADANIOWY!J1939 -> 0 | F120: =0+ZADANIOWY!K1939 -> 0 | G120: =0+ZADANIOWY!L1939 -> 0 | H120: =0+ZADANIOWY!M1939 -> 0 | I120: =0+ZADANIOWY!N1939 -> 0 | J120: =0+ZADANIOWY!O1939 -> 0 | K120: 0 | L120: 0
C121: 4300 | D121: Zakup usług pozostałych | E121: =0+ZADANIOWY!J1940+ZADANIOWY!J1941+ZADANIOWY!J1942+ZADANIOWY!J1943+ZADANIOWY!J1944+ZADANIOWY!J1945 -> 0 | F121: =0+ZADANIOWY!K1940+ZADANIOWY!K1941+ZADANIOWY!K1942+ZADANIOWY!K1943+ZADANIOWY!K1944+ZADANIOWY!K1945 -> 0 | G121: =0+ZADANIOWY!L1940+ZADANIOWY!L1941+ZADANIOWY!L1942+ZADANIOWY!L1943+ZADANIOWY!L1944+ZADANIOWY!L1945 -> 0 | H121: =0+ZADANIOWY!M1940+ZADANIOWY!M1941+ZADANIOWY!M1942+ZADANIOWY!M1943+ZADANIOWY!M1944+ZADANIOWY!M1945 -> 0 | I121: =0+ZADANIOWY!N1940+ZADANIOWY!N1941+ZADANIOWY!N1942+ZADANIOWY!N1943+ZADANIOWY!N1944+ZADANIOWY!N1945 -> 0 | J121: =0+ZADANIOWY!O1940+ZADANIOWY!O1941+ZADANIOWY!O1942+ZADANIOWY!O1943+ZADANIOWY!O1944+ZADANIOWY!O1945 -> 0 | K121: 0 | L121: 0
C122: 4307 | D122: Zakup usług pozostałych | E122: =0 -> 0 | F122: =0 -> 0 | G122: =0 -> 0 | H122: =0 -> 0 | I122: =0 -> 0 | J122: =0 -> 0 | K122: 0 | L122: 0
C123: 4309 | D123: Zakup usług pozostałych | E123: =0 -> 0 | F123: =0 -> 0 | G123: =0 -> 0 | H123: =0 -> 0 | I123: =0 -> 0 | J123: =0 -> 0 | K123: 0 | L123: 0
C124: 4360 | D124: Opłaty z tytułu zakupu usług telekomunikacyjnych | E124: =0+ZADANIOWY!J1946 -> 0 | F124: =0+ZADANIOWY!K1946 -> 0 | G124: =0+ZADANIOWY!L1946 -> 0 | H124: =0+ZADANIOWY!M1946 -> 0 | I124: =0+ZADANIOWY!N1946 -> 0 | J124: =0+ZADANIOWY!O1946 -> 0 | K124: 0 | L124: 0
C125: 4380 | D125: Zakup usług obejmujących tłumaczenia | E125: =0 -> 0 | F125: =0 -> 0 | G125: =0 -> 0 | H125: =0 -> 0 | I125: =0 -> 0 | J125: =0 -> 0 | K125: 0 | L125: 0
C126: 4390 | D126: Zakup usług obejmujących wykonanie ekspertyz, analiz i opinii | E126: =0+ZADANIOWY!J1947+ZADANIOWY!J1948 -> 0 | F126: =0+ZADANIOWY!K1947+ZADANIOWY!K1948 -> 0 | G126: =0+ZADANIOWY!L1947+ZADANIOWY!L1948 -> 0 | H126: =0+ZADANIOWY!M1947+ZADANIOWY!M1948 -> 0 | I126: =0+ZADANIOWY!N1947+ZADANIOWY!N1948 -> 0 | J126: =0+ZADANIOWY!O1947+ZADANIOWY!O1948 -> 0 | K126: 0 | L126: 0
C127: 4400 | D127: Opłaty za administrowanie i czynsze za budynki, lokale i pomieszczenia garażowe | E127: =0+ZADANIOWY!J1949 -> 0 | F127: =0+ZADANIOWY!K1949 -> 0 | G127: =0+ZADANIOWY!L1949 -> 0 | H127: =0+ZADANIOWY!M1949 -> 0 | I127: =0+ZADANIOWY!N1949 -> 0 | J127: =0+ZADANIOWY!O1949 -> 0 | K127: 0 | L127: 0
C128: 4410 | D128: Podróże służbowe krajowe | E128: =0+ZADANIOWY!J1950 -> 0 | F128: =0+ZADANIOWY!K1950 -> 0 | G128: =0+ZADANIOWY!L1950 -> 0 | H128: =0+ZADANIOWY!M1950 -> 0 | I128: =0+ZADANIOWY!N1950 -> 0 | J128: =0+ZADANIOWY!O1950 -> 0 | K128: 0 | L128: 0
C129: 4420 | D129: Podróże służbowe zagraniczne | E129: =0 -> 0 | F129: =0 -> 0 | G129: =0 -> 0 | H129: =0 -> 0 | I129: =0 -> 0 | J129: =0 -> 0 | K129: 0 | L129: 0
C130: 4430 | D130: Różne opłaty i składki | E130: =0+ZADANIOWY!J1951 -> 0 | F130: =0+ZADANIOWY!K1951 -> 0 | G130: =0+ZADANIOWY!L1951 -> 0 | H130: =0+ZADANIOWY!M1951 -> 0 | I130: =0+ZADANIOWY!N1951 -> 0 | J130: =0+ZADANIOWY!O1951 -> 0 | K130: 0 | L130: 0
C131: 4440 | D131: Odpisy na zakładowy fundusz świadczeń socjalnych | E131: =0+ZADANIOWY!J1952 -> 0 | F131: =0+ZADANIOWY!K1952 -> 0 | G131: =0+ZADANIOWY!L1952 -> 0 | H131: =0+ZADANIOWY!M1952 -> 0 | I131: =0+ZADANIOWY!N1952 -> 0 | J131: =0+ZADANIOWY!O1952 -> 0 | K131: 0 | L131: 0
C132: 4480 | D132: Podatek od nieruchomości | E132: =0+ZADANIOWY!J1953 -> 0 | F132: =0+ZADANIOWY!K1953 -> 0 | G132: =0+ZADANIOWY!L1953 -> 0 | H132: =0+ZADANIOWY!M1953 -> 0 | I132: =0+ZADANIOWY!N1953 -> 0 | J132: =0+ZADANIOWY!O1953 -> 0 | K132: 0 | L132: 0
C133: 4500 | D133: Pozostałe podatki na rzecz budżetów jednostek samorządu terytorialnego | E133: =0+ZADANIOWY!J1954 -> 0 | F133: =0+ZADANIOWY!K1954 -> 0 | G133: =0+ZADANIOWY!L1954 -> 0 | H133: =0+ZADANIOWY!M1954 -> 0 | I133: =0+ZADANIOWY!N1954 -> 0 | J133: =0+ZADANIOWY!O1954 -> 0 | K133: 0 | L133: 0
C134: 4510 | D134: Opłaty na rzecz budżetu państwa | E134: =0+ZADANIOWY!J1955 -> 0 | F134: =0+ZADANIOWY!K1955 -> 0 | G134: =0+ZADANIOWY!L1955 -> 0 | H134: =0+ZADANIOWY!M1955 -> 0 | I134: =0+ZADANIOWY!N1955 -> 0 | J134: =0+ZADANIOWY!O1955 -> 0 | K134: 0 | L134: 0
C135: 4520 | D135: Opłaty na rzecz budżetów jednostek samorządu terytorialnego | E135: =0+ZADANIOWY!J1956 -> 0 | F135: =0+ZADANIOWY!K1956 -> 0 | G135: =0+ZADANIOWY!L1956 -> 0 | H135: =0+ZADANIOWY!M1956 -> 0 | I135: =0+ZADANIOWY!N1956 -> 0 | J135: =0+ZADANIOWY!O1956 -> 0 | K135: 0 | L135: 0
C136: 4530 | D136: Podatek od towarów i usług (VAT) | E136: =0+ZADANIOWY!J1957 -> 0 | F136: =0+ZADANIOWY!K1957 -> 0 | G136: =0+ZADANIOWY!L1957 -> 0 | H136: =0+ZADANIOWY!M1957 -> 0 | I136: =0+ZADANIOWY!N1957 -> 0 | J136: =0+ZADANIOWY!O1957 -> 0 | K136: 0 | L136: 0
C137: 4580 | D137: Pozostałe odsetki | E137: =0+ZADANIOWY!J1958 -> 0 | F137: =0+ZADANIOWY!K1958 -> 0 | G137: =0+ZADANIOWY!L1958 -> 0 | H137: =0+ZADANIOWY!M1958 -> 0 | I137: =0+ZADANIOWY!N1958 -> 0 | J137: =0+ZADANIOWY!O1958 -> 0 | K137: 0 | L137: 0
C138: 4590 | D138: Kary i odszkodowania wypłacane na rzecz osób fizycznych | E138: =0+ZADANIOWY!J1959 -> 0 | F138: =0+ZADANIOWY!K1959 -> 0 | G138: =0+ZADANIOWY!L1959 -> 0 | H138: =0+ZADANIOWY!M1959 -> 0 | I138: =0+ZADANIOWY!N1959 -> 0 | J138: =0+ZADANIOWY!O1959 -> 0 | K138: 0 | L138: 0
C139: 4600 | D139: Kary, odszkodowania i grzywny wypłacane na rzecz osób prawnych i innych jednostek organizacyjnych | E139: =0 -> 0 | F139: =0 -> 0 | G139: =0 -> 0 | H139: =0 -> 0 | I139: =0 -> 0 | J139: =0 -> 0 | K139: 0 | L139: 0
C140: 4610 | D140: Koszty postępowania sądowego i prokuratorskiego | E140: =0+ZADANIOWY!J1960 -> 0 | F140: =0+ZADANIOWY!K1960 -> 0 | G140: =0+ZADANIOWY!L1960 -> 0 | H140: =0+ZADANIOWY!M1960 -> 0 | I140: =0+ZADANIOWY!N1960 -> 0 | J140: =0+ZADANIOWY!O1960 -> 0 | K140: 0 | L140: 0
C141: 4680 | D141: Odsetki od nieterminowych wpłat podatku od towarów i usług (VAT) | E141: =0 -> 0 | F141: =0 -> 0 | G141: =0 -> 0 | H141: =0 -> 0 | I141: =0 -> 0 | J141: =0 -> 0 | K141: 0 | L141: 0
C142: 4700 | D142: Szkolenia pracowników niebędących członkami korpusu służby cywilnej | E142: =0+ZADANIOWY!J1961 -> 0 | F142: =0+ZADANIOWY!K1961 -> 0 | G142: =0+ZADANIOWY!L1961 -> 0 | H142: =0+ZADANIOWY!M1961 -> 0 | I142: =0+ZADANIOWY!N1961 -> 0 | J142: =0+ZADANIOWY!O1961 -> 0 | K142: 0 | L142: 0
C143: 4710 | D143: Wpłaty na PPK finansowane przez podmiot zatrudniający | E143: =0+ZADANIOWY!J1962 -> 0 | F143: =0+ZADANIOWY!K1962 -> 0 | G143: =0+ZADANIOWY!L1962 -> 0 | H143: =0+ZADANIOWY!M1962 -> 0 | I143: =0+ZADANIOWY!N1962 -> 0 | J143: =0+ZADANIOWY!O1962 -> 0 | K143: 0 | L143: 0
B144: 02095 | D144: Pozostała działalność | E144: =SUM(E145,E154) -> 0 | F144: 0 | G144: 0 | H144: 0 | I144: 0 | J144: 0 | K144: 0 | L144: 0
D145: WYDATKI BIEŻĄCE | E145: =SUM(E146,E149:E153) -> 0 | F145: 0 | G145: 0 | H145: 0 | I145: 0 | J145: 0 | K145: 0 | L145: 0
D146: Wydatki jednostek budżetowych w tym na: | E146: =SUM(E147:E148) -> 0 | F146: 0 | G146: 0 | H146: 0 | I146: 0 | J146: 0 | K146: 0 | L146: 0
D147: wynagrodzenia i składki od nich naliczane | E147: =SUM(E155:E157) -> 0 | F147: 0 | G147: 0 | H147: 0 | I147: 0 | J147: 0 | K147: 0 | L147: 0
D148: wydatki związane z realizacją ich zadań statutowych | E148: =SUM(E158:E160) -> 0 | F148: 0 | G148: 0 | H148: 0 | I148: 0 | J148: 0 | K148: 0 | L148: 0
D149: Dotacje na zadania bieżące
D150: Świadczenia na rzecz osób fizycznych
D151: Wydatki na programy finansowane z UE
D152: Obsługa długu
D153: Poręczenia i gwarancje
D154: WYDATKI MAJĄTKOWE
C155: 4110 | D155: Składki na ubezpieczenia społeczne | E155: =0 -> 0 | F155: =0 -> 0 | G155: =0 -> 0 | H155: =0 -> 0 | I155: =0 -> 0 | J155: =0 -> 0 | K155: 0 | L155: 0
C156: 4120 | D156: Składki na Fundusz Pracy oraz Fundusz Solidarnościowy | E156: =0 -> 0 | F156: =0 -> 0 | G156: =0 -> 0 | H156: =0 -> 0 | I156: =0 -> 0 | J156: =0 -> 0 | K156: 0 | L156: 0
C157: 4170 | D157: Wynagrodzenia bezosobowe | E157: =0 -> 0 | F157: =0 -> 0 | G157: =0 -> 0 | H157: =0 -> 0 | I157: =0 -> 0 | J157: =0 -> 0 | K157: =E157-G157+H157 -> 0 | L157: =F157-I157+J157 -> 0 | M157: =IF(SUM(E157:L157)>0,"Tak","") ->  | N157: =IF(SUM(G157:J157)>0,"Tak","") ->  | O157: =IF(OR(E157<F157,K157<L157,G157<I157,H157<J157),"błędny urząd","") ->  | P157: =IF(OR(E157<0,F157<0,K157<0,L157<0),"ujemny plan","") -> 
C158: 4270 | D158: Zakup usług remontowych | E158: =0 -> 0 | F158: =0 -> 0 | G158: =0 -> 0 | H158: =0 -> 0 | I158: =0 -> 0 | J158: =0 -> 0 | K158: 0 | L158: 0
C159: 4300 | D159: Zakup usług pozostałych | E159: =0 -> 0 | F159: =0 -> 0 | G159: =0 -> 0 | H159: =0 -> 0 | I159: =0 -> 0 | J159: =0 -> 0 | K159: 0 | L159: 0
C160: 4500 | D160: Pozostałe podatki na rzecz budżetów jednostek samorządu terytorialnego | E160: =0 -> 0 | F160: =0 -> 0 | G160: =0 -> 0 | H160: =0 -> 0 | I160: =0 -> 0 | J160: =0 -> 0 | K160: 0 | L160: 0
A161: 400 | D161: Wytwarzanie i zaopatrywanie w energię elektryczną, gaz i wodę | E161: =SUM(E162,E171) -> 424343 | F161: 0 | G161: 0 | H161: 0 | I161: 0 | J161: 0 | K161: 424343 | L161: 0 | M161: Tak
D162: WYDATKI BIEŻĄCE | E162: =SUM(E163,E166:E170) -> 424343 | F162: 0 | G162: 0 | H162: 0 | I162: 0 | J162: 0 | K162: 424343 | L162: 0 | M162: Tak
D163: Wydatki jednostek budżetowych w tym na: | E163: =SUM(E164:E165) -> 424343 | F163: 0 | G163: 0 | H163: 0 | I163: 0 | J163: 0 | K163: 424343 | L163: 0 | M163: Tak
D164: wynagrodzenia i składki od nich naliczane | E164: =SUM(E175,E190,E219) -> 0 | F164: 0 | G164: 0 | H164: 0 | I164: 0 | J164: 0 | K164: 0 | L164: 0
D165: wydatki związane z realizacją ich zadań statutowych | E165: =SUM(E176,E191,E220) -> 424343 | F165: 0 | G165: 0 | H165: 0 | I165: 0 | J165: 0 | K165: 424343 | L165: 0 | M165: Tak
D166: Dotacje na zadania bieżące | E166: 0 | F166: 0 | G166: 0 | H166: 0 | I166: 0 | J166: 0 | K166: 0 | L166: 0
D167: Świadczenia na rzecz osób fizycznych | E167: 0 | F167: 0 | G167: 0 | H167: 0 | I167: 0 | J167: 0 | K167: 0 | L167: 0
D168: Wydatki na programy finansowane z UE | E168: 0 | F168: 0 | G168: 0 | H168: 0 | I168: 0 | J168: 0 | K168: 0 | L168: 0
D169: Obsługa długu | E169: 0 | F169: 0 | G169: 0 | H169: 0 | I169: 0 | J169: 0 | K169: 0 | L169: 0
D170: Poręczenia i gwarancje | E170: 0 | F170: 0 | G170: 0 | H170: 0 | I170: 0 | J170: 0 | K170: 0 | L170: 0
D171: WYDATKI MAJĄTKOWE | E171: 0 | F171: 0 | G171: 0 | H171: 0 | I171: 0 | J171: 0 | K171: 0 | L171: 0
B172: 40001 | E172: =SUM(E173,E182) -> 0 | F172: 0 | G172: 0 | H172: 0 | I172: 0 | J172: 0 | K172: 0 | L172: 0
D173: WYDATKI BIEŻĄCE | E173: =SUM(E174,E177:E181) -> 0 | F173: 0 | G173: 0 | H173: 0 | I173: 0 | J173: 0 | K173: 0 | L173: 0
D174: Wydatki jednostek budżetowych w tym na: | E174: =SUM(E175:E176) -> 0 | F174: 0 | G174: 0 | H174: 0 | I174: 0 | J174: 0 | K174: 0 | L174: 0
D175: wynagrodzenia i składki od nich naliczane | E175: =SUM(E184:E186) -> 0 | F175: 0 | G175: 0 | H175: 0 | I175: 0 | J175: 0 | K175: 0 | L175: 0
D176: wydatki związane z realizacją ich zadań statutowych | E176: =SUM(E183) -> 0 | F176: 0 | G176: 0 | H176: 0 | I176: 0 | J176: 0 | K176: 0 | L176: 0
D177: Dotacje na zadania bieżące
D178: Świadczenia na rzecz osób fizycznych
D179: Wydatki na programy finansowane z UE
D180: Obsługa długu
D181: Poręczenia i gwarancje
D182: WYDATKI MAJĄTKOWE
C183: 2970 | E183: =0+ZADANIOWY!J2020 -> 0 | F183: =0+ZADANIOWY!K2020 -> 0 | G183: =0+ZADANIOWY!L2020 -> 0 | H183: =0+ZADANIOWY!M2020 -> 0 | I183: =0+ZADANIOWY!N2020 -> 0 | J183: =0+ZADANIOWY!O2020 -> 0 | K183: 0 | L183: 0
C184: 4010 | E184: =0+ZADANIOWY!J9039 -> 0 | F184: =0+ZADANIOWY!K9039 -> 0 | G184: =0+ZADANIOWY!L9039 -> 0 | H184: =0+ZADANIOWY!M9039 -> 0 | I184: =0+ZADANIOWY!N9039 -> 0 | J184: =0+ZADANIOWY!O9039 -> 0 | K184: 0 | L184: 0
C185: 4110 | E185: =0+ZADANIOWY!J9040 -> 0 | F185: =0+ZADANIOWY!K9040 -> 0 | G185: =0+ZADANIOWY!L9040 -> 0 | H185: =0+ZADANIOWY!M9040 -> 0 | I185: =0+ZADANIOWY!N9040 -> 0 | J185: =0+ZADANIOWY!O9040 -> 0 | K185: 0 | L185: 0
C186: 4120 | E186: =0+ZADANIOWY!J9041 -> 0 | F186: =0+ZADANIOWY!K9041 -> 0 | G186: =0+ZADANIOWY!L9041 -> 0 | H186: =0+ZADANIOWY!M9041 -> 0 | I186: =0+ZADANIOWY!N9041 -> 0 | J186: =0+ZADANIOWY!O9041 -> 0 | K186: 0 | L186: 0
B187: 40002 | D187: Dostarczanie wody | E187: =SUM(E188,E197) -> 424343 | F187: 0 | G187: 0 | H187: 0 | I187: 0 | J187: 0 | K187: 424343 | L187: 0 | M187: Tak
D188: WYDATKI BIEŻĄCE | E188: =SUM(E189,E192:E196) -> 424343 | F188: 0 | G188: 0 | H188: 0 | I188: 0 | J188: 0 | K188: 424343 | L188: 0 | M188: Tak
D189: Wydatki jednostek budżetowych w tym na: | E189: =SUM(E190:E191) -> 424343 | F189: 0 | G189: 0 | H189: 0 | I189: 0 | J189: 0 | K189: 424343 | L189: 0 | M189: Tak
D190: wynagrodzenia i składki od nich naliczane | E190: =SUM(E198:E200) -> 0 | F190: 0 | G190: 0 | H190: 0 | I190: 0 | J190: 0 | K190: 0 | L190: 0
D191: wydatki związane z realizacją ich zadań statutowych | E191: =SUM(E201:E213) -> 424343 | F191: 0 | G191: 0 | H191: 0 | I191: 0 | J191: 0 | K191: 424343 | L191: 0 | M191: Tak
D192: Dotacje na zadania bieżące
D193: Świadczenia na rzecz osób fizycznych
D194: Wydatki na programy finansowane z UE
D195: Obsługa długu
D196: Poręczenia i gwarancje
D197: WYDATKI MAJĄTKOWE | E197: =SUM(E214:E215) -> 0 | F197: 0 | G197: 0 | H197: 0 | I197: 0 | J197: 0 | K197: 0 | L197: 0
C198: 4110 | D198: Składki na ubezpieczenia społeczne | E198: =0+ZADANIOWY!J1628 -> 0 | F198: =0+ZADANIOWY!K1628 -> 0 | G198: =0+ZADANIOWY!L1628 -> 0 | H198: =0+ZADANIOWY!M1628 -> 0 | I198: =0+ZADANIOWY!N1628 -> 0 | J198: =0+ZADANIOWY!O1628 -> 0 | K198: 0 | L198: 0
C199: 4120 | D199: Składki na Fundusz Pracy oraz Fundusz Solidarnościowy | E199: =0+ZADANIOWY!J1629 -> 0 | F199: =0+ZADANIOWY!K1629 -> 0 | G199: =0+ZADANIOWY!L1629 -> 0 | H199: =0+ZADANIOWY!M1629 -> 0 | I199: =0+ZADANIOWY!N1629 -> 0 | J199: =0+ZADANIOWY!O1629 -> 0 | K199: 0 | L199: 0
C200: 4170 | D200: Wynagrodzenia bezosobowe | E200: =0+ZADANIOWY!J1630 -> 0 | F200: =0+ZADANIOWY!K1630 -> 0 | G200: =0+ZADANIOWY!L1630 -> 0 | H200: =0+ZADANIOWY!M1630 -> 0 | I200: =0+ZADANIOWY!N1630 -> 0 | J200: =0+ZADANIOWY!O1630 -> 0 | K200: 0 | L200: 0
C201: 4210 | D201: Zakup materiałów i wyposażenia | E201: =0+ZADANIOWY!J1631 -> 0 | F201: =0+ZADANIOWY!K1631 -> 0 | G201: =0+ZADANIOWY!L1631 -> 0 | H201: =0+ZADANIOWY!M1631 -> 0 | I201: =0+ZADANIOWY!N1631 -> 0 | J201: =0+ZADANIOWY!O1631 -> 0 | K201: 0 | L201: 0
... 4299 more rows
